Workbook

Sheet Welcome
B7: British Columbia shale gas scenario planning tool
B9: About the tool
B10: This scenario planning tool allows users to see the potential environmental impacts of different shale gas development scenarios in B.C. This first phase of the model outputs include GHG emissions, water use, waste water production, and incremental land-impacts. Several policy options allow the intensity of these impacts to be changed over time.
B12: This tool was jointly developed by the Pembina Institute and Navius Research. This version of the tool was updated June 17, 2015
B14: Funding for the tool was provided by the Real Estate Foundation of B.C., the Pacific Institute for Climate Solutions, the Bullitt Foundation, The North Growth Foundation, and the Vancouver Foundation.
B17: Model structure
B18: The tool is exmplained in detail in Pembina's Video Manual available here: http://www.pembina.org/pub/BCShaleTool
B20: The tool is controlled in one of two ways:
B21: 1) by the "Simple scenario analysis" tab. This tab has several pre-set scenarios that can be used as a starting point to understand the influence of different levels of development and policy.
B22: 2) by the "Inputs" tab. This tab allows users to change the amount of LNG and shale gas development, where the gas comes from, and environmental policies applied.
B24: In general a blue tabs mean an input is possible in this tab. A green tab gives information. White tabs are mostly background calculations.
B26: The 'Summary + scenario comparison" tab summarizes results for the scenario set in the 'Inputs' tab. It also allows users to compare different scenarios side by side. More detailed outputs can be found in the "Detailed outputs" tab. Revenue from environmental pricing can be found in the "Environmental pricing" tab. The effects from different leakage rates and global warming potentials of methane can be found in the "Methane sensitivity" tab. The "Numbers in context" tab compares the outputs to some easy to understand metrics.
B28: The remaining tabs primarily contain the calculations that enable the model to function. Well stock turnover is calculated in the "Stock Turnover Model" tab. Parameters and emission factors are summarized in the "Parameters + emission factors" tab, which in turn inform the GHG calculations from the various producing basins in the "(name of basin) GHG Calc" tabs.
B30: Contact
B31: Maximilian Kniewasser
B32: maximiliank@pembina.org
B33: 604 908 4164

Sheet Simple scenario analysis
B6: Instructions
B8: Step 1: Make sure Macros are enabled. If they were disabled when opening the tool, please close and re-open the tool.
B9: Step 2: Click the button below the option with the desired LNG development and policy scenario.
B10: Step 3: Click the "Clear Current Scenario" button to delete the current scenario displayed.
B13: Quick Input function
B15: Step1: Select scenario
B18: Option 1: | C18: High LNG development | H18: Option 2: | I18: High LNG development | O18: Option 3: | P18: B.C. government LNG development scenario | V18: Option 4: | W18: B.C. government LNG development scenario | AC18: Option 5: | AD18: Low LNG development | AJ18: Option 6: | AK18: Low LNG development | AQ18: Option 7: | AR18: LNG/shale development matches global demand | AX18: Option 8: | AY18: Minimal LNG development
C19: No new environmental policy | I19: Significantly improved environmental policy | P19: No new environmental policy | W19: Significantly improved environmental policy | AD19: No new environmental policy | AK19: Significantly improved environmental policy | AR19: Significantly improved environmental policy | AY19: Exceptionally strong environmental policy
B21: Description: | C21: LNG Development: | D21: 3 LNG of 12 mtpa come online | H21: Description: | I21: LNG Development: | K21: 3 LNG of 12 mtpa come online | O21: Description: | P21: LNG Development: | R21: 5 LNG plants of 16.4 mtpa come online | V21: Description: | W21: LNG Development: | Y21: 5 LNG plants of 16.4 mtpa come online | AC21: Description: | AD21: LNG Development: | AF21: 1 LNG plants of 12 mtpa (2022) | AJ21: Description: | AK21: LNG Development: | AM21: 1 LNG plants of 12 mtpa (2022) | AQ21: Description: | AR21: LNG Development: | AT21: 1 LNG plant of 12 mtpa (2022) | AX21: Description: | AY21: LNG Development: | BA21: 1 LNG plant of 2.5 mtpa
D22: in 2020, 2022, 2024 | K22: in 2020, 2022, 2024 | R22: in 2018, 2020, 2022, 2024, 2026 | Y22: in 2018, 2020, 2022, 2024, 2026
C23: North American Net Exports: | D23: Constant at 2014 levels | I23: North American Net Exports: | K23: Constant at 2014 levels | P23: North American Net Exports: | R23: Constant at 2014 levels | W23: North American Net Exports: | Y23: Constant at 2014 levels | AD23: North American Net Exports: | AF23: Constant at 2014 levels | AK23: North American Net Exports: | AM23: Constant at 2014 levels | AR23: North American Net Exports: | AT23: Drops by 50% by 2040 | AY23: North American Net Exports: | BA23: Drops by 50% by 2040
C24: Source of Gas by 2030: | D24: Conventional: 15% | I24: Source of Gas by 2030: | K24: Conventional: 15% | P24: Source of Gas by 2030: | R24: Conventional: 15% | W24: Source of Gas by 2030: | Y24: Conventional: 15% | AD24: Source of Gas by 2030: | AF24: Conventional: 15% | AK24: Source of Gas by 2030: | AM24: Conventional: 15% | AR24: Source of Gas by 2030: | AT24: Conventional: 15% | AY24: Source of Gas by 2030: | BA24: Conventional: 15%
D25: Montney: 65% | K25: Montney: 65% | R25: Montney: 65% | Y25: Montney: 65% | AF25: Montney: 65% | AM25: Montney: 65% | AT25: Montney: 65% | BA25: Montney: 80%
D26: Horn River: 20% | K26: Horn River: 20% | R26: Horn River: 20% | Y26: Horn River: 20% | AF26: Horn River: 20% | AM26: Horn River: 20% | AT26: Horn River: 20% | BA26: Horn River: 5%
D27: Alberta: 0% | K27: Alberta: 0% | R27: Alberta: 0% | Y27: Alberta: 0% | AF27: Alberta: 0% | AM27: Alberta: 0% | AT27: Alberta: 0% | BA27: Alberta: 0%
C28: GHG Policy Outcomes: | D28: Current technology and practice | I28: GHG Policy Outcomes: | K28: Significant improvements | P28: GHG Policy Outcomes: | R28: Current technology and practice | W28: GHG Policy Outcomes: | Y28: Significant improvements | AD28: GHG Policy Outcomes: | AF28: Current technology and practice | AK28: GHG Policy Outcomes: | AM28: Significant improvements | AR28: GHG Policy Outcomes: | AT28: Significant improvements | AY28: GHG Policy Outcomes: | BA28: Exceptional improvements
C29: Water Policy Outcomes: | D29: Current technology and practice | I29: Water Policy Outcomes: | K29: Significant improvements | P29: Water Policy Outcomes: | R29: Current technology and practice | W29: Water Policy Outcomes: | Y29: Significant improvements | AD29: Water Policy Outcomes: | AF29: Current technology and practice | AK29: Water Policy Outcomes: | AM29: Significant improvements | AR29: Water Policy Outcomes: | AT29: Significant improvements | AY29: Water Policy Outcomes: | BA29: Exceptional improvements
C30: Wastewater Policy Outcomes: | D30: Current technology and practice | I30: Wastewater Policy Outcomes: | K30: Significant improvements | P30: Wastewater Policy Outcomes: | R30: Current technology and practice | W30: Wastewater Policy Outcomes: | Y30: Significant improvements | AD30: Wastewater Policy Outcomes: | AF30: Current technology and practice | AK30: Wastewater Policy Outcomes: | AM30: Significant improvements | AR30: Wastewater Policy Outcomes: | AT30: Significant improvements | AY30: Wastewater Policy Outcomes: | BA30: Exceptional improvements
B45: Inputs and outputs
B47: Charts | N47: Inputs + Outputs
O50: Output summary | Z50: Input summary
P53: 2015 | Q53: 2020 | R53: 2025 | S53: 2030 | T53: 2035 | U53: 2040 | V53: 2045 | W53: 2050 | Z53: Amount of gas (million m3/yr) | AB53: 2015 | AC53: 2020 | AD53: 2025 | AE53: 2030 | AF53: 2035 | AG53: 2040 | AH53: 2045 | AI53: 2050
Z54: Net Non-LNG Natural gas
O55: New wells drilled | Z55: Net LNG Gas
O56: Total wells
Z57: Source of gas
O58: Natural gas produced (million m3) | Z58: Source of Gas | AB58: 2015 | AC58: 2020 | AD58: 2025 | AE58: 2030 | AF58: 2035 | AG58: 2040 | AH58: 2045 | AI58: 2050
O59: Natural gas produced | Z59: Conventional
O60: Natural gas for LNG export | Z60: Montney
O61: Natural gas for other uses | Z61: Horn River
O62: Gas used or lost | Z62: Cordova
Z63: Liard
O64: GHG emissions (kt CO2e) | Z64: Alberta
O65: Total emissions
O66: CO2 emissions | Z66: GHG Policy (Simple GHG policy input only)
O67: CH4 emission | Z67: Simple
O68: Emissions at LNG terminals | Z68: GHG Policy
O69: By Basin | Z69: Upstream electrification
O70: Conventional | Z70: CCS upstream
O71: Montney | Z71: Leak repair
O72: Horn River | Z72: LNG terminal electrification
O73: Cordova
O74: Liard
O75: Alberta | Z75: Water policies
Z76: Water policy
O77: Fresh + waste water (million m3/yr) | Z77: Water recycling
O78: Freshwater used | Z78: Saline water use
O79: Wastewater to be disposed
Z80: Wastewater policies
O81: Land impact (hectares) | Z81: Waste water policy
O82: Incremental land disturbance | Z82: Wastewater treatment
B94: Background calculations
B96: 36 mtpa - BAU
C97: Output summary | N97: Input summary
D100: 2015 | E100: 2020 | F100: 2025 | G100: 2030 | H100: 2035 | I100: 2040 | J100: 2045 | K100: 2050 | N100: Amount of gas (million m3/yr) | P100: 2015 | Q100: 2020 | R100: 2025 | S100: 2030 | T100: 2035 | U100: 2040 | V100: 2045 | W100: 2050
N101: Net Non-LNG Natural gas | P101: 42102.85536 | Q101: 42446.01161 | R101: 42446.01161 | S101: 42446.01161 | T101: 42446.01161 | U101: 42446.01161 | V101: 42446.01161 | W101: 42446.01161
C102: New wells drilled | D102: 358.0060245 | E102: 1122.696781 | F102: 1152.997628 | G102: 786.0420206 | H102: 784.9327446 | I102: 740.6448734 | J102: 757.9910109 | K102: 793.5454407 | N102: Net LNG Gas | P102: 0 | Q102: 17293.92716 | R102: 51881.78148 | S102: 51881.78148 | T102: 51881.78148 | U102: 51881.78148 | V102: 51881.78148 | W102: 51881.78148
C103: Total wells | D103: 10410.46113 | E103: 11170.19079 | F103: 15155.70553 | G103: 17160.21304 | H103: 19198.31788 | I103: 21201.60212 | J103: 22409.00519 | K103: 21973.09217
N104: Source of gas
C105: Natural gas produced (million m3) | N105: Source of Gas | P105: 2015 | Q105: 2020 | R105: 2025 | S105: 2030 | T105: 2035 | U105: 2040 | V105: 2045 | W105: 2050
C106: Natural gas produced | D106: 46379.93391 | E106: 65857.07868 | F106: 105688.6039 | G106: 105906.8797 | H106: 106160.3696 | I106: 106352.5336 | J106: 106542.7509 | K106: 106530.7177 | N106: Conventional | P106: 0.4 | Q106: 0.3 | R106: 0.25 | S106: 0.15 | T106: 0.15 | U106: 0.15 | V106: 0.15 | W106: 0.15
C107: Natural gas for LNG export | D107: 0 | E107: 19064.75877 | F107: 58130.40754 | G107: 58250.46266 | H107: 58389.8861 | I107: 58495.57939 | J107: 58600.20192 | K107: 58593.58343 | N107: Montney | P107: 0.45 | Q107: 0.55 | R107: 0.6 | S107: 0.65 | T107: 0.65 | U107: 0.65 | V107: 0.65 | W107: 0.65
C108: Natural gas for other uses | D108: 46379.93391 | E108: 46792.31991 | F108: 47558.19641 | G108: 47656.41703 | H108: 47770.48346 | I108: 47856.95425 | J108: 47942.54901 | K108: 47937.13423 | N108: Horn River | P108: 0.15 | Q108: 0.15 | R108: 0.15 | S108: 0.2 | T108: 0.2 | U108: 0.2 | V108: 0.2 | W108: 0.2
C109: Gas used or lost | D109: 0.1015864248 | E109: 0.1023961529 | F109: 0.1204396974 | G109: 0.1227537105 | H109: 0.12544104 | I109: 0.1274782348 | J109: 0.1294947909 | K109: 0.1293672223 | N109: Cordova | P109: 0 | Q109: 0 | R109: 0 | S109: 0 | T109: 0 | U109: 0 | V109: 0 | W109: 0
N110: Liard | P110: 0 | Q110: 0 | R110: 0 | S110: 0 | T110: 0 | U110: 0 | V110: 0 | W110: 0
C111: GHG emissions (kt CO2e) | N111: Alberta | P111: 0 | Q111: 0 | R111: 0 | S111: 0 | T111: 0 | U111: 0 | V111: 0 | W111: 0
C112: Total emissions | D112: 10248.87019 | E112: 15830.21561 | F112: 26459.30158 | G112: 27478.94395 | H112: 28177.17603 | I112: 28825.82242 | J112: 29257.56166 | K112: 29136.45615
C113: CO2 emissions | D113: 8835.014786 | E113: 14120.13706 | F113: 23974.98867 | G113: 24827.93134 | H113: 25345.75001 | I113: 25818.90347 | J113: 26142.82292 | K113: 26060.75157 | N113: GHG Policy (Simple GHG policy input only)
C114: CH4 emission | D114: 1413.855403 | E114: 1710.078557 | F114: 2484.312905 | G114: 2651.012618 | H114: 2831.426021 | I114: 3006.91895 | J114: 3114.738736 | K114: 3075.704586 | N114: Simple
C115: Emissions at LNG terminals | D115: 0 | E115: 1920 | F115: 5760 | G115: 5760 | H115: 5760 | I115: 5760 | J115: 5760 | K115: 5760 | N115: GHG Policy
C116: By Basin | N116: Upstream electrification | P116: Off
C117: Conventional | D117: 5746.446946 | E117: 5596.420864 | F117: 6606.03992 | G117: 4352.081972 | H117: 4201.453029 | I117: 4184.134265 | J117: 4291.572984 | K117: 4004.117485 | N117: CCS upstream | P117: Off
C118: Montney | D118: 2805.65508 | E118: 4983.811672 | F118: 8711.481439 | G118: 10114.92717 | H118: 10832.67481 | I118: 11441.73749 | J118: 11749.02198 | K118: 11924.66402 | N118: Leak repair | P118: Off
C119: Horn River | D119: 1696.768163 | E119: 3329.983077 | F119: 5381.780219 | G119: 7251.934816 | H119: 7383.048194 | I119: 7439.950668 | J119: 7456.966692 | K119: 7447.674645 | N119: LNG terminal electrification | P119: Off
C120: Cordova | D120: 0 | E120: 0 | F120: 0 | G120: 0 | H120: 0 | I120: 0 | J120: 0 | K120: 0
C121: Liard | D121: 0 | E121: 0 | F121: 0 | G121: 0 | H121: 0 | I121: 0 | J121: 0 | K121: 0
C122: Alberta | D122: 0 | E122: 0 | F122: 0 | G122: 0 | H122: 0 | I122: 0 | J122: 0 | K122: 0 | N122: Water policies
N123: Water policy
C124: Fresh + waste water (million m3/yr) | N124: Water recycling | P124: Off
C125: Freshwater used | D125: 6.282248853 | E125: 13.30221704 | F125: 14.87800803 | G125: 16.78644882 | H125: 14.39389808 | I125: 14.12248916 | J125: 14.2252825 | K125: 14.32942747 | N125: Saline water use | P125: Off
C126: Wastewater to be disposed | D126: 2.303394668 | E126: 4.850478413 | F126: 5.387886857 | G126: 5.812394758 | H126: 4.950446568 | I126: 4.820850907 | J126: 4.857383439 | K126: 4.904502344
N127: Wastewater policies
C128: Land impact (hectares) | N128: Waste water policy
C129: Incremental land disturbance | D129: 156.8319487 | E129: 435.0006124 | F129: 454.8633842 | G129: 349.6363572 | H129: 329.5902451 | I129: 312.7489465 | J129: 318.5389041 | K129: 330.165151 | N129: Wastewater treatment | P129: Off
B134: 36 mtpa - Pol
C135: Output summary | N135: Input summary
D138: 2015 | E138: 2020 | F138: 2025 | G138: 2030 | H138: 2035 | I138: 2040 | J138: 2045 | K138: 2050 | N138: Amount of gas (million m3/yr) | P138: 2015 | Q138: 2020 | R138: 2025 | S138: 2030 | T138: 2035 | U138: 2040 | V138: 2045 | W138: 2050
N139: Net Non-LNG Natural gas | P139: 42102.85536 | Q139: 42446.01161 | R139: 42446.01161 | S139: 42446.01161 | T139: 42446.01161 | U139: 42446.01161 | V139: 42446.01161 | W139: 42446.01161
C140: New wells drilled | D140: 358.0060245 | E140: 1101.340145 | F140: 1072.496641 | G140: 736.6794079 | H140: 736.9861321 | I140: 693.4124536 | J140: 709.654002 | K140: 742.9245027 | N140: Net LNG Gas | P140: 0 | Q140: 16806.96358 | R140: 50420.89074 | S140: 50420.89074 | T140: 50420.89074 | U140: 50420.89074 | V140: 50420.89074 | W140: 50420.89074
C141: Total wells | D141: 10410.46113 | E141: 11148.83415 | F141: 14751.84668 | G141: 16479.98722 | H141: 18273.04963 | I141: 20062.51366 | J141: 21075.77114 | K141: 20583.78883
N142: Source of gas
C143: Natural gas produced (million m3) | N143: Source of Gas | P143: 2015 | Q143: 2020 | R143: 2025 | S143: 2030 | T143: 2035 | U143: 2040 | V143: 2045 | W143: 2050
C144: Natural gas produced | D144: 46379.93391 | E144: 65320.2519 | F144: 100489.8765 | G144: 100255.1061 | H144: 100191.1733 | I144: 100081.525 | J144: 99937.05215 | K144: 99717.22675 | N144: Conventional | P144: 0.4 | Q144: 0.3 | R144: 0.25 | S144: 0.15 | T144: 0.15 | U144: 0.15 | V144: 0.15 | W144: 0.15
C145: Natural gas for LNG export | D145: 0 | E145: 18527.93199 | F145: 54559.68653 | G145: 54432.221 | H145: 54397.50948 | I145: 54337.97734 | J145: 54259.53768 | K145: 54140.1863 | N145: Montney | P145: 0.45 | Q145: 0.55 | R145: 0.6 | S145: 0.65 | T145: 0.65 | U145: 0.65 | V145: 0.65 | W145: 0.65
C146: Natural gas for other uses | D146: 46379.93391 | E146: 46792.31991 | F146: 45930.18993 | G146: 45822.88513 | H146: 45793.6638 | I146: 45743.54763 | J146: 45677.51447 | K146: 45577.04045 | N146: Horn River | P146: 0.15 | Q146: 0.15 | R146: 0.15 | S146: 0.2 | T146: 0.2 | U146: 0.2 | V146: 0.2 | W146: 0.2
C147: Gas used or lost | D147: 0.1015864248 | E147: 0.1023961529 | F147: 0.0820849401 | G147: 0.07955690985 | H147: 0.07886847461 | I147: 0.07768777072 | J147: 0.07613207314 | K147: 0.07376497144 | N147: Cordova | P147: 0 | Q147: 0 | R147: 0 | S147: 0 | T147: 0 | U147: 0 | V147: 0 | W147: 0
N148: Liard | P148: 0 | Q148: 0 | R148: 0 | S148: 0 | T148: 0 | U148: 0 | V148: 0 | W148: 0
C149: GHG emissions (kt CO2e) | N149: Alberta | P149: 0 | Q149: 0 | R149: 0 | S149: 0 | T149: 0 | U149: 0 | V149: 0 | W149: 0
C150: Total emissions | D150: 10248.87019 | E150: 11919.96736 | F150: 16870.99806 | G150: 16680.61944 | H150: 16624.75333 | I150: 16493.7514 | J150: 16132.2313 | K150: 15661.60027
C151: CO2 emissions | D151: 8835.014786 | E151: 10863.05425 | F151: 15394.84616 | G151: 15120.34569 | H151: 14966.14441 | I151: 14738.54185 | J151: 14321.67845 | K151: 13880.19915 | N151: GHG Policy (Simple GHG policy input only)
C152: CH4 emission | D152: 1413.855403 | E152: 1056.913103 | F152: 1476.151894 | G152: 1560.273749 | H152: 1658.608925 | I152: 1755.209546 | J152: 1810.552853 | K152: 1781.401119 | N152: Simple
C153: Emissions at LNG terminals | D153: 0 | E153: 960 | F153: 2880 | G153: 2880 | H153: 2880 | I153: 2880 | J153: 2880 | K153: 2880 | N153: GHG Policy
C154: By Basin | N154: Upstream electrification | P154: On
C155: Conventional | D155: 5746.446946 | E155: 4676.956588 | F155: 4762.895505 | G155: 2925.559996 | H155: 2562.441256 | I155: 2356.506464 | J155: 2370.527439 | K155: 2207.632183 | N155: CCS upstream | P155: On
C156: Montney | D156: 2805.65508 | E156: 4219.276323 | F156: 6196.214113 | G156: 6917.944858 | H156: 7204.650564 | I156: 7308.784592 | J156: 7031.298951 | K156: 6806.149609 | N156: Leak repair | P156: On
C157: Horn River | D157: 1696.768163 | E157: 2063.734443 | F157: 3031.888437 | G157: 3957.114586 | H157: 3977.661514 | I157: 3948.460341 | J157: 3850.404908 | K157: 3767.818478 | N157: LNG terminal electrification | P157: On
C158: Cordova | D158: 0 | E158: 0 | F158: 0 | G158: 0 | H158: 0 | I158: 0 | J158: 0 | K158: 0
C159: Liard | D159: 0 | E159: 0 | F159: 0 | G159: 0 | H159: 0 | I159: 0 | J159: 0 | K159: 0
C160: Alberta | D160: 0 | E160: 0 | F160: 0 | G160: 0 | H160: 0 | I160: 0 | J160: 0 | K160: 0 | N160: Water policies
N161: Water policy
C162: Fresh + waste water (million m3/yr) | N162: Water recycling | P162: On
C163: Freshwater used | D163: 6.282248853 | E163: 7.363650049 | F163: 7.84031554 | G163: 8.896281944 | H163: 7.614550784 | I163: 7.449453174 | J163: 7.487350698 | K163: 7.544734684 | N163: Saline water use | P163: On
C164: Wastewater to be disposed | D164: 2.303394668 | E164: 2.684549711 | F164: 2.837055655 | G164: 3.078245654 | H164: 2.616985622 | I164: 2.541435337 | J164: 2.556174042 | K164: 2.583091457
N165: Wastewater policies
C166: Land impact (hectares) | N166: Waste water policy
C167: Incremental land disturbance | D167: 156.8319487 | E167: 427.0268465 | F167: 423.6971502 | G167: 328.0687712 | H167: 309.421261 | I167: 292.7970835 | J167: 298.1240765 | K167: 309.168099 | N167: Wastewater treatment | P167: On
B172: 82 mtpa - BAU
C173: Output summary | N173: Input summary
D176: 2015 | E176: 2020 | F176: 2025 | G176: 2030 | H176: 2035 | I176: 2040 | J176: 2045 | K176: 2050 | N176: Amount of gas (million m3/yr) | P176: 2015 | Q176: 2020 | R176: 2025 | S176: 2030 | T176: 2035 | U176: 2040 | V176: 2045 | W176: 2050
N177: Net Non-LNG Natural gas | P177: 42102.85536 | Q177: 42446.01161 | R177: 42446.01161 | S177: 42446.01161 | T177: 42446.01161 | U177: 42446.01161 | V177: 42446.01161 | W177: 42446.01161
C178: New wells drilled | D178: 358.0060245 | E178: 1793.520937 | F178: 1694.199269 | G178: 1409.289684 | H178: 1354.099128 | I178: 1265.507016 | J178: 1285.596727 | K178: 1344.389776 | N178: Net LNG Gas | P178: 0 | Q178: 47270.06757 | R178: 94540.13513 | S178: 118175.1689 | T178: 118175.1689 | U178: 118175.1689 | V178: 118175.1689 | W178: 118175.1689
C179: Total wells | D179: 10410.46113 | E179: 13405.27626 | F179: 20319.16759 | G179: 26745.53929 | H179: 31659.93999 | I179: 36125.00551 | J179: 38481.56512 | K179: 38109.4561
N180: Source of gas
C181: Natural gas produced (million m3) | N181: Source of Gas | P181: 2015 | Q181: 2020 | R181: 2025 | S181: 2030 | T181: 2035 | U181: 2040 | V181: 2045 | W181: 2050
C182: Natural gas produced | D182: 46379.93391 | E182: 99985.86975 | F182: 154220.4198 | G182: 181514.8019 | H182: 182091.4062 | I182: 182537.0292 | J182: 182876.7674 | K182: 182899.0024 | N182: Conventional | P182: 0.4 | Q182: 0.3 | R182: 0.25 | S182: 0.15 | T182: 0.15 | U182: 0.15 | V182: 0.15 | W182: 0.15
C183: Natural gas for LNG export | D183: 0 | E183: 52681.06745 | F183: 106434.2612 | G183: 133547.4083 | H183: 133971.6382 | I183: 134299.5002 | J183: 134549.4586 | K183: 134565.8177 | N183: Montney | P183: 0.45 | Q183: 0.55 | R183: 0.6 | S183: 0.65 | T183: 0.65 | U183: 0.65 | V183: 0.65 | W183: 0.65
C184: Natural gas for other uses | D184: 46379.93391 | E184: 47304.8023 | F184: 47786.15856 | G184: 47967.39361 | H184: 48119.76799 | I184: 48237.52906 | J184: 48327.3088 | K184: 48333.18467 | N184: Horn River | P184: 0.15 | Q184: 0.15 | R184: 0.15 | S184: 0.2 | T184: 0.2 | U184: 0.2 | V184: 0.2 | W184: 0.2
C185: Gas used or lost | D185: 0.1015864248 | E185: 0.1144698995 | F185: 0.1258103351 | G185: 0.1300801132 | H185: 0.133669953 | I185: 0.136444326 | J185: 0.1385594775 | K185: 0.1386979091 | N185: Cordova | P185: 0 | Q185: 0 | R185: 0 | S185: 0 | T185: 0 | U185: 0 | V185: 0 | W185: 0
N186: Liard | P186: 0 | Q186: 0 | R186: 0 | S186: 0 | T186: 0 | U186: 0 | V186: 0 | W186: 0
C187: GHG emissions (kt CO2e) | N187: Alberta | P187: 0 | Q187: 0 | R187: 0 | S187: 0 | T187: 0 | U187: 0 | V187: 0 | W187: 0
C188: Total emissions | D188: 10248.87019 | E188: 25273.55836 | F188: 40125.29246 | G188: 49521.07241 | H188: 51164.0232 | I188: 52619.17938 | J188: 53447.86064 | K188: 53364.61688
C189: CO2 emissions | D189: 8835.014786 | E189: 22984.63631 | F189: 36656.47851 | G189: 45208.15946 | H189: 46417.95072 | I189: 47481.48252 | J189: 48100.45413 | K189: 48053.29286 | N189: GHG Policy (Simple GHG policy input only)
C190: CH4 emission | D190: 1413.855403 | E190: 2288.922058 | F190: 3468.813954 | G190: 4312.912952 | H190: 4746.072482 | I190: 5137.696852 | J190: 5347.406512 | K190: 5311.324027 | N190: Simple
C191: Emissions at LNG terminals | D191: 0 | E191: 5248 | F191: 10496 | G191: 13120 | H191: 13120 | I191: 13120 | J191: 13120 | K191: 13120 | N191: GHG Policy
C192: By Basin | N192: Upstream electrification | P192: Off
C193: Conventional | D193: 5746.446946 | E193: 7634.506418 | F193: 9206.239353 | G193: 7075.924352 | H193: 7162.688496 | I193: 7337.98006 | J193: 7356.065953 | K193: 6959.001799 | N193: CCS upstream | P193: Off
C194: Montney | D194: 2805.65508 | E194: 7368.552791 | F194: 12591.41313 | G194: 16944.94083 | H194: 18242.24421 | I194: 19381.52704 | J194: 20171.92658 | K194: 20499.64976 | N194: Leak repair | P194: Off
C195: Horn River | D195: 1696.768163 | E195: 5022.499156 | F195: 7831.639984 | G195: 12380.20723 | H195: 12639.0905 | I195: 12779.67228 | J195: 12799.86811 | K195: 12785.96533 | N195: LNG terminal electrification | P195: Off
C196: Cordova | D196: 0 | E196: 0 | F196: 0 | G196: 0 | H196: 0 | I196: 0 | J196: 0 | K196: 0
C197: Liard | D197: 0 | E197: 0 | F197: 0 | G197: 0 | H197: 0 | I197: 0 | J197: 0 | K197: 0
C198: Alberta | D198: 0 | E198: 0 | F198: 0 | G198: 0 | H198: 0 | I198: 0 | J198: 0 | K198: 0 | N198: Water policies
N199: Water policy
C200: Fresh + waste water (million m3/yr) | N200: Water recycling | P200: Off
C201: Freshwater used | D201: 6.282248853 | E201: 20.50689244 | F201: 21.69154502 | G201: 29.37507603 | H201: 24.93631113 | I201: 24.2466738 | J201: 24.24734788 | K201: 24.52658676 | N201: Saline water use | P201: Off
C202: Wastewater to be disposed | D202: 2.303394668 | E202: 7.485023701 | F202: 7.860011332 | G202: 10.20986098 | H202: 8.597878128 | I202: 8.289242319 | J202: 8.259506542 | K202: 8.386848082
N203: Wastewater policies
C204: Land impact (hectares) | N204: Waste water policy
C205: Incremental land disturbance | D205: 156.8319487 | E205: 689.03945 | F205: 667.2303153 | G205: 623.8336947 | H205: 570.641436 | I205: 535.9503681 | J205: 539.9169536 | K205: 560.6764527 | N205: Wastewater treatment | P205: Off
B210: 82 mtpa - Pol
C211: Output summary | N211: Input summary
D214: 2015 | E214: 2020 | F214: 2025 | G214: 2030 | H214: 2035 | I214: 2040 | J214: 2045 | K214: 2050 | N214: Amount of gas (million m3/yr) | P214: 2015 | Q214: 2020 | R214: 2025 | S214: 2030 | T214: 2035 | U214: 2040 | V214: 2045 | W214: 2050
N215: Net Non-LNG Natural gas | P215: 42102.85536 | Q215: 42446.01161 | R215: 42446.01161 | S215: 42446.01161 | T215: 42446.01161 | U215: 42446.01161 | V215: 42446.01161 | W215: 42446.01161
C216: New wells drilled | D216: 358.0060245 | E216: 1734.506795 | F216: 1570.435707 | G216: 1308.763183 | H216: 1259.839555 | I216: 1174.975324 | J216: 1193.969052 | K216: 1247.759008 | N216: Net LNG Gas | P216: 0 | Q216: 45939.03378 | R216: 91878.06757 | S216: 114847.5845 | T216: 114847.5845 | U216: 114847.5845 | V216: 114847.5845 | W216: 114847.5845
C217: Total wells | D217: 10410.46113 | E217: 13346.26212 | F217: 19608.4591 | G217: 25411.8448 | H217: 29837.9778 | I217: 33886.60471 | J217: 35887.88695 | K217: 35394.9286
N218: Source of gas
C219: Natural gas produced (million m3) | N219: Source of Gas | P219: 2015 | Q219: 2020 | R219: 2025 | S219: 2030 | T219: 2035 | U219: 2040 | V219: 2045 | W219: 2050
C220: Natural gas produced | D220: 46379.93391 | E220: 98502.47266 | F220: 145565.6409 | G220: 170136.0451 | H220: 170247.2715 | I220: 170280.8333 | J220: 170147.2043 | K220: 169788.5024 | N220: Conventional | P220: 0.4 | Q220: 0.3 | R220: 0.25 | S220: 0.15 | T220: 0.15 | U220: 0.15 | V220: 0.15 | W220: 0.15
C221: Natural gas for LNG export | D221: 0 | E221: 51197.67037 | F221: 99567.32905 | G221: 124224.4713 | H221: 124305.683 | I221: 124330.1881 | J221: 124232.6192 | K221: 123970.7137 | N221: Montney | P221: 0.45 | Q221: 0.55 | R221: 0.6 | S221: 0.65 | T221: 0.65 | U221: 0.65 | V221: 0.65 | W221: 0.65
C222: Natural gas for other uses | D222: 46379.93391 | E222: 47304.8023 | F222: 45998.31186 | G222: 45911.57381 | H222: 45941.58848 | I222: 45950.64521 | J222: 45914.58515 | K222: 45817.78867 | N222: Horn River | P222: 0.15 | Q222: 0.15 | R222: 0.15 | S222: 0.2 | T222: 0.2 | U222: 0.2 | V222: 0.2 | W222: 0.2
C223: Gas used or lost | D223: 0.1015864248 | E223: 0.1144698995 | F223: 0.08368984771 | G223: 0.08164635641 | H223: 0.08235348244 | I223: 0.08256685292 | J223: 0.08171730173 | K223: 0.07943684068 | N223: Cordova | P223: 0 | Q223: 0 | R223: 0 | S223: 0 | T223: 0 | U223: 0 | V223: 0 | W223: 0
N224: Liard | P224: 0 | Q224: 0 | R224: 0 | S224: 0 | T224: 0 | U224: 0 | V224: 0 | W224: 0
C225: GHG emissions (kt CO2e) | N225: Alberta | P225: 0 | Q225: 0 | R225: 0 | S225: 0 | T225: 0 | U225: 0 | V225: 0 | W225: 0
C226: Total emissions | D226: 10248.87019 | E226: 18069.83163 | F226: 24881.35662 | G226: 28974.87171 | H226: 29422.00102 | I226: 29709.05694 | J226: 29351.14881 | K226: 28518.82254
C227: CO2 emissions | D227: 8835.014786 | E227: 16664.76787 | F227: 22839.51739 | G227: 26466.06616 | H227: 26670.1749 | I227: 26736.50838 | J227: 26268.70779 | K227: 25469.20664 | N227: GHG Policy (Simple GHG policy input only)
C228: CH4 emission | D228: 1413.855403 | E228: 1405.063757 | F228: 2041.83923 | G228: 2508.805549 | H228: 2751.826117 | I228: 2972.548559 | J228: 3082.441021 | K228: 3049.615908 | N228: Simple
C229: Emissions at LNG terminals | D229: 0 | E229: 2624 | F229: 5248 | G229: 6560 | H229: 6560 | I229: 6560 | J229: 6560 | K229: 6560 | N229: GHG Policy
C230: By Basin | N230: Upstream electrification | P230: On
C231: Conventional | D231: 5746.446946 | E231: 6097.308725 | F231: 6250.357038 | G231: 4430.494902 | H231: 4227.047811 | I231: 4137.197957 | J231: 4027.134361 | K231: 3801.838016 | N231: CCS upstream | P231: On
C232: Montney | D232: 2805.65508 | E232: 6248.169865 | F232: 8978.166499 | G232: 11332.34294 | H232: 11911.87467 | I232: 12280.85495 | J232: 12162.72673 | K232: 11711.69022 | N232: Leak repair | P232: On
C233: Horn River | D233: 1696.768163 | E233: 3100.353035 | F233: 4404.83308 | G233: 6652.033868 | H233: 6723.078542 | I233: 6731.004033 | J233: 6601.287724 | K233: 6445.294313 | N233: LNG terminal electrification | P233: On
C234: Cordova | D234: 0 | E234: 0 | F234: 0 | G234: 0 | H234: 0 | I234: 0 | J234: 0 | K234: 0
C235: Liard | D235: 0 | E235: 0 | F235: 0 | G235: 0 | H235: 0 | I235: 0 | J235: 0 | K235: 0
C236: Alberta | D236: 0 | E236: 0 | F236: 0 | G236: 0 | H236: 0 | I236: 0 | J236: 0 | K236: 0 | N236: Water policies
N237: Water policy
C238: Fresh + waste water (million m3/yr) | N238: Water recycling | P238: On
C239: Freshwater used | D239: 6.282248853 | E239: 11.2067206 | F239: 11.37705974 | G239: 15.42041444 | H239: 13.07830438 | I239: 12.68710365 | J239: 12.65952965 | K239: 12.80124347 | N239: Saline water use | P239: On
C240: Wastewater to be disposed | D240: 2.303394668 | E240: 4.089171946 | F240: 4.119860554 | G240: 5.356535553 | H240: 4.50658411 | I240: 4.335202765 | J240: 4.311168298 | K240: 4.378408082
N241: Wastewater policies
C242: Land impact (hectares) | N242: Waste water policy
C243: Incremental land disturbance | D243: 156.8319487 | E243: 667.0057855 | F243: 619.2003663 | G243: 580.0077692 | H243: 530.9924066 | I243: 497.685193 | J243: 501.2223499 | K243: 520.4444247 | N243: Wastewater treatment | P243: On
B248: 12 mtpa - BAU
C249: Output summary | N249: Input summary
D252: 2015 | E252: 2020 | F252: 2025 | G252: 2030 | H252: 2035 | I252: 2040 | J252: 2045 | K252: 2050 | N252: Amount of gas (million m3/yr) | P252: 2015 | Q252: 2020 | R252: 2025 | S252: 2030 | T252: 2035 | U252: 2040 | V252: 2045 | W252: 2050
N253: Net Non-LNG Natural gas | P253: 42102.85536 | Q253: 42446.01161 | R253: 42446.01161 | S253: 42446.01161 | T253: 42446.01161 | U253: 42446.01161 | V253: 42446.01161 | W253: 42446.01161
C254: New wells drilled | D254: 358.0060245 | E254: 364.2414802 | F254: 597.0127844 | G254: 472.1330415 | H254: 491.3327873 | I254: 467.2260498 | J254: 479.3021655 | K254: 491.5612059 | N254: Net LNG Gas | P254: 0 | Q254: 0 | R254: 17293.92716 | S254: 17293.92716 | T254: 17293.92716 | U254: 17293.92716 | V254: 17293.92716 | W254: 17293.92716
C255: Total wells | D255: 10410.46113 | E255: 10411.73549 | F255: 11976.66698 | G255: 12118.98784 | H255: 12628.29351 | I255: 13416.46593 | J255: 13855.42929 | K255: 13554.71516
N256: Source of gas
C257: Natural gas produced (million m3) | N257: Source of Gas | P257: 2015 | Q257: 2020 | R257: 2025 | S257: 2030 | T257: 2035 | U257: 2040 | V257: 2045 | W257: 2050
C258: Natural gas produced | D258: 46379.93391 | E258: 46792.31991 | F258: 66326.58056 | G258: 66449.34954 | H258: 66527.85252 | I258: 66586.48074 | J258: 66667.1791 | K258: 66641.07513 | N258: Conventional | P258: 0.4 | Q258: 0.3 | R258: 0.25 | S258: 0.15 | T258: 0.15 | U258: 0.15 | V258: 0.15 | W258: 0.15
C259: Natural gas for LNG export | D259: 0 | E259: 0 | F259: 19200.67339 | G259: 19236.2134 | H259: 19258.93898 | I259: 19275.91108 | J259: 19299.27219 | K259: 19291.71544 | N259: Montney | P259: 0.45 | Q259: 0.55 | R259: 0.6 | S259: 0.65 | T259: 0.65 | U259: 0.65 | V259: 0.65 | W259: 0.65
C260: Natural gas for other uses | D260: 46379.93391 | E260: 46792.31991 | F260: 47125.90717 | G260: 47213.13614 | H260: 47268.91354 | I260: 47310.56966 | J260: 47367.90691 | K260: 47349.35969 | N260: Horn River | P260: 0.15 | Q260: 0.15 | R260: 0.15 | S260: 0.2 | T260: 0.2 | U260: 0.2 | V260: 0.2 | W260: 0.2
C261: Gas used or lost | D261: 0.1015864248 | E261: 0.1023961529 | F261: 0.1102552484 | G261: 0.1123103054 | H261: 0.1136243841 | I261: 0.1146057747 | J261: 0.1159566024 | K261: 0.1155196424 | N261: Cordova | P261: 0 | Q261: 0 | R261: 0 | S261: 0 | T261: 0 | U261: 0 | V261: 0 | W261: 0
N262: Liard | P262: 0 | Q262: 0 | R262: 0 | S262: 0 | T262: 0 | U262: 0 | V262: 0 | W262: 0
C263: GHG emissions (kt CO2e) | N263: Alberta | P263: 0 | Q263: 0 | R263: 0 | S263: 0 | T263: 0 | U263: 0 | V263: 0 | W263: 0
C264: Total emissions | D264: 10248.87019 | E264: 10393.35191 | F264: 15624.80196 | G264: 15971.82316 | H264: 16161.73011 | I264: 16409.90537 | J264: 16572.47765 | K264: 16479.06554
C265: CO2 emissions | D265: 8835.014786 | E265: 8974.799458 | F265: 13854.32898 | G265: 14191.179 | H265: 14335.28601 | I265: 14514.78688 | J265: 14637.87267 | K265: 14570.86235 | N265: GHG Policy (Simple GHG policy input only)
C266: CH4 emission | D266: 1413.855403 | E266: 1418.552452 | F266: 1770.472978 | G266: 1780.644162 | H266: 1826.444101 | I266: 1895.118486 | J266: 1934.60497 | K266: 1908.203195 | N266: Simple
C267: Emissions at LNG terminals | D267: 0 | E267: 0 | F267: 1920 | G267: 1920 | H267: 1920 | I267: 1920 | J267: 1920 | K267: 1920 | N267: GHG Policy
C268: By Basin | N268: Upstream electrification | P268: Off
C269: Conventional | D269: 5746.446946 | E269: 4413.714509 | F269: 4606.990485 | G269: 2935.099092 | H269: 2660.868187 | I269: 2543.286823 | J269: 2640.643481 | K269: 2511.295824 | N269: CCS upstream | P269: Off
... 108 more rows

Sheet Input
B6: Instructions
B9: Step 1: Select amount of natural gas development
B10: A: Select one option to define amount of LNG development with the respective radio button
B11: B: Input data into the light blue cells of your selected option for LNG Development
B13: Step 2: Select amount of NON-LNG natural gas development
B14: A: Select one option to define amount of non-LNG natural gas development
B15: B: Input data into the light blue cells of your selected option for non-LNG development
B17: Step 3: Select source of gas
B18: Input total production percentages for each shale gas basin
B20: Step 4: Specify GHG policy outcomes
B21: A: Select the simple or complex policy outcomes option
B22: B: Input GHG policy outcomes into the light blue cells of selected option
B24: Step 5: Specify water use policy outcomes
B25: A: Select simple or complex water policy outcomes
B26: B: Input water policies data into the light blue cell of selected option
B28: Step 6: Specify wastewater policy outcomes
B29: A: Select simple or complex wastewater policy outcomes
B30: B: Input wastewater policies data into the light blue cell of selected option
B33: Inputs
B35: Step1: Select amount of LNG development
C37: Option chosen: | D37: 1
C39: Option 1: Select specific LNG terminals | I39: Option 2: Select an amount of LNG export | M39: Option 2: Option 2 continued
C40: Specify which LNG projects become online and at what date. Project capacities can be updated in the "Parameters + emission facrtors" tab | I40: Specify the amount of new LNG coming online in that year. Note: The large LNG proposals in the northwest range from 10 to 30 million tonnes per annum (mtpa).
C41: LNG Projects | D41: Operational | E41: Date online | I41: Year | J41: New LNG | K41: Total LNG | M41: Year | N41: New LNG | O41: Total LNG
J42: (mtpa) | K42: (mtpa) | N42: (mtpa) | O42: (mtpa)
C43: LNG Canada stage 1 | D43: Select On/Off | E43: Select year | I43: 2016 | K43: =J43 -> 0 | M43: 2033 | O43: =K59+N43 -> 0
C44: LNG Canada stage 2 | D44: Select On/Off | E44: Select year | I44: 2017 | K44: =J44+K43 -> 0 | M44: 2034 | O44: =N44+O43 -> 0
C45: Pacific NorthWest LNG stage 1 | D45: Select On/Off | E45: Select year | I45: 2018 | K45: =J45+K44 -> 0 | M45: 2035 | O45: =N45+O44 -> 0
C46: Pacific NorthWest LNG stage 2 | D46: Select On/Off | E46: Select year | I46: 2019 | K46: =J46+K45 -> 0 | M46: 2036 | O46: 0
C47: Prince Rupert LNG | D47: Select On/Off | E47: Select year | I47: 2020 | K47: =J47+K46 -> 0 | M47: 2037 | O47: 0
C48: Woodfibre | D48: Select On/Off | E48: Select year | I48: 2021 | K48: 0 | M48: 2038 | O48: 0
C49: Kitimat LNG | D49: Select On/Off | E49: Select year | I49: 2022 | K49: 0 | M49: 2039 | O49: 0
C50: Douglas Channel LNG | D50: Select On/Off | E50: Select year | I50: 2023 | K50: 0 | M50: 2040 | O50: 0
C51: WCC LNG ltd. | D51: Select On/Off | E51: Select year | I51: 2024 | K51: 0 | M51: 2041 | O51: 0
C52: Aurora LNG | D52: Select On/Off | E52: Select year | I52: 2025 | K52: 0 | M52: 2042 | O52: 0
C53: Cedar LNG | D53: Select On/Off | E53: Select year | I53: 2026 | K53: 0 | M53: 2043 | O53: 0
C54: Orca LNG | D54: Select On/Off | E54: Select year | I54: 2027 | K54: 0 | M54: 2044 | O54: 0
C55: Grassy Point LNG | D55: Select On/Off | E55: Select year | I55: 2028 | K55: 0 | M55: 2045 | O55: 0
C56: NewTimes Energy Ltd. | D56: Select On/Off | E56: Select year | I56: 2029 | K56: 0 | M56: 2046 | O56: 0
C57: Canada Stewart Energy Group | D57: Select On/Off | E57: Select year | I57: 2030 | K57: 0 | M57: 2047 | O57: 0
C58: Steelhead LNG | D58: Select On/Off | E58: Select year | I58: 2031 | K58: 0 | M58: 2048 | O58: 0
C59: Kitsault Energy Project | D59: Select On/Off | E59: Select year | I59: 2032 | K59: 0 | M59: 2049 | O59: 0
C60: Discovery LNG | D60: Select On/Off | E60: Select year | M60: 2050 | O60: 0
C61: Wespac | D61: Select On/Off | E61: Select year
C62: Triton LNG | D62: Select On/Off | E62: Select year
B66: Step 2: Select amount of Non-LNG natural gas development
C68: Option chosen: | D68: 1
C71: Option 1: Amount of Non-LNG sales gas produced | I71: Option 2: Non-LNG gas development (% change relative to 2013)
C72: Note: In 2014, BC produced 42,446 million m3 | I72: How do BC consumption levels and exports to other North American jurisdictions change from a 2013 reference level
C73: Year | D73: Amount of sales gas | I73: Year | J73: % change to B.C. consumption +
D74: in million m3 | J74: NA exports
C75: 2020 | D75: 42446.01161 | I75: 2020 | J75: 0
C76: 2025 | D76: 42446.01161 | I76: 2025 | J76: 0
C77: 2030 | D77: 42446.01161 | I77: 2030 | J77: 0
C78: 2035 | D78: 42446.01161 | I78: 2035 | J78: 0
C79: 2040 | D79: 42446.01161 | I79: 2040 | J79: 0
C80: 2045 | D80: 42446.01161 | I80: 2045 | J80: 0
C81: 2050 | D81: 42446.01161 | I81: 2050 | J81: 0
B86: Step 3: Select source of gas
C87: Enter the percentage of total gas produced from each basin for each year
C88: Note: In April 2015, the BC Oil & Gas Commission reported that Conventional contributed 30%, Montney 65% and Horn River 5%
C89: Source of Gas | D89: 2015 | E89: 2020 | F89: 2025 | G89: 2030 | H89: 2035 | I89: 2040 | J89: 2045 | K89: 2050
C90: Conventional | D90: 0.35 | E90: 0.3 | F90: 0.2 | G90: 0.15 | H90: 0.15 | I90: 0.15 | J90: 0.15 | K90: 0.15
C91: Montney | D91: 0.55 | E91: 0.6 | F91: 0.65 | G91: 0.65 | H91: 0.65 | I91: 0.65 | J91: 0.65 | K91: 0.65
C92: Horn River | D92: 0.1 | E92: 0.1 | F92: 0.15 | G92: 0.2 | H92: 0.2 | I92: 0.2 | J92: 0.2 | K92: 0.2
C93: Cordova | D93: 0 | E93: 0 | F93: 0 | G93: 0 | H93: 0 | I93: 0 | J93: 0 | K93: 0
C94: Liard | D94: 0 | E94: 0 | F94: 0 | G94: 0 | H94: 0 | I94: 0 | J94: 0 | K94: 0
C95: Alberta | D95: 0 | E95: 0 | F95: 0 | G95: 0 | H95: 0 | I95: 0 | J95: 0 | K95: 0
D96: =IF(SUM(D90:D95)=1,"","ERROR!") ->  | E96: =IF(SUM(E90:E95)=1,"","ERROR!") -> 
C97: Note: Must equal to 100%
C98: Note: this is total production, and not new production.
B101: Step 4: Specify GHG policy outcomes
C103: Option chosen: | D103: 1
C105: Option 1: Simple policy input (policies apply equally across basins) | J105: Option 2: Complex policy input (policies can be differentiated by basin)
C106: GHG Policy | D106: Active | E106: Year | F106: All/new | G106: GHG | M106: Conventional | Q106: Montney | U106: Horn River | Y106: Cordova | AC106: Liard
F107: stock | G107: reduction | J107: Policy Outcome | M107: On/Off | N107: Start Year | O107: New stock | P107: % GHG | Q107: On/Off | R107: Start Year | S107: New stock | T107: % GHG | U107: On/Off | V107: Start Year | W107: New stock | X107: % GHG | Y107: On/Off | Z107: Start Year | AA107: New stock | AB107: % GHG | AC107: On/Off | AD107: Start Year | AE107: New stock | AF107: % GHG
C108: Upstream electrification | D108: Off | E108: 2020 | F108: New | G108: 0 | O108: or all stock | P108: Reduction | S108: or all stock | T108: Reduction | W108: or all stock | X108: Reduction | AA108: or all stock | AB108: Reduction | AE108: or all stock | AF108: Reduction
C109: CCS upstream | D109: Off | E109: 2020 | F109: New | G109: 0 | J109: Electrification of motive power, production | M109: Off | N109: 2020 | O109: All | P109: 0 | Q109: Off | R109: 2020 | S109: All | T109: 0 | U109: Off | V109: 2020 | W109: All | X109: 0 | Y109: Off | Z109: 2020 | AA109: All | AB109: 0 | AC109: Off | AD109: 2020 | AE109: All | AF109: 0
C110: Leak repair | D110: Off | E110: 2020 | F110: New | G110: 0 | J110: Electrification of motive power, processing | M110: Off | N110: 2020 | O110: All | P110: 0 | Q110: Off | R110: 2020 | S110: All | T110: 0 | U110: Off | V110: 2020 | W110: All | X110: 0 | Y110: Off | Z110: 2020 | AA110: All | AB110: 0 | AC110: Off | AD110: 2020 | AE110: All | AF110: 0
C111: LNG terminal electrification | D111: Off | E111: 2020 | F111: New | G111: 0 | J111: Electrification of motive power, transmission | M111: Off | N111: 2020 | O111: All | P111: 0 | Q111: Off | R111: 2020 | S111: All | T111: 0 | U111: Off | V111: 2020 | W111: All | X111: 0 | Y111: Off | Z111: 2020 | AA111: All | AB111: 0 | AC111: Off | AD111: 2020 | AE111: All | AF111: 0
J112: Carbon capture and storage, Formation CO2 | M112: Off | N112: 2020 | O112: All | P112: 0 | Q112: Off | R112: 2020 | S112: All | T112: 0 | U112: Off | V112: 2020 | W112: All | X112: 0 | Y112: Off | Z112: 2020 | AA112: All | AB112: 0 | AC112: Off | AD112: 2020 | AE112: All | AF112: 0
J113: Reduced fugitive equipment leaks, all subsectors | M113: Off | N113: 2020 | O113: All | P113: 0 | Q113: Off | R113: 2020 | S113: All | T113: 0 | U113: Off | V113: 2020 | W113: All | X113: 0 | Y113: Off | Z113: 2020 | AA113: All | AB113: 0 | AC113: Off | AD113: 2020 | AE113: All | AF113: 0
J114: Reduced unreported venting, all subsectors | M114: Off | N114: 2020 | O114: All | P114: 0 | Q114: Off | R114: 2020 | S114: All | T114: 0 | U114: Off | V114: 2020 | W114: All | X114: 0 | Y114: Off | Z114: 2020 | AA114: All | AB114: 0 | AC114: Off | AD114: 2020 | AE114: All | AF114: 0
J115: Reduced reported venting, all subsectors | M115: Off | N115: 2020 | O115: All | P115: 0 | Q115: Off | R115: 2020 | S115: All | T115: 0 | U115: Off | V115: 2020 | W115: All | X115: 0 | Y115: Off | Z115: 2020 | AA115: All | AB115: 0 | AC115: Off | AD115: 2020 | AE115: All | AF115: 0
M117: All Basins
J118: LNG terminal policy outcome (Complex) | M118: On/Off | N118: Start Year | O118: New stock | P118: % GHG
O119: or all stock | P119: Reduction
J120: LNG terminal electrification | M120: Off | N120: 2020 | O120: All | P120: 0
B124: Step 5: Specify freshwater policy outcomes
C126: Option chosen | D126: 1
C128: Option 1: Simple freshwater policy input (policies apply equally across basins) | J128: Option 2: Complex policy input (policies can be differentiated by basin)
C129: Water policy | D129: Active | E129: Year | F129: % freshwater | J129: Water policy | L129: Conventional | O129: Montney | R129: Horn River | U129: Cordova | X129: Liard
F130: reduction | L130: Active | M130: Year | N130: % Reduction | O130: Active | P130: Year | Q130: % Reduction | R130: Active | S130: Year | T130: % Reduction | U130: Active | V130: Year | W130: % Reduction | X130: Active | Y130: Year | Z130: % Reduction
C131: Water recycling | D131: Select On/Off | E131: Select year | F131: 0 | J131: Water recycling | L131: Select On/Off | M131: Select year | N131: 0 | O131: Select On/Off | P131: Select year | Q131: 0 | R131: Select On/Off | S131: Select year | T131: 0 | U131: Select On/Off | V131: Select year | W131: 0 | X131: Select On/Off | Y131: Select year | Z131: 0
C132: Saline water use | D132: Select On/Off | E132: Select year | F132: 0 | J132: Saline water use | L132: Select On/Off | M132: Select year | N132: 0 | O132: Select On/Off | P132: Select year | Q132: 0 | R132: Select On/Off | S132: Select year | T132: 0 | U132: Select On/Off | V132: Select year | W132: 0 | X132: Select On/Off | Y132: Select year | Z132: 0
C134: Note: % saline water use is after reductions from recycling (reductions cannot be more than 100%)
C135: Note: Policies define % reduction in freshwater use.
B138: Step 6: Specify wastewater policy outcomes
C140: Option chosen | D140: 1
C142: Option 1: Simple wastewater policy input (policies apply equally across basins) | J142: Option 2: Complex wastewater policy input (policies can be differentiated by basin)
C143: Waste water policy | D143: Active | E143: Year | F143: Wastewater | J143: Wastewater policy | L143: Conventional | O143: Montney | R143: Horn River | U143: Cordova | X143: Liard
F144: treated | L144: Active | M144: Year | N144: Wastewater | O144: Active | P144: Year | Q144: Wastewater | R144: Active | S144: Year | T144: Wastewater | U144: Active | V144: Year | W144: Wastewater | X144: Active | Y144: Year | Z144: Wastewater
C145: Wastewater treatment | D145: Select On/Off | E145: Select year | F145: 0 | N145: treated | Q145: treated | T145: treated | W145: treated | Z145: treated
J146: Wastewater treatment | L146: Select On/Off | M146: Select year | N146: 0 | O146: Select On/Off | P146: Select year | Q146: 0 | R146: Select On/Off | S146: Select year | T146: 0 | U146: Select On/Off | V146: Select year | W146: 0 | X146: Select On/Off | Y146: Select year | Z146: 0
C149: Policies define % change in wastewater production
B152: Step 7: Head to the "Summary + scenario comparison" tab or another tab of interest

Sheet Summary + scenario comparison
B6: Instructions
B8: Step 1: Make sure Macros are enabled. If they were disabled when opening the tool, please close and re-open the tool.
B10: Step 2: Enter a scenario in the "Input" tab. The inputs and outputs for that scenario will be summarized immediately below these instructions.
B12: Step 3: Save the scenario by pressing on one of the "Save current scenario" buttons located below row 57. The scenarios can be named in the blue cells on top of each respective scenario button.
B14: Step 4: Repeat steps 2 and 3 to populate up to three scenarios. The information for the saved scenarios will be displayed below row 57.
B17: Input + output summary
C20: Charts | Q20: Output summary | AB20: Input summary
R23: 2015 | S23: 2020 | T23: 2025 | U23: 2030 | V23: 2035 | W23: 2040 | X23: 2045 | Y23: 2050 | AB23: Amount of gas (million m3/yr) | AD23: 2015 | AE23: 2020 | AF23: 2025 | AG23: 2030 | AH23: 2035 | AI23: 2040 | AJ23: 2045 | AK23: 2050
AB24: Net Non-LNG Natural gas | AD24: ='NG demand'!H96 -> 42102.85536 | AE24: ='NG demand'!M96 -> 42446.01161 | AF24: ='NG demand'!R96 -> 42446.01161 | AG24: ='NG demand'!W96 -> 42446.01161 | AH24: ='NG demand'!AB96 -> 42446.01161 | AI24: ='NG demand'!AG96 -> 42446.01161 | AJ24: ='NG demand'!AL96 -> 42446.01161 | AK24: ='NG demand'!AQ96 -> 42446.01161
Q25: New wells drilled | R25: ='Detailed outputs'!G17 -> 358.0060245 | S25: ='Detailed outputs'!L17 -> 379.0814383 | T25: ='Detailed outputs'!Q17 -> 318.2892425 | U25: ='Detailed outputs'!V17 -> 326.0496648 | V25: ='Detailed outputs'!AA17 -> 344.6612439 | W25: ='Detailed outputs'!AF17 -> 330.5431193 | X25: ='Detailed outputs'!AK17 -> 349.6975484 | Y25: ='Detailed outputs'!AP17 -> 349.870055 | AB25: Net LNG Gas | AD25: ='NG demand'!H76 -> 0 | AE25: ='NG demand'!M76 -> 0 | AF25: ='NG demand'!R76 -> 0 | AG25: ='NG demand'!W76 -> 0 | AH25: ='NG demand'!AB76 -> 0 | AI25: ='NG demand'!AG76 -> 0 | AJ25: ='NG demand'!AL76 -> 0 | AK25: ='NG demand'!AQ76 -> 0
Q26: Total wells | R26: ='Detailed outputs'!G18 -> 10410.46113 | S26: ='Detailed outputs'!L18 -> 10447.91393 | T26: ='Detailed outputs'!Q18 -> 10260.55596 | U26: ='Detailed outputs'!V18 -> 9495.103681 | V26: ='Detailed outputs'!AA18 -> 9343.509127 | W26: ='Detailed outputs'!AF18 -> 9546.649984 | X26: ='Detailed outputs'!AK18 -> 9511.373083 | Y26: ='Detailed outputs'!AP18 -> 9236.133958
AB27: Source of gas
Q28: Natural gas produced (million m3) | AB28: Source of Gas | AD28: 2015 | AE28: 2020 | AF28: 2025 | AG28: 2030 | AH28: 2035 | AI28: 2040 | AJ28: 2045 | AK28: 2050
Q29: Natural gas produced | R29: ='Detailed outputs'!G49 -> 46379.93391 | S29: ='Detailed outputs'!L49 -> 46551.90875 | T29: ='Detailed outputs'!Q49 -> 46592.78807 | U29: ='Detailed outputs'!V49 -> 46689.30295 | V29: ='Detailed outputs'!AA49 -> 46697.82959 | W29: ='Detailed outputs'!AF49 -> 46693.41492 | X29: ='Detailed outputs'!AK49 -> 46725.65714 | Y29: ='Detailed outputs'!AP49 -> 46682.69839 | AB29: Conventional | AD29: =Input!D90 -> 0.35 | AE29: =Input!E90 -> 0.3 | AF29: =Input!F90 -> 0.2 | AG29: =Input!G90 -> 0.15 | AH29: =Input!H90 -> 0.15 | AI29: =Input!I90 -> 0.15 | AJ29: =Input!J90 -> 0.15 | AK29: =Input!K90 -> 0.15
Q30: Natural gas for LNG export | R30: ='Detailed outputs'!G51 -> 0 | S30: ='Detailed outputs'!L51 -> 0 | T30: ='Detailed outputs'!Q51 -> 0 | U30: ='Detailed outputs'!V51 -> 0 | V30: ='Detailed outputs'!AA51 -> 0 | W30: ='Detailed outputs'!AF51 -> 0 | X30: ='Detailed outputs'!AK51 -> 0 | Y30: ='Detailed outputs'!AP51 -> 0 | AB30: Montney | AD30: =Input!D91 -> 0.55 | AE30: =Input!E91 -> 0.6 | AF30: =Input!F91 -> 0.65 | AG30: =Input!G91 -> 0.65 | AH30: =Input!H91 -> 0.65 | AI30: =Input!I91 -> 0.65 | AJ30: =Input!J91 -> 0.65 | AK30: =Input!K91 -> 0.65
Q31: Natural gas for other uses | R31: ='Detailed outputs'!G53 -> 46379.93391 | S31: ='Detailed outputs'!L53 -> 46551.90875 | T31: ='Detailed outputs'!Q53 -> 46592.78807 | U31: ='Detailed outputs'!V53 -> 46689.30295 | V31: ='Detailed outputs'!AA53 -> 46697.82959 | W31: ='Detailed outputs'!AF53 -> 46693.41492 | X31: ='Detailed outputs'!AK53 -> 46725.65714 | Y31: ='Detailed outputs'!AP53 -> 46682.69839 | AB31: Horn River | AD31: =Input!D92 -> 0.1 | AE31: =Input!E92 -> 0.1 | AF31: =Input!F92 -> 0.15 | AG31: =Input!G92 -> 0.2 | AH31: =Input!H92 -> 0.2 | AI31: =Input!I92 -> 0.2 | AJ31: =Input!J92 -> 0.2 | AK31: =Input!K92 -> 0.2
Q32: Gas used or lost | R32: ='Detailed outputs'!G55 -> 0.1015864248 | S32: ='Detailed outputs'!L55 -> 0.0967322248 | T32: ='Detailed outputs'!Q55 -> 0.09769531453 | U32: ='Detailed outputs'!V55 -> 0.09996914151 | V32: ='Detailed outputs'!AA55 -> 0.1001700235 | W32: ='Detailed outputs'!AF55 -> 0.1000660168 | X32: ='Detailed outputs'!AK55 -> 0.1008256222 | Y32: ='Detailed outputs'!AP55 -> 0.09981354239 | AB32: Cordova | AD32: =Input!D93 -> 0 | AE32: =Input!E93 -> 0 | AF32: =Input!F93 -> 0 | AG32: =Input!G93 -> 0 | AH32: =Input!H93 -> 0 | AI32: =Input!I93 -> 0 | AJ32: =Input!J93 -> 0 | AK32: =Input!K93 -> 0
AB33: Liard | AD33: =Input!D94 -> 0 | AE33: =Input!E94 -> 0 | AF33: =Input!F94 -> 0 | AG33: =Input!G94 -> 0 | AH33: =Input!H94 -> 0 | AI33: =Input!I94 -> 0 | AJ33: =Input!J94 -> 0 | AK33: =Input!K94 -> 0
Q34: GHG emissions (kt CO2e) | AB34: Alberta | AD34: =Input!D95 -> 0 | AE34: =Input!E95 -> 0 | AF34: =Input!F95 -> 0 | AG34: =Input!G95 -> 0 | AH34: =Input!H95 -> 0 | AI34: =Input!I95 -> 0 | AJ34: =Input!J95 -> 0 | AK34: =Input!K95 -> 0
Q35: Total emissions | R35: ='Detailed outputs'!G133 -> 10248.87019 | S35: ='Detailed outputs'!L133 -> 9871.156258 | T35: ='Detailed outputs'!Q133 -> 10032.64237 | U35: ='Detailed outputs'!V133 -> 10187.48815 | V35: ='Detailed outputs'!AA133 -> 10152.13848 | W35: ='Detailed outputs'!AF133 -> 10207.87021 | X35: ='Detailed outputs'!AK133 -> 10214.14387 | Y35: ='Detailed outputs'!AP133 -> 10118.51035
Q36: CO2 emissions | R36: ='Detailed outputs'!G134 -> 8835.014786 | S36: ='Detailed outputs'!L134 -> 8451.59674 | T36: ='Detailed outputs'!Q134 -> 8630.713962 | U36: ='Detailed outputs'!V134 -> 8851.059278 | V36: ='Detailed outputs'!AA134 -> 8828.308967 | W36: ='Detailed outputs'!AF134 -> 8866.774405 | X36: ='Detailed outputs'!AK134 -> 8875.234847 | Y36: ='Detailed outputs'!AP134 -> 8804.126572 | AB36: GHG Policy (Simple GHG policy input only)
Q37: CH4 emission | R37: ='Detailed outputs'!G135 -> 1413.855403 | S37: ='Detailed outputs'!L135 -> 1419.559518 | T37: ='Detailed outputs'!Q135 -> 1401.928407 | U37: ='Detailed outputs'!V135 -> 1336.428874 | V37: ='Detailed outputs'!AA135 -> 1323.829514 | W37: ='Detailed outputs'!AF135 -> 1341.095809 | X37: ='Detailed outputs'!AK135 -> 1338.909021 | Y37: ='Detailed outputs'!AP135 -> 1314.383779 | AB37: Simple
Q38: Emissions at LNG terminals | R38: ='Detailed outputs'!G138 -> 0 | S38: ='Detailed outputs'!L138 -> 0 | T38: ='Detailed outputs'!Q138 -> 0 | U38: ='Detailed outputs'!V138 -> 0 | V38: ='Detailed outputs'!AA138 -> 0 | W38: ='Detailed outputs'!AF138 -> 0 | X38: ='Detailed outputs'!AK138 -> 0 | Y38: ='Detailed outputs'!AP138 -> 0 | AB38: GHG Policy
Q39: By Basin | AB39: Upstream electrification | AD39: =IF(Input!$D$103=1,Input!$D$108,IF(Input!$D$103,2,"Complex")) -> Off
Q40: Conventional | R40: ='Detailed outputs'!G120 -> 5746.446946 | S40: ='Detailed outputs'!L120 -> 4387.496829 | T40: ='Detailed outputs'!Q120 -> 3120.417062 | U40: ='Detailed outputs'!V120 -> 2165.681133 | V40: ='Detailed outputs'!AA120 -> 1827.36854 | W40: ='Detailed outputs'!AF120 -> 1664.872621 | X40: ='Detailed outputs'!AK120 -> 1744.830279 | Y40: ='Detailed outputs'!AP120 -> 1798.756946 | AB40: CCS upstream | AD40: =IF(Input!$D$103=1,Input!$D$109,IF(Input!$D$103=2,"Complex")) -> Off
Q41: Montney | R41: ='Detailed outputs'!G122 -> 2805.65508 | S41: ='Detailed outputs'!L122 -> 3891.557434 | T41: ='Detailed outputs'!Q122 -> 4505.685278 | U41: ='Detailed outputs'!V122 -> 4817.454807 | V41: ='Detailed outputs'!AA122 -> 5084.087425 | W41: ='Detailed outputs'!AF122 -> 5274.932562 | X41: ='Detailed outputs'!AK122 -> 5197.99419 | Y41: ='Detailed outputs'!AP122 -> 5055.912908 | AB41: Leak repair | AD41: =IF(Input!$D$103=1,Input!$D$110,IF(Input!$D$103=2,"Complex")) -> Off
Q42: Horn River | R42: ='Detailed outputs'!G124 -> 1696.768163 | S42: ='Detailed outputs'!L124 -> 1592.101995 | T42: ='Detailed outputs'!Q124 -> 2406.540029 | U42: ='Detailed outputs'!V124 -> 3204.352212 | V42: ='Detailed outputs'!AA124 -> 3240.682515 | W42: ='Detailed outputs'!AF124 -> 3268.065031 | X42: ='Detailed outputs'!AK124 -> 3271.319399 | Y42: ='Detailed outputs'!AP124 -> 3263.840498 | AB42: LNG terminal electrification | AD42: =IF(Input!$D$103=1,Input!$D$111,IF(Input!$D$103=2,"Complex")) -> Off
Q43: Cordova | R43: ='Detailed outputs'!G126 -> 0 | S43: ='Detailed outputs'!L126 -> 0 | T43: ='Detailed outputs'!Q126 -> 0 | U43: ='Detailed outputs'!V126 -> 0 | V43: ='Detailed outputs'!AA126 -> 0 | W43: ='Detailed outputs'!AF126 -> 0 | X43: ='Detailed outputs'!AK126 -> 0 | Y43: ='Detailed outputs'!AP126 -> 0
Q44: Liard | R44: ='Detailed outputs'!G128 -> 0 | S44: ='Detailed outputs'!L128 -> 0 | T44: ='Detailed outputs'!Q128 -> 0 | U44: ='Detailed outputs'!V128 -> 0 | V44: ='Detailed outputs'!AA128 -> 0 | W44: ='Detailed outputs'!AF128 -> 0 | X44: ='Detailed outputs'!AK128 -> 0 | Y44: ='Detailed outputs'!AP128 -> 0
Q45: Alberta | R45: ='Alberta GHG Calcs'!M8 -> 0 | S45: ='Alberta GHG Calcs'!R8 -> 0 | T45: ='Alberta GHG Calcs'!W8 -> 0 | U45: ='Alberta GHG Calcs'!AB8 -> 0 | V45: ='Alberta GHG Calcs'!AG8 -> 0 | W45: ='Alberta GHG Calcs'!AL8 -> 0 | X45: ='Alberta GHG Calcs'!AQ8 -> 0 | Y45: ='Alberta GHG Calcs'!AV8 -> 0 | AB45: Water policies
AB46: Water policy
Q47: Fresh + waste water (million m3/yr) | AB47: Water recycling | AD47: =IF(Input!$D$126=1,Input!$D$131,IF(Input!$D$126=2,"Complex")) -> Select On/Off
Q48: Freshwater used | R48: ='Detailed outputs'!G161 -> 6.282248853 | S48: ='Detailed outputs'!L161 -> 4.617870314 | T48: ='Detailed outputs'!Q161 -> 6.111201298 | U48: ='Detailed outputs'!V161 -> 6.985313056 | V48: ='Detailed outputs'!AA161 -> 6.170097564 | W48: ='Detailed outputs'!AF161 -> 6.102359595 | X48: ='Detailed outputs'!AK161 -> 6.357201966 | Y48: ='Detailed outputs'!AP161 -> 6.416236339 | AB48: Saline water use | AD48: =IF(Input!$D$126=1,Input!$D$132,IF(Input!$D$126=2,"Complex")) -> Select On/Off
Q49: Wastewater to be disposed | R49: ='Detailed outputs'!G210 -> 2.303394668 | S49: ='Detailed outputs'!L210 -> 1.736164661 | T49: ='Detailed outputs'!Q210 -> 2.160751606 | U49: ='Detailed outputs'!V210 -> 2.368070046 | V49: ='Detailed outputs'!AA210 -> 2.100232302 | W49: ='Detailed outputs'!AF210 -> 2.074547374 | X49: ='Detailed outputs'!AK210 -> 2.18411581 | Y49: ='Detailed outputs'!AP210 -> 2.211737307
AB50: Wastewater policies
Q51: Land impact (hectares) | AB51: Waste water policy
Q52: Incremental land disturbance | R52: ='Detailed outputs'!G262 -> 156.8319487 | S52: ='Detailed outputs'!L262 -> 151.0914945 | T52: ='Detailed outputs'!Q262 -> 139.1778169 | U52: ='Detailed outputs'!V262 -> 142.1578326 | V52: ='Detailed outputs'!AA262 -> 142.3214117 | W52: ='Detailed outputs'!AF262 -> 137.6389956 | X52: ='Detailed outputs'!AK262 -> 146.2959759 | Y52: ='Detailed outputs'!AP262 -> 147.2132192 | AB52: Wastewater treatment | AD52: =IF(Input!$D$140=1,Input!$D$145,IF(Input!$D$140=2,"Complex")) -> Select On/Off
B57: Scenario comparisons
D59: Charts
P60: =C61 -> Scenario X
A61: Name Scenario X: | C61: Scenario X | Q61: Output summary | AB61: Input summary
R64: 2015 | S64: 2020 | T64: 2025 | U64: 2030 | V64: 2035 | W64: 2040 | X64: 2045 | Y64: 2050 | AB64: Amount of gas (million m3/yr) | AD64: 2015 | AE64: 2020 | AF64: 2025 | AG64: 2030 | AH64: 2035 | AI64: 2040 | AJ64: 2045 | AK64: 2050
AB65: Net Non-LNG Natural gas
Q66: New wells drilled | AB66: Net LNG Gas
Q67: Total wells
AB68: Source of gas
Q69: Natural gas produced (million m3) | AB69: Source of Gas | AD69: 2015 | AE69: 2020 | AF69: 2025 | AG69: 2030 | AH69: 2035 | AI69: 2040 | AJ69: 2045 | AK69: 2050
Q70: Natural gas produced | AB70: Conventional
Q71: Natural gas for LNG export | AB71: Montney
A72: Name Scenario Y: | C72: Scenario Y | Q72: Natural gas for other uses | AB72: Horn River
Q73: Gas used or lost | AB73: Cordova
AB74: Liard
Q75: GHG emissions (kt CO2e) | AB75: Alberta
Q76: Total emissions
Q77: CO2 emissions | AB77: GHG Policy (Simple GHG policy input only)
Q78: CH4 emission | AB78: Simple
Q79: Emissions at LNG terminals | AB79: GHG Policy
Q80: By Basin | AB80: Upstream electrification
Q81: Conventional | AB81: CCS upstream
Q82: Montney | AB82: Leak repair
A83: Name Scenario Z: | C83: Scenario Z | Q83: Horn River | AB83: LNG terminal electrification
Q84: Cordova
Q85: Liard
Q86: Alberta | AB86: Water policies
AB87: Water policy
Q88: Fresh + waste water (million m3/yr) | AB88: Water recycling
Q89: Freshwater used | AB89: Saline water use
Q90: Wastewater to be disposed
AB91: Wastewater policies
Q92: Land impact (hectares) | AB92: Waste water policy
Q93: Incremental land disturbance | AB93: Wastewater treatment
P98: =C72 -> Scenario Y
Q99: Output summary | AB99: Input summary
R102: 2015 | S102: 2020 | T102: 2025 | U102: 2030 | V102: 2035 | W102: 2040 | X102: 2045 | Y102: 2050 | AB102: Amount of gas (million m3/yr) | AD102: 2015 | AE102: 2020 | AF102: 2025 | AG102: 2030 | AH102: 2035 | AI102: 2040 | AJ102: 2045 | AK102: 2050
AB103: Net Non-LNG Natural gas
Q104: New wells drilled | AB104: Net LNG Gas
Q105: Total wells
AB106: Source of gas
Q107: Natural gas produced (million m3) | AB107: Source of Gas | AD107: 2015 | AE107: 2020 | AF107: 2025 | AG107: 2030 | AH107: 2035 | AI107: 2040 | AJ107: 2045 | AK107: 2050
Q108: Natural gas produced | AB108: Conventional
Q109: Natural gas for LNG export | AB109: Montney
Q110: Natural gas for other uses | AB110: Horn River
Q111: Gas used or lost | AB111: Cordova
AB112: Liard
Q113: GHG emissions (kt CO2e) | AB113: Alberta
Q114: Total emissions
Q115: CO2 emissions | AB115: GHG Policy (Simple GHG policy input only)
Q116: CH4 emission | AB116: Simple
Q117: Emissions at LNG terminals | AB117: GHG Policy
Q118: By Basin | AB118: Upstream electrification
Q119: Conventional | AB119: CCS upstream
Q120: Montney | AB120: Leak repair
Q121: Horn River | AB121: LNG terminal electrification
Q122: Cordova
Q123: Liard
Q124: Alberta | AB124: Water policies
AB125: Water policy
Q126: Fresh + waste water (million m3/yr) | AB126: Water recycling
Q127: Freshwater used | AB127: Saline water use
Q128: Wastewater to be disposed
AB129: Wastewater policies
Q130: Land impact (hectares) | AB130: Waste water policy
Q131: Incremental land disturbance | AB131: Wastewater treatment
P136: =C83 -> Scenario Z
Q137: Output summary | AB137: Input summary
R140: 2015 | S140: 2020 | T140: 2025 | U140: 2030 | V140: 2035 | W140: 2040 | X140: 2045 | Y140: 2050 | AB140: Amount of gas (million m3/yr) | AD140: 2015 | AE140: 2020 | AF140: 2025 | AG140: 2030 | AH140: 2035 | AI140: 2040 | AJ140: 2045 | AK140: 2050
AB141: Net Non-LNG Natural gas
Q142: New wells drilled | AB142: Net LNG Gas
Q143: Total wells
AB144: Source of gas
Q145: Natural gas produced (million m3) | AB145: Source of Gas | AD145: 2015 | AE145: 2020 | AF145: 2025 | AG145: 2030 | AH145: 2035 | AI145: 2040 | AJ145: 2045 | AK145: 2050
Q146: Natural gas produced | AB146: Conventional
Q147: Natural gas for LNG export | AB147: Montney
Q148: Natural gas for other uses | AB148: Horn River
Q149: Gas used or lost | AB149: Cordova
AB150: Liard
Q151: GHG emissions (kt CO2e) | AB151: Alberta
Q152: Total emissions
Q153: CO2 emissions | AB153: GHG Policy (Simple GHG policy input only)
Q154: CH4 emission | AB154: Simple
Q155: Emissions at LNG terminals | AB155: GHG Policy
Q156: By Basin | AB156: Upstream electrification
Q157: Conventional | AB157: CCS upstream
Q158: Montney | AB158: Leak repair
Q159: Horn River | AB159: LNG terminal electrification
Q160: Cordova
Q161: Liard
Q162: Alberta | AB162: Water policies
AB163: Water policy
Q164: Fresh + waste water (million m3/yr) | AB164: Water recycling
Q165: Freshwater used | AB165: Saline water use
Q166: Wastewater to be disposed
AB167: Wastewater policies
Q168: Land impact (hectares) | AB168: Waste water policy
Q169: Incremental land disturbance | AB169: Wastewater treatment

Sheet Numbers in context
B7: Background
B8: This tab is meant to put the potential impacts from LNG and shale gas development into context by comparing to some easy to understand metrics. In most cases, the numbers are compared against the impacts from LNG and shale gas development in the year 2030. The exceptions are the comparisons against B.C.'s GHG targets, which are compared against that year's data.
B11: Numbers in Context of B.C.
B15: GHG emissions
B16: Comparator | C16: Value | D16: Factor | E16: Unit | F16: Note/source
B17: 2030 GHG emissions from LNG and shale gas development are equivalent to X cars on the road: | C17: =('Summary + scenario comparison'!U35*1000)/'Numbers in context'!D17 -> 2144734.348 | D17: 4.75 | E17: t-CO2e/vehicle/year | F17: http://www.epa.gov/cleanenergy/energy-resources/refs.html#vehicles
B18: 2030 GHG emissions from LNG and shale gas development equivalent to per capita emissions from x many flights around the world (Boeing-777): | C18: =(('Summary + scenario comparison'!U35*1000)/'Numbers in context'!D18)*400 -> 295592.2807 | D18: 13785.86495 | E18: t-CO2e | F18: http://www.eia.gov/environment/emissions/co2_vol_mass.cfm AND http://airwaysnews.com/blog/2014/11/25/analysis-delta-order-for-a350-a330neo-hinged-on-pricing-availability/ --- assumed 13km cruising altitude
B19: 2030 GHG emissions from LNG and shale gas development as a percentage of 2012 Canadian emissions from coal-fired power plants: | C19: =('Summary + scenario comparison'!U35/1000)/('Numbers in context'!D19) -> 0.1617061611 | D19: 63 | E19: Mt-CO2e | F19: Table 9 - https://www.ec.gc.ca/ges-ghg/E0533893-A985-4640-B3A2-008D8083D17D/ETR_E%202014.pdf
B20: 2030 GHG emissions from LNG and shale gas development as a percentage of 2012 emissions from Oil Sands: | C20: =('Summary + scenario comparison'!U35/1000)/'Numbers in context'!D20 -> 0.1670080025 | D20: 61 | E20: Mt-CO2e | F20: Table 5 - https://www.ec.gc.ca/ges-ghg/E0533893-A985-4640-B3A2-008D8083D17D/ETR_E%202014.pdf
B21: 2020 GHG emissions from LNG and shale gas development as a percentage of the province's 2020 target: | C21: =('Summary + scenario comparison'!S35/1000)/'Numbers in context'!D21 -> 0.2269231324 | D21: 43.5 | E21: Mt-CO2e | F21: Based on B.C.'s 2020 climate targets of 43.5 Mt CO2e
B22: 2050 GHG emissions from LNG and shale gas development as a percentage of the province's 2050 target: | C22: =('Summary + scenario comparison'!Y35/1000)/'Numbers in context'!D22 -> 0.7783469501 | D22: 13 | E22: Mt-CO2e | F22: Based on B.C.'s 2050 climate targets of 13 Mt CO2e
B25: Water use for fracking
B26: Comparator | C26: Value | D26: Factor | E26: Unit | F26: Note/source
B27: 2030 freshwater use for fracking equivalent to annual residential water use of x Canadians: | C27: =('Summary + scenario comparison'!U48*1000000)/'Numbers in context'!D27 -> 76246.3904 | D27: 91.615 | E27: m3 | F27: http://www.ec.gc.ca/indicateurs-indicators/default.asp?lang=en&n=553CC57B-1
B28: 2030 freshwater use for for fracking would fill a line of trucks x long (km): | C28: =(('Summary + scenario comparison'!U48*1000000)*'Numbers in context'!D28)/1000 -> 2935.927077 | D28: 0.4203 | E28: m of length per 1 m3 of water | F28: http://www.cheap-diesel.com/product_146600/12000-US-Gallon-Tri-Axle-Aluminum-alloy-Diesel-Semi-Tanker-Trailers-86-13597828741.html and assuming 5m tractor cab length
B29: 2030 freshwater use for fracking as a percentage of Fort St. John's annual water use: | C29: =('Summary + scenario comparison'!U48*1000000)/'Numbers in context'!D29 -> 2.286480763 | D29: =((18600*450)*365)*0.001 -> 3055050 | E29: m3 | F29: Approximate, calculated based on reported per capita use of 450 L per day -- http://energeticcity.ca/article/news/2013/06/25/fort-st-john-water-treatment-plant-could-reach-capacity-in-5-to-10-years
B32: Wastewater produced
B33: Comparator | C33: Value | D33: Factor | E33: Unit | F33: Note/source
B34: 2030 wastewater production from fracking would fill a line of trucks x long (km): | C34: =(('Summary + scenario comparison'!U49*1000000)*'Numbers in context'!D34)/1000 -> 995.2998403 | D34: 0.4203 | E34: m of length per 1 m3 of water | F34: http://www.cheap-diesel.com/product_146600/12000-US-Gallon-Tri-Axle-Aluminum-alloy-Diesel-Semi-Tanker-Trailers-86-13597828741.html and assuming 5m tractor cab length
B35: 2030 wastewater production from fracking is equivalent to x many holding pits (temp storage): | C35: =('Summary + scenario comparison'!U49*1000000)/'Numbers in context'!D35 -> 4.954121435 | D35: 478000 | E35: m3 per holding pit | F35: Based on recent proposal for a wastewater holding pit: http://prrd.bc.ca/board/agendas/2013/2013-11-6888754040/pages/documents/09-R-13EcoWeb.Shell_14_13_ALRnfu.pdf -- obtained depth from http://nbmediacoop.org/2011/01/17/ben-parfitt/
B38: Landuse impacts
B39: Please note: the land use analysis is preliminary at this point and we are figuring out the best approaches to measure and communicate issues around land fragmentation and recognize that the simple comparators below are lacking.
B40: Comparator | C40: Value | D40: Factor | E40: Unit | F40: Note/source
B41: 2030 incremental land use impact from shale gas development is equivalent to x many soccer fields: | C41: =('Summary + scenario comparison'!U52*10000)/'Numbers in context'!D41 -> 222.1216134 | D41: 6400 | E41: m2 per field | F41: http://www.fifa.com/mm/document/affederation/generic/81/42/36/lawsofthegame_2010_11_e.pdf
B42: 2030 incremental land use impact from shale gas development is equivalent to a 4 lane highway x long (km): | C42: =('Summary + scenario comparison'!U52*10000)/'Numbers in context'!D42 -> 101.541309 | D42: 14000 | E42: m2 per km of highway | F42: Assumes 3.5m lane width
B45: Gas used and lost in the development of LNG and shale gas
B46: Comparator | C46: Value | D46: Factor | E46: Unit | F46: Note/source
B47: 2030 gas used and lost by LNG and shale gas development is enough to heat x number of Canadian homes per year: | C47: =(('Summary + scenario comparison'!U29*1000000)*'Summary + scenario comparison'!U32)/'Numbers in context'!D47 -> 1728699.827 | D47: 2700 | E47: m3 / average detached home for 1 year | F47: https://www.nrcan.gc.ca/energy/natural-gas/5641#home
B48: 2030 gas used or lost by LNG and shale gas development compared to annual natural gas consumption of all BC households: | C48: =('Summary + scenario comparison'!U29*1000000)*('Summary + scenario comparison'!U32)/D48 -> 1.965884942 | D48: 2374243494 | E48: m3 | F48: http://www.statcan.gc.ca/pub/11-526-s/2010001/t003-eng.htm and https://www.neb-one.gc.ca/nrg/tl/cnvrsntbl/cnvrsntbl-eng.html#s1ss2

Sheet Environmental pricing
B6: Background
B7: This tab allows users to explore the total amount of revenue that could be collected from pricing GHG emissions, water use and wastewater disposal. This analysis only explores the maximum gross revenue; it does not incorporate mitigation measures with costs below the environmental price or economic interaction effects between other costs (e.g. corporate income taxes) and the environmental price.
B13: Instructions
B15: Step 1: Set coverage and level of carbon price
B16: A: Select one option of carbon tax coverage
B17: B: Input the level of carbon price in a given year
B19: Step 2: Set level of water and wastewater price in a given year
B21: Carbon pricing
B23: Inputs
B25: Step 1: Set coverage and level of carbon price
C27: Option Chosen | D27: 1
C29: Insert level of carbon price
C30: Year | D30: 2015 | E30: 2020 | F30: 2025 | G30: 2030 | H30: 2035 | I30: 2040 | J30: 2045 | K30: 2050
C31: $ / t-CO2e | D31: 30 | E31: 30 | F31: 30 | G31: 30 | H31: 30 | I31: 30 | J31: 30 | K31: 30
B35: Results
B36: Emission Break down for B.C.
C37: Year | D37: 2015 | E37: 2020 | F37: 2025 | G37: 2030 | H37: 2035 | I37: 2040 | J37: 2045 | K37: 2050
C38: Combustion emissions (Mt) | D38: ='Interim inputs and outputs'!F104/1000 -> 6.689204806 | E38: ='Interim inputs and outputs'!K104/1000 -> 6.727106433 | F38: ='Interim inputs and outputs'!P104/1000 -> 6.644643064 | G38: ='Interim inputs and outputs'!U104/1000 -> 6.475166247 | H38: ='Interim inputs and outputs'!Z104/1000 -> 6.452261105 | I38: ='Interim inputs and outputs'!AE104/1000 -> 6.490881385 | J38: ='Interim inputs and outputs'!AJ104/1000 -> 6.498171743 | K38: ='Interim inputs and outputs'!AO104/1000 -> 6.428830715
C39: Non combustion emissions (Mt) | D39: ='Interim inputs and outputs'!F105/1000 -> 3.559665383 | E39: ='Interim inputs and outputs'!K105/1000 -> 3.144049825 | F39: ='Interim inputs and outputs'!P105/1000 -> 3.387999306 | G39: ='Interim inputs and outputs'!U105/1000 -> 3.712321905 | H39: ='Interim inputs and outputs'!Z105/1000 -> 3.699877375 | I39: ='Interim inputs and outputs'!AE105/1000 -> 3.716988828 | J39: ='Interim inputs and outputs'!AJ105/1000 -> 3.715972125 | K39: ='Interim inputs and outputs'!AO105/1000 -> 3.689679636
C40: Venting (CO2 + CH4) | D40: ='Interim inputs and outputs'!F106/1000 -> 2.937845382 | E40: ='Interim inputs and outputs'!K106/1000 -> 2.519962912 | F40: ='Interim inputs and outputs'!P106/1000 -> 2.769997298 | G40: ='Interim inputs and outputs'!U106/1000 -> 3.119590934 | H40: ='Interim inputs and outputs'!Z106/1000 -> 3.112212969 | I40: ='Interim inputs and outputs'!AE106/1000 -> 3.1224942 | J40: ='Interim inputs and outputs'!AJ106/1000 -> 3.122480062 | K40: ='Interim inputs and outputs'!AO106/1000 -> 3.10579575
C41: Fugitives / others | D41: ='Interim inputs and outputs'!F107/1000 -> 0.6218200008 | E41: ='Interim inputs and outputs'!K107/1000 -> 0.6240869133 | F41: ='Interim inputs and outputs'!P107/1000 -> 0.618002008 | G41: ='Interim inputs and outputs'!U107/1000 -> 0.5927309709 | H41: ='Interim inputs and outputs'!Z107/1000 -> 0.5876644067 | I41: ='Interim inputs and outputs'!AE107/1000 -> 0.5944946284 | J41: ='Interim inputs and outputs'!AJ107/1000 -> 0.593492063 | K41: ='Interim inputs and outputs'!AO107/1000 -> 0.5838838859
C42: Total emissions (Mt) | D42: ='Interim inputs and outputs'!F109/1000 -> 10.24887019 | E42: ='Interim inputs and outputs'!K109/1000 -> 9.871156258 | F42: ='Interim inputs and outputs'!P109/1000 -> 10.03264237 | G42: ='Interim inputs and outputs'!U109/1000 -> 10.18748815 | H42: ='Interim inputs and outputs'!Z109/1000 -> 10.15213848 | I42: ='Interim inputs and outputs'!AE109/1000 -> 10.20787021 | J42: ='Interim inputs and outputs'!AJ109/1000 -> 10.21414387 | K42: ='Interim inputs and outputs'!AO109/1000 -> 10.11851035
B44: Revenue for government
C45: Year | D45: 2015 | E45: 2020 | F45: 2025 | G45: 2030 | H45: 2035 | I45: 2040 | J45: 2045 | K45: 2050
C46: Revenue to government ($millions) | D46: =IF($D$27=1,D31*D38,IF($D$27=2,D31*D42,IF($D$27=3,(D38+D40)*D31,"Error"))) -> 200.6761442 | E46: =IF($D$27=1,E31*E38,IF($D$27=2,E31*E42,IF($D$27=3,(E38+E40)*E31,"Error"))) -> 201.813193 | F46: 199.3392919 | G46: 194.2549874 | H46: 193.5678332 | I46: 194.7264416 | J46: 194.9451523 | K46: 192.8649215
C47: Current policy revenue ($millions) | D47: =D38*30 -> 200.6761442 | E47: =E38*30 -> 201.813193 | F47: 199.3392919 | G47: 194.2549874 | H47: 193.5678332 | I47: 194.7264416 | J47: 194.9451523 | K47: 192.8649215
C48: Incremental revenue above current policy (millions) | D48: =D46-(D38*30) -> 0 | E48: =E46-(E38*30) -> 0 | F48: 0 | G48: 0 | H48: 0 | I48: 0 | J48: 0 | K48: 0
C49: Cost per GJ of gas produced ($/GJ) | D49: =(D46*1000000)/'Interim inputs and outputs'!F$129 -> 0.1159996798 | E49: =(E46*1000000)/'Interim inputs and outputs'!K$129 -> 0.1162259833 | F49: =(F46*1000000)/'Interim inputs and outputs'!P$129 -> 0.1147005183 | G49: =(G46*1000000)/'Interim inputs and outputs'!U$129 -> 0.1115439336 | H49: =(H46*1000000)/'Interim inputs and outputs'!Z$129 -> 0.1111290651 | I49: =(I46*1000000)/'Interim inputs and outputs'!AE$129 -> 0.1118048024 | J49: =(J46*1000000)/'Interim inputs and outputs'!AJ$129 -> 0.1118531426 | K49: =(K46*1000000)/'Interim inputs and outputs'!AO$129 -> 0.1107614063
C50: Incremental cost per GJ of gas produced ($/GJ) | D50: =(D48*1000000)/'Interim inputs and outputs'!F$129 -> 0 | E50: =(E48*1000000)/'Interim inputs and outputs'!K$129 -> 0 | F50: =(F48*1000000)/'Interim inputs and outputs'!P$129 -> 0 | G50: =(G48*1000000)/'Interim inputs and outputs'!U$129 -> 0 | H50: =(H48*1000000)/'Interim inputs and outputs'!Z$129 -> 0 | I50: =(I48*1000000)/'Interim inputs and outputs'!AE$129 -> 0 | J50: =(J48*1000000)/'Interim inputs and outputs'!AJ$129 -> 0 | K50: =(K48*1000000)/'Interim inputs and outputs'!AO$129 -> 0
B69: Water pricing
B71: Inputs
B72: Step1: Enter price per 1000 m3
C73: Year | D73: 2015 | E73: 2020 | F73: 2025 | G73: 2030 | H73: 2035 | I73: 2040 | J73: 2045 | K73: 2050
C74: $ / 1000 m3 fresh water used
C75: $ / m3 wastewater injected / disposed
B78: Results
B79: Water and wastewater volumes
C80: Year | D80: 2015 | E80: 2020 | F80: 2025 | G80: 2030 | H80: 2035 | I80: 2040 | J80: 2045 | K80: 2050
C81: Freshwater volume (million m3) | D81: ='Summary + scenario comparison'!R48 -> 6.282248853 | E81: ='Summary + scenario comparison'!S48 -> 4.617870314 | F81: ='Summary + scenario comparison'!T48 -> 6.111201298 | G81: ='Summary + scenario comparison'!U48 -> 6.985313056 | H81: ='Summary + scenario comparison'!V48 -> 6.170097564 | I81: ='Summary + scenario comparison'!W48 -> 6.102359595 | J81: ='Summary + scenario comparison'!X48 -> 6.357201966 | K81: ='Summary + scenario comparison'!Y48 -> 6.416236339
C82: Wastewater volume (million m3) | D82: ='Summary + scenario comparison'!R49 -> 2.303394668 | E82: ='Summary + scenario comparison'!S49 -> 1.736164661 | F82: ='Summary + scenario comparison'!T49 -> 2.160751606 | G82: ='Summary + scenario comparison'!U49 -> 2.368070046 | H82: ='Summary + scenario comparison'!V49 -> 2.100232302 | I82: ='Summary + scenario comparison'!W49 -> 2.074547374 | J82: ='Summary + scenario comparison'!X49 -> 2.18411581 | K82: ='Summary + scenario comparison'!Y49 -> 2.211737307
B84: Revenue for government
C85: Year | D85: 2015 | E85: 2020 | F85: 2025 | G85: 2030 | H85: 2035 | I85: 2040 | J85: 2045 | K85: 2050
C86: $ for fresh water ($ millions) | D86: =(D74/1000)*D81 -> 0 | E86: 0 | F86: 0 | G86: 0 | H86: 0 | I86: 0 | J86: 0 | K86: 0
C87: $ for discarded water ($ millions) | D87: 0 | E87: 0 | F87: 0 | G87: 0 | H87: 0 | I87: 0 | J87: 0 | K87: 0

Sheet Methane sensitivity
B6: Background
B7: Methane (CH4) is an important component of the GHGs from B.C.'s natural gas sector. How significant it is in terms of carbon dioxide equivalents depends on the volume of methane emitted (or the leakage rate), the global warming potential of methane, and the time horizon being considered. This tab enables users to understand the implications of changing those parameters. The methane leakage numbers calculated in this tool are based on best data available for B.C. The data shows methane leakage rates around 0.2%, lower than what is often cited. Other studies find methane leakage rates over a comparable scope of ~1%-2.5% and higher. Furthermore, the global warming potential of methane is widely discussed. The model's base GWP value is 21 based on a 100 year time frame. Until recently, this value reflected the guidance of the IPCC. However, that guidance may be altered to 25 and 30 in the near future to reflect improved scientific understanding.
B16: Instructions:
B18: Step 1: Enter a scenario in the "Input" tab.
B20: Step 2: Adjust the global warming potential and the CH4 leakage rates by using the drop-down menus below
B22: Inputs
C24: Global warming potential | G24: Leakage rate
C25: Choose GWP | G25: Current data
B28: Results
B30: Year | C30: 2015 | D30: 2020 | E30: 2025 | F30: 2030 | G30: 2035 | H30: 2040 | I30: 2045 | J30: 2050
B31: Leakage rate | C31: =IF($G$25=D100,'Interim inputs and outputs'!F120,G25) -> 0.002073755428 | D31: =IF($G$25=D100,'Interim inputs and outputs'!K120,$G$25) -> 0.002074429971 | E31: =IF($G$25=$D$100,'Interim inputs and outputs'!P120,$G$25) -> 0.002046867838 | F31: =IF($G$25=$D$100,'Interim inputs and outputs'!U120,$G$25) -> 0.00194720253 | G31: =IF($G$25=$D$100,'Interim inputs and outputs'!Z120,'Methane sensitivity'!$G$25) -> 0.001928492829 | H31: =IF($G$25=$D$100,'Interim inputs and outputs'!AE120,'Methane sensitivity'!$G$25) -> 0.001953830268 | I31: =IF($G$25=$D$100,'Interim inputs and outputs'!AJ120,'Methane sensitivity'!$G$25) -> 0.001949298349 | J31: =IF($G$25=$D$100,'Interim inputs and outputs'!AO120,'Methane sensitivity'!$G$25) -> 0.001915353345
B33: Emissions in base case (kt CO2e)
B34: Total GHG | C34: ='Summary + scenario comparison'!R35 -> 10248.87019 | D34: ='Summary + scenario comparison'!S35 -> 9871.156258 | E34: ='Summary + scenario comparison'!T35 -> 10032.64237 | F34: ='Summary + scenario comparison'!U35 -> 10187.48815 | G34: ='Summary + scenario comparison'!V35 -> 10152.13848 | H34: ='Summary + scenario comparison'!W35 -> 10207.87021 | I34: ='Summary + scenario comparison'!X35 -> 10214.14387 | J34: ='Summary + scenario comparison'!Y35 -> 10118.51035
B35: CH4 emissions | C35: ='Summary + scenario comparison'!R37 -> 1413.855403 | D35: ='Summary + scenario comparison'!S37 -> 1419.559518 | E35: ='Summary + scenario comparison'!T37 -> 1401.928407 | F35: ='Summary + scenario comparison'!U37 -> 1336.428874 | G35: ='Summary + scenario comparison'!V37 -> 1323.829514 | H35: ='Summary + scenario comparison'!W37 -> 1341.095809 | I35: ='Summary + scenario comparison'!X37 -> 1338.909021 | J35: ='Summary + scenario comparison'!Y37 -> 1314.383779
B36: CH4 emissions in CH4 | C36: ='Detailed outputs'!G136 -> 67.32644778 | D36: ='Detailed outputs'!L136 -> 67.5980723 | E36: ='Detailed outputs'!Q136 -> 66.75849557 | F36: ='Detailed outputs'!V136 -> 63.63947019 | G36: ='Detailed outputs'!AA136 -> 63.03950066 | H36: ='Detailed outputs'!AF136 -> 63.86170517 | I36: ='Detailed outputs'!AK136 -> 63.75757243 | J36: ='Detailed outputs'!AP136 -> 62.58970377
B38: Emissions in chosen sensitivity scenario (kt CO2e)
B39: Total GHG | C39: =C40+C109 -> 
B40: CH4 emissions | C40: =IF($G$25=$D$100,(C36*$C$25),(C36*($G$25/C108)*$C$25)) -> 
B97: Background info and calculations (hidden)
B98: Validate
B99: Choose yrs | C99: Choose GWP | D99: Choose CH4 leak rate
B100: 20 yrs | C100: 21 | D100: Current data
B101: 100 yrs | C101: 25 | D101: 0.005
C102: 30 | D102: 0.01
C103: 85 | D103: 0.015
D104: 0.025
D105: 0.035
B107: Background calcs
B108: Set leak rate | C108: ='Interim inputs and outputs'!F120 -> 0.002073755428 | D108: ='Interim inputs and outputs'!K120 -> 0.002074429971 | E108: ='Interim inputs and outputs'!P120 -> 0.002046867838 | F108: ='Interim inputs and outputs'!U120 -> 0.00194720253 | G108: ='Interim inputs and outputs'!Z120 -> 0.001928492829 | H108: ='Interim inputs and outputs'!AD120 -> 0.001929609216 | I108: ='Interim inputs and outputs'!AJ120 -> 0.001949298349 | J108: ='Interim inputs and outputs'!AO120 -> 0.001915353345
B109: Only CO2 emissions (HIDE) | C109: ='Summary + scenario comparison'!R36 -> 8835.014786 | D109: ='Summary + scenario comparison'!S36 -> 8451.59674 | E109: ='Summary + scenario comparison'!T36 -> 8630.713962 | F109: ='Summary + scenario comparison'!U36 -> 8851.059278 | G109: ='Summary + scenario comparison'!V36 -> 8828.308967 | H109: ='Summary + scenario comparison'!W36 -> 8866.774405 | I109: ='Summary + scenario comparison'!X36 -> 8875.234847 | J109: ='Summary + scenario comparison'!Y36 -> 8804.126572

Sheet Detailed outputs
B6: Overview
B7: This tab gives detailed results:
B8: Wells drilled data is found below row 13
B9: Gas produced data is found below row 47
B10: GHG emissions data is found below row 77
B11: Freshwater use data is found below row 158
B12: Wastewater production data is found below row 205
B13: Landuse impact dara is found below row 253
B15: Wells drilled in B.C.
B16: Year | C16: 2011 | D16: 2012 | E16: 2013 | F16: 2014 | G16: 2015 | H16: 2016 | I16: 2017 | J16: 2018 | K16: 2019 | L16: 2020 | M16: 2021 | N16: 2022 | O16: 2023 | P16: 2024 | Q16: 2025 | R16: 2026 | S16: 2027 | T16: 2028 | U16: 2029 | V16: 2030 | W16: 2031 | X16: 2032 | Y16: 2033 | Z16: 2034 | AA16: 2035 | AB16: 2036 | AC16: 2037 | AD16: 2038 | AE16: 2039 | AF16: 2040 | AG16: 2041 | AH16: 2042 | AI16: 2043 | AJ16: 2044 | AK16: 2045 | AL16: 2046 | AM16: 2047 | AN16: 2048 | AO16: 2049 | AP16: 2050
B17: New wells drilled | C17: ='Stock Turnover Model'!AB50 -> 664.8780254 | D17: ='Stock Turnover Model'!AC50 -> 402.1646591 | E17: ='Stock Turnover Model'!AD50 -> 528.2039545 | F17: ='Stock Turnover Model'!AE50 -> 499.0997898 | G17: ='Stock Turnover Model'!AF50 -> 358.0060245 | H17: ='Stock Turnover Model'!AG50 -> 430.2989048 | I17: ='Stock Turnover Model'!AH50 -> 365.1817868 | J17: ='Stock Turnover Model'!AI50 -> 372.821601 | K17: ='Stock Turnover Model'!AJ50 -> 375.5464824 | L17: ='Stock Turnover Model'!AK50 -> 379.0814383 | M17: ='Stock Turnover Model'!AL50 -> 355.0663212 | N17: ='Stock Turnover Model'!AM50 -> 344.4581242 | O17: ='Stock Turnover Model'!AN50 -> 338.1909787 | P17: ='Stock Turnover Model'!AO50 -> 329.2189456 | Q17: ='Stock Turnover Model'!AP50 -> 318.2892425 | R17: ='Stock Turnover Model'!AQ50 -> 332.2310602 | S17: ='Stock Turnover Model'!AR50 -> 335.3571133 | T17: ='Stock Turnover Model'!AS50 -> 323.7523034 | U17: ='Stock Turnover Model'!AT50 -> 326.7722785 | V17: ='Stock Turnover Model'!AU50 -> 326.0496648 | W17: ='Stock Turnover Model'!AV50 -> 348.5772799 | X17: ='Stock Turnover Model'!AW50 -> 336.0163329 | Y17: ='Stock Turnover Model'!AX50 -> 339.0661365 | Z17: ='Stock Turnover Model'!AY50 -> 339.8631947 | AA17: ='Stock Turnover Model'!AZ50 -> 344.6612439 | AB17: ='Stock Turnover Model'!BA50 -> 355.2141409 | AC17: ='Stock Turnover Model'!BB50 -> 343.0864538 | AD17: ='Stock Turnover Model'!BC50 -> 344.4321043 | AE17: ='Stock Turnover Model'!BD50 -> 340.088567 | AF17: ='Stock Turnover Model'!BE50 -> 330.5431193 | AG17: ='Stock Turnover Model'!BF50 -> 327.1206266 | AH17: ='Stock Turnover Model'!BG50 -> 332.5283123 | AI17: ='Stock Turnover Model'!BH50 -> 339.4915733 | AJ17: ='Stock Turnover Model'!BI50 -> 345.680762 | AK17: ='Stock Turnover Model'!BJ50 -> 349.6975484 | AL17: ='Stock Turnover Model'!BK50 -> 357.1704027 | AM17: ='Stock Turnover Model'!BL50 -> 353.7050998 | AN17: ='Stock Turnover Model'!BM50 -> 352.628567 | AO17: ='Stock Turnover Model'!BN50 -> 351.3797465 | AP17: ='Stock Turnover Model'!BO50 -> 349.870055
B18: Total Wells | C18: ='Stock Turnover Model'!AB60 -> 9678.539898 | D18: ='Stock Turnover Model'!AC60 -> 9827.013223 | E18: ='Stock Turnover Model'!AD60 -> 10109.13752 | F18: ='Stock Turnover Model'!AE60 -> 10257.19721 | G18: ='Stock Turnover Model'!AF60 -> 10410.46113 | H18: ='Stock Turnover Model'!AG60 -> 10429.0732 | I18: ='Stock Turnover Model'!AH60 -> 10466.56259 | J18: ='Stock Turnover Model'!AI60 -> 10505.07115 | K18: ='Stock Turnover Model'!AJ60 -> 10505.34949 | L18: ='Stock Turnover Model'!AK60 -> 10447.91393 | M18: ='Stock Turnover Model'!AL60 -> 10411.05537 | N18: ='Stock Turnover Model'!AM60 -> 10384.09 | O18: ='Stock Turnover Model'!AN60 -> 10313.16595 | P18: ='Stock Turnover Model'!AO60 -> 10263.64319 | Q18: ='Stock Turnover Model'!AP60 -> 10260.55596 | R18: ='Stock Turnover Model'!AQ60 -> 10061.38738 | S18: ='Stock Turnover Model'!AR60 -> 9843.644147 | T18: ='Stock Turnover Model'!AS60 -> 9814.391672 | U18: ='Stock Turnover Model'!AT60 -> 9660.601855 | V18: ='Stock Turnover Model'!AU60 -> 9495.103681 | W18: ='Stock Turnover Model'!AV60 -> 9265.825359 | X18: ='Stock Turnover Model'!AW60 -> 9358.005292 | Y18: ='Stock Turnover Model'!AX60 -> 9376.265137 | Z18: ='Stock Turnover Model'!AY60 -> 9392.067327 | AA18: ='Stock Turnover Model'!AZ60 -> 9343.509127 | AB18: ='Stock Turnover Model'!BA60 -> 9169.109887 | AC18: ='Stock Turnover Model'!BB60 -> 9250.831343 | AD18: ='Stock Turnover Model'!BC60 -> 9271.540439 | AE18: ='Stock Turnover Model'!BD60 -> 9351.296872 | AF18: ='Stock Turnover Model'!BE60 -> 9546.649984 | AG18: ='Stock Turnover Model'!BF60 -> 9729.377397 | AH18: ='Stock Turnover Model'!BG60 -> 9776.457702 | AI18: ='Stock Turnover Model'!BH60 -> 9726.943463 | AJ18: ='Stock Turnover Model'!BI60 -> 9624.594592 | AK18: ='Stock Turnover Model'!BJ60 -> 9511.373083 | AL18: ='Stock Turnover Model'!BK60 -> 9335.062978 | AM18: ='Stock Turnover Model'!BL60 -> 9274.602258 | AN18: ='Stock Turnover Model'!BM60 -> 9241.245368 | AO18: ='Stock Turnover Model'!BN60 -> 9229.112863 | AP18: ='Stock Turnover Model'!BO60 -> 9236.133958
B20: New wells by Basin
B21: Conventional | C21: ='Stock Turnover Model'!AB44 -> 451.7302111 | D21: ='Stock Turnover Model'!AC44 -> 179.9427534 | E21: ='Stock Turnover Model'!AD44 -> 224.0745128 | F21: ='Stock Turnover Model'!AE44 -> 147.3615573 | G21: ='Stock Turnover Model'!AF44 -> 3.958741689 | H21: ='Stock Turnover Model'!AG44 -> 0 | I21: ='Stock Turnover Model'!AH44 -> 36.91102429 | J21: ='Stock Turnover Model'!AI44 -> 64.67085056 | K21: ='Stock Turnover Model'!AJ44 -> 79.60854454 | L21: ='Stock Turnover Model'!AK44 -> 91.13116697 | M21: ='Stock Turnover Model'!AL44 -> 66.55552964 | N21: ='Stock Turnover Model'!AM44 -> 55.77670581 | O21: ='Stock Turnover Model'!AN44 -> 48.9749786 | P21: ='Stock Turnover Model'!AO44 -> 39.01013568 | Q21: ='Stock Turnover Model'!AP44 -> 26.52780511 | R21: ='Stock Turnover Model'!AQ44 -> 55.30277962 | S21: ='Stock Turnover Model'!AR44 -> 63.5452656 | T21: ='Stock Turnover Model'!AS44 -> 55.50256059 | U21: ='Stock Turnover Model'!AT44 -> 60.46154589 | V21: ='Stock Turnover Model'!AU44 -> 59.57375103 | W21: ='Stock Turnover Model'!AV44 -> 91.22299964 | X21: ='Stock Turnover Model'!AW44 -> 84.70863606 | Y21: ='Stock Turnover Model'!AX44 -> 91.76012788 | Z21: ='Stock Turnover Model'!AY44 -> 96.02672865 | AA21: ='Stock Turnover Model'!AZ44 -> 104.0067746 | AB21: ='Stock Turnover Model'!BA44 -> 115.6421978 | AC21: ='Stock Turnover Model'!BB44 -> 105.8656213 | AD21: ='Stock Turnover Model'!BC44 -> 107.6325101 | AE21: ='Stock Turnover Model'!BD44 -> 103.9078287 | AF21: ='Stock Turnover Model'!BE44 -> 94.20225374 | AG21: ='Stock Turnover Model'!BF44 -> 84.11438521 | AH21: ='Stock Turnover Model'!BG44 -> 86.67712891 | AI21: ='Stock Turnover Model'!BH44 -> 87.34369916 | AJ21: ='Stock Turnover Model'!BI44 -> 87.81364643 | AK21: ='Stock Turnover Model'!BJ44 -> 88.36121591 | AL21: ='Stock Turnover Model'!BK44 -> 86.91100169 | AM21: ='Stock Turnover Model'!BL44 -> 85.5422039 | AN21: ='Stock Turnover Model'!BM44 -> 84.37305984 | AO21: ='Stock Turnover Model'!BN44 -> 82.95100815 | AP21: ='Stock Turnover Model'!BO44 -> 81.23584663
B22: Montney | C22: ='Stock Turnover Model'!AB45 -> 189.4242435 | D22: ='Stock Turnover Model'!AC45 -> 196.1334165 | E22: ='Stock Turnover Model'!AD45 -> 268.8083075 | F22: ='Stock Turnover Model'!AE45 -> 309.9133403 | G22: ='Stock Turnover Model'!AF45 -> 310.1629717 | H22: ='Stock Turnover Model'!AG45 -> 402.2832342 | I22: ='Stock Turnover Model'!AH45 -> 298.8243783 | J22: ='Stock Turnover Model'!AI45 -> 279.1743127 | K22: ='Stock Turnover Model'!AJ45 -> 267.4611833 | L22: ='Stock Turnover Model'!AK45 -> 259.8544942 | M22: ='Stock Turnover Model'!AL45 -> 252.8619298 | N22: ='Stock Turnover Model'!AM45 -> 249.1011914 | O22: ='Stock Turnover Model'!AN45 -> 246.2497566 | P22: ='Stock Turnover Model'!AO45 -> 244.0385064 | Q22: ='Stock Turnover Model'!AP45 -> 242.5120124 | R22: ='Stock Turnover Model'!AQ45 -> 224.5247147 | S22: ='Stock Turnover Model'!AR45 -> 216.285193 | T22: ='Stock Turnover Model'!AS45 -> 209.7419949 | U22: ='Stock Turnover Model'!AT45 -> 204.6858139 | V22: ='Stock Turnover Model'!AU45 -> 201.8341697 | W22: ='Stock Turnover Model'!AV45 -> 197.7895448 | X22: ='Stock Turnover Model'!AW45 -> 193.471531 | Y22: ='Stock Turnover Model'!AX45 -> 190.2650764 | Z22: ='Stock Turnover Model'!AY45 -> 187.3698051 | AA22: ='Stock Turnover Model'!AZ45 -> 184.5948388 | AB22: ='Stock Turnover Model'!BA45 -> 183.8265824 | AC22: ='Stock Turnover Model'!BB45 -> 181.5996906 | AD22: ='Stock Turnover Model'!BC45 -> 181.1591808 | AE22: ='Stock Turnover Model'!BD45 -> 180.5266395 | AF22: ='Stock Turnover Model'!BE45 -> 180.6218488 | AG22: ='Stock Turnover Model'!BF45 -> 187.1684214 | AH22: ='Stock Turnover Model'!BG45 -> 189.8959101 | AI22: ='Stock Turnover Model'!BH45 -> 196.1112424 | AJ22: ='Stock Turnover Model'!BI45 -> 201.7591586 | AK22: ='Stock Turnover Model'!BJ45 -> 205.1520153 | AL22: ='Stock Turnover Model'!BK45 -> 213.9907859 | AM22: ='Stock Turnover Model'!BL45 -> 211.9723771 | AN22: ='Stock Turnover Model'!BM45 -> 212.0859425 | AO22: ='Stock Turnover Model'!BN45 -> 212.2750759 | AP22: ='Stock Turnover Model'!BO45 -> 212.4936334
B23: Horn River | C23: ='Stock Turnover Model'!AB46 -> 23.72357081 | D23: ='Stock Turnover Model'!AC46 -> 26.08848924 | E23: ='Stock Turnover Model'!AD46 -> 35.3211342 | F23: ='Stock Turnover Model'!AE46 -> 41.82489212 | G23: ='Stock Turnover Model'!AF46 -> 43.88431116 | H23: ='Stock Turnover Model'!AG46 -> 28.01567058 | I23: ='Stock Turnover Model'!AH46 -> 29.44638421 | J23: ='Stock Turnover Model'!AI46 -> 28.97643765 | K23: ='Stock Turnover Model'!AJ46 -> 28.47675457 | L23: ='Stock Turnover Model'!AK46 -> 28.09577714 | M23: ='Stock Turnover Model'!AL46 -> 35.64886167 | N23: ='Stock Turnover Model'!AM46 -> 39.58022698 | O23: ='Stock Turnover Model'!AN46 -> 42.96624347 | P23: ='Stock Turnover Model'!AO46 -> 46.17030353 | Q23: ='Stock Turnover Model'!AP46 -> 49.24942495 | R23: ='Stock Turnover Model'!AQ46 -> 52.40356595 | S23: ='Stock Turnover Model'!AR46 -> 55.52665469 | T23: ='Stock Turnover Model'!AS46 -> 58.50774792 | U23: ='Stock Turnover Model'!AT46 -> 61.6249187 | V23: ='Stock Turnover Model'!AU46 -> 64.64174407 | W23: ='Stock Turnover Model'!AV46 -> 59.56473542 | X23: ='Stock Turnover Model'!AW46 -> 57.83616587 | Y23: ='Stock Turnover Model'!AX46 -> 57.04093216 | Z23: ='Stock Turnover Model'!AY46 -> 56.46666096 | AA23: ='Stock Turnover Model'!AZ46 -> 56.05963054 | AB23: ='Stock Turnover Model'!BA46 -> 55.7453607 | AC23: ='Stock Turnover Model'!BB46 -> 55.62114198 | AD23: ='Stock Turnover Model'!BC46 -> 55.64041338 | AE23: ='Stock Turnover Model'!BD46 -> 55.65409874 | AF23: ='Stock Turnover Model'!BE46 -> 55.71901671 | AG23: ='Stock Turnover Model'!BF46 -> 55.83781994 | AH23: ='Stock Turnover Model'!BG46 -> 55.95527326 | AI23: ='Stock Turnover Model'!BH46 -> 56.03663181 | AJ23: ='Stock Turnover Model'!BI46 -> 56.10795698 | AK23: ='Stock Turnover Model'!BJ46 -> 56.18431723 | AL23: ='Stock Turnover Model'!BK46 -> 56.26861506 | AM23: ='Stock Turnover Model'!BL46 -> 56.19051877 | AN23: ='Stock Turnover Model'!BM46 -> 56.16956462 | AO23: ='Stock Turnover Model'!BN46 -> 56.15366244 | AP23: ='Stock Turnover Model'!BO46 -> 56.14057504
B24: Cordova | C24: ='Stock Turnover Model'!AB47 -> 0 | D24: ='Stock Turnover Model'!AC47 -> 0 | E24: ='Stock Turnover Model'!AD47 -> 0 | F24: ='Stock Turnover Model'!AE47 -> 0 | G24: ='Stock Turnover Model'!AF47 -> 0 | H24: ='Stock Turnover Model'!AG47 -> 0 | I24: ='Stock Turnover Model'!AH47 -> 0 | J24: ='Stock Turnover Model'!AI47 -> 0 | K24: ='Stock Turnover Model'!AJ47 -> 0 | L24: ='Stock Turnover Model'!AK47 -> 0 | M24: ='Stock Turnover Model'!AL47 -> 0 | N24: ='Stock Turnover Model'!AM47 -> 0 | O24: ='Stock Turnover Model'!AN47 -> 0 | P24: ='Stock Turnover Model'!AO47 -> 0 | Q24: ='Stock Turnover Model'!AP47 -> 0 | R24: ='Stock Turnover Model'!AQ47 -> 0 | S24: ='Stock Turnover Model'!AR47 -> 0 | T24: ='Stock Turnover Model'!AS47 -> 0 | U24: ='Stock Turnover Model'!AT47 -> 0 | V24: ='Stock Turnover Model'!AU47 -> 0 | W24: ='Stock Turnover Model'!AV47 -> 0 | X24: ='Stock Turnover Model'!AW47 -> 0 | Y24: ='Stock Turnover Model'!AX47 -> 0 | Z24: ='Stock Turnover Model'!AY47 -> 0 | AA24: ='Stock Turnover Model'!AZ47 -> 0 | AB24: ='Stock Turnover Model'!BA47 -> 0 | AC24: ='Stock Turnover Model'!BB47 -> 0 | AD24: ='Stock Turnover Model'!BC47 -> 0 | AE24: ='Stock Turnover Model'!BD47 -> 0 | AF24: ='Stock Turnover Model'!BE47 -> 0 | AG24: ='Stock Turnover Model'!BF47 -> 0 | AH24: ='Stock Turnover Model'!BG47 -> 0 | AI24: ='Stock Turnover Model'!BH47 -> 0 | AJ24: ='Stock Turnover Model'!BI47 -> 0 | AK24: ='Stock Turnover Model'!BJ47 -> 0 | AL24: ='Stock Turnover Model'!BK47 -> 0 | AM24: ='Stock Turnover Model'!BL47 -> 0 | AN24: ='Stock Turnover Model'!BM47 -> 0 | AO24: ='Stock Turnover Model'!BN47 -> 0 | AP24: ='Stock Turnover Model'!BO47 -> 0
B25: Liard | C25: ='Stock Turnover Model'!AB48 -> 0 | D25: ='Stock Turnover Model'!AC48 -> 0 | E25: ='Stock Turnover Model'!AD48 -> 0 | F25: ='Stock Turnover Model'!AE48 -> 0 | G25: ='Stock Turnover Model'!AF48 -> 0 | H25: ='Stock Turnover Model'!AG48 -> 0 | I25: ='Stock Turnover Model'!AH48 -> 0 | J25: ='Stock Turnover Model'!AI48 -> 0 | K25: ='Stock Turnover Model'!AJ48 -> 0 | L25: ='Stock Turnover Model'!AK48 -> 0 | M25: ='Stock Turnover Model'!AL48 -> 0 | N25: ='Stock Turnover Model'!AM48 -> 0 | O25: ='Stock Turnover Model'!AN48 -> 0 | P25: ='Stock Turnover Model'!AO48 -> 0 | Q25: ='Stock Turnover Model'!AP48 -> 0 | R25: ='Stock Turnover Model'!AQ48 -> 0 | S25: ='Stock Turnover Model'!AR48 -> 0 | T25: ='Stock Turnover Model'!AS48 -> 0 | U25: ='Stock Turnover Model'!AT48 -> 0 | V25: ='Stock Turnover Model'!AU48 -> 0 | W25: ='Stock Turnover Model'!AV48 -> 0 | X25: ='Stock Turnover Model'!AW48 -> 0 | Y25: ='Stock Turnover Model'!AX48 -> 0 | Z25: ='Stock Turnover Model'!AY48 -> 0 | AA25: ='Stock Turnover Model'!AZ48 -> 0 | AB25: ='Stock Turnover Model'!BA48 -> 0 | AC25: ='Stock Turnover Model'!BB48 -> 0 | AD25: ='Stock Turnover Model'!BC48 -> 0 | AE25: ='Stock Turnover Model'!BD48 -> 0 | AF25: ='Stock Turnover Model'!BE48 -> 0 | AG25: ='Stock Turnover Model'!BF48 -> 0 | AH25: ='Stock Turnover Model'!BG48 -> 0 | AI25: ='Stock Turnover Model'!BH48 -> 0 | AJ25: ='Stock Turnover Model'!BI48 -> 0 | AK25: ='Stock Turnover Model'!BJ48 -> 0 | AL25: ='Stock Turnover Model'!BK48 -> 0 | AM25: ='Stock Turnover Model'!BL48 -> 0 | AN25: ='Stock Turnover Model'!BM48 -> 0 | AO25: ='Stock Turnover Model'!BN48 -> 0 | AP25: ='Stock Turnover Model'!BO48 -> 0
B47: Gas produced (million m3)
B48: Year | C48: 2011 | D48: 2012 | E48: 2013 | F48: 2014 | G48: 2015 | H48: 2016 | I48: 2017 | J48: 2018 | K48: 2019 | L48: 2020 | M48: 2021 | N48: 2022 | O48: 2023 | P48: 2024 | Q48: 2025 | R48: 2026 | S48: 2027 | T48: 2028 | U48: 2029 | V48: 2030 | W48: 2031 | X48: 2032 | Y48: 2033 | Z48: 2034 | AA48: 2035 | AB48: 2036 | AC48: 2037 | AD48: 2038 | AE48: 2039 | AF48: 2040 | AG48: 2041 | AH48: 2042 | AI48: 2043 | AJ48: 2044 | AK48: 2045 | AL48: 2046 | AM48: 2047 | AN48: 2048 | AO48: 2049 | AP48: 2050
B49: Gross gas produced | C49: ='Interim inputs and outputs'!B14 -> 41338.43359 | D49: ='Interim inputs and outputs'!C14 -> 40802.53654 | E49: ='Interim inputs and outputs'!D14 -> 44470.42619 | F49: ='Interim inputs and outputs'!E14 -> 46835.96411 | G49: ='Interim inputs and outputs'!F14 -> 46379.93391 | H49: ='Interim inputs and outputs'!G14 -> 46427.87202 | I49: ='Interim inputs and outputs'!H14 -> 46342.4102 | J49: ='Interim inputs and outputs'!I14 -> 46421.6743 | K49: ='Interim inputs and outputs'!J14 -> 46489.64494 | L49: ='Interim inputs and outputs'!K14 -> 46551.90875 | M49: ='Interim inputs and outputs'!L14 -> 46532.55946 | N49: ='Interim inputs and outputs'!M14 -> 46545.84317 | O49: ='Interim inputs and outputs'!N14 -> 46563.5043 | P49: ='Interim inputs and outputs'!O14 -> 46577.25721 | Q49: ='Interim inputs and outputs'!P14 -> 46592.78807 | R49: ='Interim inputs and outputs'!Q14 -> 46613.08786 | S49: ='Interim inputs and outputs'!R14 -> 46630.01715 | T49: ='Interim inputs and outputs'!S14 -> 46641.54393 | U49: ='Interim inputs and outputs'!T14 -> 46670.64966 | V49: ='Interim inputs and outputs'!U14 -> 46689.30295 | W49: ='Interim inputs and outputs'!V14 -> 46705.72967 | X49: ='Interim inputs and outputs'!W14 -> 46685.56936 | Y49: ='Interim inputs and outputs'!X14 -> 46692.93761 | Z49: ='Interim inputs and outputs'!Y14 -> 46695.8173 | AA49: ='Interim inputs and outputs'!Z14 -> 46697.82959 | AB49: ='Interim inputs and outputs'!AA14 -> 46693.60574 | AC49: ='Interim inputs and outputs'!AB14 -> 46676.66508 | AD49: ='Interim inputs and outputs'!AC14 -> 46682.86526 | AE49: ='Interim inputs and outputs'!AD14 -> 46685.53567 | AF49: ='Interim inputs and outputs'!AE14 -> 46693.41492 | AG49: ='Interim inputs and outputs'!AF14 -> 46713.01323 | AH49: ='Interim inputs and outputs'!AG14 -> 46732.71597 | AI49: ='Interim inputs and outputs'!AH14 -> 46739.34202 | AJ49: ='Interim inputs and outputs'!AI14 -> 46735.55448 | AK49: ='Interim inputs and outputs'!AJ14 -> 46725.65714 | AL49: ='Interim inputs and outputs'!AK14 -> 46713.98171 | AM49: ='Interim inputs and outputs'!AL14 -> 46696.07092 | AN49: ='Interim inputs and outputs'!AM14 -> 46688.42009 | AO49: ='Interim inputs and outputs'!AN14 -> 46684.39633 | AP49: ='Interim inputs and outputs'!AO14 -> 46682.69839
B50: Net gas produced | C50: ='Interim inputs and outputs'!B12 -> 37363.90419 | D50: ='Interim inputs and outputs'!C12 -> 36879.53156 | E50: ='Interim inputs and outputs'!D12 -> 40251.03301 | F50: ='Interim inputs and outputs'!E12 -> 42446.01161 | G50: ='Interim inputs and outputs'!F12 -> 42102.85536 | H50: ='Interim inputs and outputs'!G12 -> 42171.48661 | I50: ='Interim inputs and outputs'!H12 -> 42240.11786 | J50: ='Interim inputs and outputs'!I12 -> 42308.74911 | K50: ='Interim inputs and outputs'!J12 -> 42377.38036 | L50: ='Interim inputs and outputs'!K12 -> 42446.01161 | M50: ='Interim inputs and outputs'!L12 -> 42446.01161 | N50: ='Interim inputs and outputs'!M12 -> 42446.01161 | O50: ='Interim inputs and outputs'!N12 -> 42446.01161 | P50: ='Interim inputs and outputs'!O12 -> 42446.01161 | Q50: ='Interim inputs and outputs'!P12 -> 42446.01161 | R50: ='Interim inputs and outputs'!Q12 -> 42446.01161 | S50: ='Interim inputs and outputs'!R12 -> 42446.01161 | T50: ='Interim inputs and outputs'!S12 -> 42446.01161 | U50: ='Interim inputs and outputs'!T12 -> 42446.01161 | V50: ='Interim inputs and outputs'!U12 -> 42446.01161 | W50: ='Interim inputs and outputs'!V12 -> 42446.01161 | X50: ='Interim inputs and outputs'!W12 -> 42446.01161 | Y50: ='Interim inputs and outputs'!X12 -> 42446.01161 | Z50: ='Interim inputs and outputs'!Y12 -> 42446.01161 | AA50: ='Interim inputs and outputs'!Z12 -> 42446.01161 | AB50: ='Interim inputs and outputs'!AA12 -> 42446.01161 | AC50: ='Interim inputs and outputs'!AB12 -> 42446.01161 | AD50: ='Interim inputs and outputs'!AC12 -> 42446.01161 | AE50: ='Interim inputs and outputs'!AD12 -> 42446.01161 | AF50: ='Interim inputs and outputs'!AE12 -> 42446.01161 | AG50: ='Interim inputs and outputs'!AF12 -> 42446.01161 | AH50: ='Interim inputs and outputs'!AG12 -> 42446.01161 | AI50: ='Interim inputs and outputs'!AH12 -> 42446.01161 | AJ50: ='Interim inputs and outputs'!AI12 -> 42446.01161 | AK50: ='Interim inputs and outputs'!AJ12 -> 42446.01161 | AL50: ='Interim inputs and outputs'!AK12 -> 42446.01161 | AM50: ='Interim inputs and outputs'!AL12 -> 42446.01161 | AN50: ='Interim inputs and outputs'!AM12 -> 42446.01161 | AO50: ='Interim inputs and outputs'!AN12 -> 42446.01161 | AP50: ='Interim inputs and outputs'!AO12 -> 42446.01161
B51: Gross gas for LNG export | C51: 0 | D51: 0 | E51: 0 | F51: 0 | G51: 0 | H51: ='Interim inputs and outputs'!G8 -> 0 | I51: ='Interim inputs and outputs'!H8 -> 0 | J51: ='Interim inputs and outputs'!I8 -> 0 | K51: ='Interim inputs and outputs'!J8 -> 0 | L51: ='Interim inputs and outputs'!K8 -> 0 | M51: ='Interim inputs and outputs'!L8 -> 0 | N51: ='Interim inputs and outputs'!M8 -> 0 | O51: ='Interim inputs and outputs'!N8 -> 0 | P51: ='Interim inputs and outputs'!O8 -> 0 | Q51: ='Interim inputs and outputs'!P8 -> 0 | R51: ='Interim inputs and outputs'!Q8 -> 0 | S51: ='Interim inputs and outputs'!R8 -> 0 | T51: ='Interim inputs and outputs'!S8 -> 0 | U51: ='Interim inputs and outputs'!T8 -> 0 | V51: ='Interim inputs and outputs'!U8 -> 0 | W51: ='Interim inputs and outputs'!V8 -> 0 | X51: ='Interim inputs and outputs'!W8 -> 0 | Y51: ='Interim inputs and outputs'!X8 -> 0 | Z51: ='Interim inputs and outputs'!Y8 -> 0 | AA51: ='Interim inputs and outputs'!Z8 -> 0 | AB51: ='Interim inputs and outputs'!AA8 -> 0 | AC51: ='Interim inputs and outputs'!AB8 -> 0 | AD51: ='Interim inputs and outputs'!AC8 -> 0 | AE51: ='Interim inputs and outputs'!AD8 -> 0 | AF51: ='Interim inputs and outputs'!AE8 -> 0 | AG51: ='Interim inputs and outputs'!AF8 -> 0 | AH51: ='Interim inputs and outputs'!AG8 -> 0 | AI51: ='Interim inputs and outputs'!AH8 -> 0 | AJ51: ='Interim inputs and outputs'!AI8 -> 0 | AK51: ='Interim inputs and outputs'!AJ8 -> 0 | AL51: ='Interim inputs and outputs'!AK8 -> 0 | AM51: ='Interim inputs and outputs'!AL8 -> 0 | AN51: ='Interim inputs and outputs'!AM8 -> 0 | AO51: ='Interim inputs and outputs'!AN8 -> 0 | AP51: ='Interim inputs and outputs'!AO8 -> 0
B52: Net gas for LNG export | C52: 0 | D52: ='Interim inputs and outputs'!C7 -> 0 | E52: ='Interim inputs and outputs'!D7 -> 0 | F52: ='Interim inputs and outputs'!E7 -> 0 | G52: ='Interim inputs and outputs'!F7 -> 0 | H52: ='Interim inputs and outputs'!G7 -> 0 | I52: ='Interim inputs and outputs'!H7 -> 0 | J52: ='Interim inputs and outputs'!I7 -> 0 | K52: ='Interim inputs and outputs'!J7 -> 0 | L52: ='Interim inputs and outputs'!K7 -> 0 | M52: ='Interim inputs and outputs'!L7 -> 0 | N52: ='Interim inputs and outputs'!M7 -> 0 | O52: ='Interim inputs and outputs'!N7 -> 0 | P52: ='Interim inputs and outputs'!O7 -> 0 | Q52: ='Interim inputs and outputs'!P7 -> 0 | R52: ='Interim inputs and outputs'!Q7 -> 0 | S52: ='Interim inputs and outputs'!R7 -> 0 | T52: ='Interim inputs and outputs'!S7 -> 0 | U52: ='Interim inputs and outputs'!T7 -> 0 | V52: ='Interim inputs and outputs'!U7 -> 0 | W52: ='Interim inputs and outputs'!V7 -> 0 | X52: ='Interim inputs and outputs'!W7 -> 0 | Y52: ='Interim inputs and outputs'!X7 -> 0 | Z52: ='Interim inputs and outputs'!Y7 -> 0 | AA52: ='Interim inputs and outputs'!Z7 -> 0 | AB52: ='Interim inputs and outputs'!AA7 -> 0 | AC52: ='Interim inputs and outputs'!AB7 -> 0 | AD52: ='Interim inputs and outputs'!AC7 -> 0 | AE52: ='Interim inputs and outputs'!AD7 -> 0 | AF52: ='Interim inputs and outputs'!AE7 -> 0 | AG52: ='Interim inputs and outputs'!AF7 -> 0 | AH52: ='Interim inputs and outputs'!AG7 -> 0 | AI52: ='Interim inputs and outputs'!AH7 -> 0 | AJ52: ='Interim inputs and outputs'!AI7 -> 0 | AK52: ='Interim inputs and outputs'!AJ7 -> 0 | AL52: ='Interim inputs and outputs'!AK7 -> 0 | AM52: ='Interim inputs and outputs'!AL7 -> 0 | AN52: ='Interim inputs and outputs'!AM7 -> 0 | AO52: ='Interim inputs and outputs'!AN7 -> 0 | AP52: ='Interim inputs and outputs'!AO7 -> 0
B53: Gross gas for other uses | C53: ='Interim inputs and outputs'!B14 -> 41338.43359 | D53: ='NG demand'!E96*'Interim inputs and outputs'!C13 -> 40802.53654 | E53: ='NG demand'!F96*'Interim inputs and outputs'!D13 -> 44470.42619 | F53: ='NG demand'!G96*'Interim inputs and outputs'!E13 -> 46835.96411 | G53: ='NG demand'!H96*'Interim inputs and outputs'!F13 -> 46379.93391 | H53: ='NG demand'!I96*'Interim inputs and outputs'!G13 -> 46427.87202 | I53: ='NG demand'!J96*'Interim inputs and outputs'!H13 -> 46342.4102 | J53: ='NG demand'!K96*'Interim inputs and outputs'!I13 -> 46421.6743 | K53: ='NG demand'!L96*'Interim inputs and outputs'!J13 -> 46489.64494 | L53: ='NG demand'!M96*'Interim inputs and outputs'!K13 -> 46551.90875 | M53: ='NG demand'!N96*'Interim inputs and outputs'!L13 -> 46532.55946 | N53: ='NG demand'!O96*'Interim inputs and outputs'!M13 -> 46545.84317 | O53: ='NG demand'!P96*'Interim inputs and outputs'!N13 -> 46563.5043 | P53: ='NG demand'!Q96*'Interim inputs and outputs'!O13 -> 46577.25721 | Q53: ='NG demand'!R96*'Interim inputs and outputs'!P13 -> 46592.78807 | R53: ='NG demand'!S96*'Interim inputs and outputs'!Q13 -> 46613.08786 | S53: ='NG demand'!T96*'Interim inputs and outputs'!R13 -> 46630.01715 | T53: ='NG demand'!U96*'Interim inputs and outputs'!S13 -> 46641.54393 | U53: ='NG demand'!V96*'Interim inputs and outputs'!T13 -> 46670.64966 | V53: ='NG demand'!W96*'Interim inputs and outputs'!U13 -> 46689.30295 | W53: ='NG demand'!X96*'Interim inputs and outputs'!V13 -> 46705.72967 | X53: ='NG demand'!Y96*'Interim inputs and outputs'!W13 -> 46685.56936 | Y53: ='NG demand'!Z96*'Interim inputs and outputs'!X13 -> 46692.93761 | Z53: ='NG demand'!AA96*'Interim inputs and outputs'!Y13 -> 46695.8173 | AA53: ='NG demand'!AB96*'Interim inputs and outputs'!Z13 -> 46697.82959 | AB53: ='NG demand'!AC96*'Interim inputs and outputs'!AA13 -> 46693.60574 | AC53: ='NG demand'!AD96*'Interim inputs and outputs'!AB13 -> 46676.66508 | AD53: ='NG demand'!AE96*'Interim inputs and outputs'!AC13 -> 46682.86526 | AE53: ='NG demand'!AF96*'Interim inputs and outputs'!AD13 -> 46685.53567 | AF53: ='NG demand'!AG96*'Interim inputs and outputs'!AE13 -> 46693.41492 | AG53: ='NG demand'!AH96*'Interim inputs and outputs'!AF13 -> 46713.01323 | AH53: ='NG demand'!AI96*'Interim inputs and outputs'!AG13 -> 46732.71597 | AI53: ='NG demand'!AJ96*'Interim inputs and outputs'!AH13 -> 46739.34202 | AJ53: ='NG demand'!AK96*'Interim inputs and outputs'!AI13 -> 46735.55448 | AK53: ='NG demand'!AL96*'Interim inputs and outputs'!AJ13 -> 46725.65714 | AL53: ='NG demand'!AM96*'Interim inputs and outputs'!AK13 -> 46713.98171 | AM53: ='NG demand'!AN96*'Interim inputs and outputs'!AL13 -> 46696.07092 | AN53: ='NG demand'!AO96*'Interim inputs and outputs'!AM13 -> 46688.42009 | AO53: ='NG demand'!AP96*'Interim inputs and outputs'!AN13 -> 46684.39633 | AP53: ='NG demand'!AQ96*'Interim inputs and outputs'!AO13 -> 46682.69839
B54: Net gas for other uses | C54: ='NG demand'!D96 -> 37363.90419 | D54: ='NG demand'!E96 -> 36879.53156 | E54: ='NG demand'!F96 -> 40251.03301 | F54: ='NG demand'!G96 -> 42446.01161 | G54: ='NG demand'!H96 -> 42102.85536 | H54: ='NG demand'!I96 -> 42171.48661 | I54: ='NG demand'!J96 -> 42240.11786 | J54: ='NG demand'!K96 -> 42308.74911 | K54: ='NG demand'!L96 -> 42377.38036 | L54: ='NG demand'!M96 -> 42446.01161 | M54: ='NG demand'!N96 -> 42446.01161 | N54: ='NG demand'!O96 -> 42446.01161 | O54: ='NG demand'!P96 -> 42446.01161 | P54: ='NG demand'!Q96 -> 42446.01161 | Q54: ='NG demand'!R96 -> 42446.01161 | R54: ='NG demand'!S96 -> 42446.01161 | S54: ='NG demand'!T96 -> 42446.01161 | T54: ='NG demand'!U96 -> 42446.01161 | U54: ='NG demand'!V96 -> 42446.01161 | V54: ='NG demand'!W96 -> 42446.01161 | W54: ='NG demand'!X96 -> 42446.01161 | X54: ='NG demand'!Y96 -> 42446.01161 | Y54: ='NG demand'!Z96 -> 42446.01161 | Z54: ='NG demand'!AA96 -> 42446.01161 | AA54: ='NG demand'!AB96 -> 42446.01161 | AB54: ='NG demand'!AC96 -> 42446.01161 | AC54: ='NG demand'!AD96 -> 42446.01161 | AD54: ='NG demand'!AE96 -> 42446.01161 | AE54: ='NG demand'!AF96 -> 42446.01161 | AF54: ='NG demand'!AG96 -> 42446.01161 | AG54: ='NG demand'!AH96 -> 42446.01161 | AH54: ='NG demand'!AI96 -> 42446.01161 | AI54: ='NG demand'!AJ96 -> 42446.01161 | AJ54: ='NG demand'!AK96 -> 42446.01161 | AK54: ='NG demand'!AL96 -> 42446.01161 | AL54: ='NG demand'!AM96 -> 42446.01161 | AM54: ='NG demand'!AN96 -> 42446.01161 | AN54: ='NG demand'!AO96 -> 42446.01161 | AO54: ='NG demand'!AP96 -> 42446.01161 | AP54: ='NG demand'!AQ96 -> 42446.01161
B55: Gas used or lost (%) | D55: ='Interim inputs and outputs'!B119 -> 0.1063735034 | E55: ='Interim inputs and outputs'!C119 -> 0.1048269539 | F55: ='Interim inputs and outputs'!D119 -> 0.1034243814 | G55: ='Interim inputs and outputs'!E119 -> 0.1015864248 | H55: ='Interim inputs and outputs'!F119 -> 0.1009304093 | I55: ='Interim inputs and outputs'!G119 -> 0.09711839223 | J55: ='Interim inputs and outputs'!H119 -> 0.09721216699 | K55: ='Interim inputs and outputs'!I119 -> 0.09703914062 | L55: ='Interim inputs and outputs'!J119 -> 0.0967322248 | M55: ='Interim inputs and outputs'!K119 -> 0.0962763683 | N55: ='Interim inputs and outputs'!L119 -> 0.09658932368 | O55: ='Interim inputs and outputs'!M119 -> 0.09700540822 | P55: ='Interim inputs and outputs'!N119 -> 0.09732941777 | Q55: ='Interim inputs and outputs'!O119 -> 0.09769531453 | R55: ='Interim inputs and outputs'!P119 -> 0.09817356426 | S55: ='Interim inputs and outputs'!Q119 -> 0.09857240716 | T55: ='Interim inputs and outputs'!R119 -> 0.09884397047 | U55: ='Interim inputs and outputs'!S119 -> 0.09952968216 | V55: ='Interim inputs and outputs'!T119 -> 0.09996914151 | W55: ='Interim inputs and outputs'!U119 -> 0.1003561441 | X55: ='Interim inputs and outputs'!V119 -> 0.0998811806 | Y55: ='Interim inputs and outputs'!W119 -> 0.1000547715 | Z55: ='Interim inputs and outputs'!X119 -> 0.1001226152 | AA55: ='Interim inputs and outputs'!Y119 -> 0.1001700235 | AB55: ='Interim inputs and outputs'!Z119 -> 0.1000705124 | AC55: ='Interim inputs and outputs'!AA119 -> 0.09967140148 | AD55: ='Interim inputs and outputs'!AB119 -> 0.09981747359 | AE55: ='Interim inputs and outputs'!AC119 -> 0.09988038678 | AF55: ='Interim inputs and outputs'!AD119 -> 0.1000660168 | AG55: ='Interim inputs and outputs'!AE119 -> 0.1005277399 | AH55: ='Interim inputs and outputs'!AF119 -> 0.1009919234 | AI55: ='Interim inputs and outputs'!AG119 -> 0.1011480289 | AJ55: ='Interim inputs and outputs'!AH119 -> 0.101058797 | AK55: ='Interim inputs and outputs'!AI119 -> 0.1008256222 | AL55: ='Interim inputs and outputs'!AJ119 -> 0.1005505567 | AM55: ='Interim inputs and outputs'!AK119 -> 0.1001285902 | AN55: ='Interim inputs and outputs'!AL119 -> 0.09994834178 | AO55: ='Interim inputs and outputs'!AM119 -> 0.09985354465 | AP55: ='Interim inputs and outputs'!AN119 -> 0.09981354239
B56: Gas used or lost | C56: =C49-C50 -> 3974.529392 | D56: =D50*D55 -> 3923.004978 | E56: =E50*E55 -> 4219.393181 | F56: 4389.952496 | G56: 4277.078549 | H56: 4256.385407 | I56: 4102.292335 | J56: 4112.925184 | K56: 4112.264572 | L56: 4105.897137 | M56: 4086.547847 | N56: =N50*N55 -> 4099.831554 | O56: =O50*O55 -> 4117.492684 | P56: =P50*P55 -> 4131.245597 | Q56: =Q50*Q55 -> 4146.776455 | R56: =R50*R55 -> 4167.076249 | S56: =S50*S55 -> 4184.005539 | T56: =T50*T55 -> 4195.532319 | U56: =U50*U55 -> 4224.638045 | V56: 4243.291341 | W56: =W50*W55 -> 4259.718059 | X56: =X50*X55 -> 4239.557752 | Y56: =Y50*Y55 -> 4246.925994 | Z56: =Z50*Z55 -> 4249.805689 | AA56: =AA50*AA55 -> 4251.817981 | AB56: =AB50*AB55 -> 4247.594131 | AC56: =AC50*AC55 -> 4230.653465 | AD56: =AD50*AD55 -> 4236.853643 | AE56: 4239.524057 | AF56: =AF50*AF55 -> 4247.403312 | AG56: =AG50*AG55 -> 4267.001617 | AH56: =AH50*AH55 -> 4286.704353 | AI56: =AI50*AI55 -> 4293.330409 | AJ56: =AJ50*AJ55 -> 4289.54287 | AK56: =AK50*AK55 -> 4279.645531 | AL56: =AL50*AL55 -> 4267.970098 | AM56: =AM50*AM55 -> 4250.059303 | AN56: 4242.408476 | AO56: =AO50*AO55 -> 4238.384716 | AP56: =AP50*AP55 -> 4236.686779
B77: GHG Emissions (kt CO2e)
B78: Year | C78: 2011 | D78: 2012 | E78: 2013 | F78: 2014 | G78: 2015 | H78: 2016 | I78: 2017 | J78: 2018 | K78: 2019 | L78: 2020 | M78: 2021 | N78: 2022 | O78: 2023 | P78: 2024 | Q78: 2025 | R78: 2026 | S78: 2027 | T78: 2028 | U78: 2029 | V78: 2030 | W78: 2031 | X78: 2032 | Y78: 2033 | Z78: 2034 | AA78: 2035 | AB78: 2036 | AC78: 2037 | AD78: 2038 | AE78: 2039 | AF78: 2040 | AG78: 2041 | AH78: 2042 | AI78: 2043 | AJ78: 2044 | AK78: 2045 | AL78: 2046 | AM78: 2047 | AN78: 2048 | AO78: 2049 | AP78: 2050
B79: B.C. CO2e emissions | C79: =SUM(C80:C85) -> 9623.46877 | D79: =SUM(D80:D85) -> 9376.4507 | E79: 10054.5055 | F79: 10391.96543 | G79: 10248.87019 | H79: 9919.606053 | I79: 9914.884979 | J79: 9918.209577 | K79: 9904.194268 | L79: 9871.156258 | M79: 9891.877214 | N79: 9929.280257 | O79: 9955.982315 | P79: 9987.299296 | Q79: 10032.64237 | R79: 10057.05702 | S79: 10067.70433 | T79: 10128.84069 | U79: 10162.05466 | V79: 10187.48815 | W79: 10130.73766 | X79: 10149.18224 | Y79: 10158.26144 | Z79: 10164.35549 | AA79: 10152.13848 | AB79: 10102.04873 | AC79: 10117.86643 | AD79: 10126.41446 | AE79: 10149.75724 | AF79: 10207.87021 | AG79: 10267.759 | AH79: 10289.6093 | AI79: 10279.22849 | AJ79: 10249.63691 | AK79: 10214.14387 | AL79: 10160.24932 | AM79: 10135.63507 | AN79: 10122.92448 | AO79: 10117.52526 | AP79: =SUM(AP80:AP85) -> 10118.51035
B80: Combustion | C80: =SUM('Interim inputs and outputs'!B67:B69)+'Interim inputs and outputs'!B77 -> 5821.410114 | D80: =SUM('Interim inputs and outputs'!C67:C69)+'Interim inputs and outputs'!C77 -> 5695.957787 | E80: =SUM('Interim inputs and outputs'!D67:D69)+'Interim inputs and outputs'!D77 -> 6109.875075 | F80: =SUM('Interim inputs and outputs'!E67:E69)+'Interim inputs and outputs'!E77 -> 6323.362617 | G80: =SUM('Interim inputs and outputs'!F67:F69)+'Interim inputs and outputs'!F77 -> 6262.254461 | H80: =SUM('Interim inputs and outputs'!G67:G69)+'Interim inputs and outputs'!G77 -> 6261.214232 | I80: =SUM('Interim inputs and outputs'!H67:H69)+'Interim inputs and outputs'!H77 -> 6274.820567 | J80: =SUM('Interim inputs and outputs'!I67:I69)+'Interim inputs and outputs'!I77 -> 6293.106712 | K80: =SUM('Interim inputs and outputs'!J67:J69)+'Interim inputs and outputs'!J77 -> 6299.823809 | L80: =SUM('Interim inputs and outputs'!K67:K69)+'Interim inputs and outputs'!K77 -> 6293.413955 | M80: =SUM('Interim inputs and outputs'!L67:L69)+'Interim inputs and outputs'!L77 -> 6273.570095 | N80: =SUM('Interim inputs and outputs'!M67:M69)+'Interim inputs and outputs'!M77 -> 6264.171983 | O80: =SUM('Interim inputs and outputs'!N67:N69)+'Interim inputs and outputs'!N77 -> 6247.030419 | P80: =SUM('Interim inputs and outputs'!O67:O69)+'Interim inputs and outputs'!O77 -> 6233.268825 | Q80: =SUM('Interim inputs and outputs'!P67:P69)+'Interim inputs and outputs'!P77 -> 6229.29817 | R80: =SUM('Interim inputs and outputs'!Q67:Q69)+'Interim inputs and outputs'!Q77 -> 6191.874597 | S80: =SUM('Interim inputs and outputs'!R67:R69)+'Interim inputs and outputs'!R77 -> 6145.503374 | T80: =SUM('Interim inputs and outputs'!S67:S69)+'Interim inputs and outputs'!S77 -> 6135.033618 | U80: =SUM('Interim inputs and outputs'!T67:T69)+'Interim inputs and outputs'!T77 -> 6104.012703 | V80: =SUM('Interim inputs and outputs'!U67:U69)+'Interim inputs and outputs'!U77 -> 6067.951561 | W80: =SUM('Interim inputs and outputs'!V67:V69)+'Interim inputs and outputs'!V77 -> 6026.995597 | X80: =SUM('Interim inputs and outputs'!W67:W69)+'Interim inputs and outputs'!W77 -> 6040.905568 | Y80: =SUM('Interim inputs and outputs'!X67:X69)+'Interim inputs and outputs'!X77 -> 6046.88324 | Z80: =SUM('Interim inputs and outputs'!Y67:Y69)+'Interim inputs and outputs'!Y77 -> 6051.007421 | AA80: =SUM('Interim inputs and outputs'!Z67:Z69)+'Interim inputs and outputs'!Z77 -> 6042.225499 | AB80: =SUM('Interim inputs and outputs'!AA67:AA69)+'Interim inputs and outputs'!AA77 -> 6006.981367 | AC80: =SUM('Interim inputs and outputs'!AB67:AB69)+'Interim inputs and outputs'!AB77 -> 6018.977149 | AD80: =SUM('Interim inputs and outputs'!AC67:AC69)+'Interim inputs and outputs'!AC77 -> 6024.704123 | AE80: =SUM('Interim inputs and outputs'!AD67:AD69)+'Interim inputs and outputs'!AD77 -> 6041.082348 | AF80: =SUM('Interim inputs and outputs'!AE67:AE69)+'Interim inputs and outputs'!AE77 -> 6081.761404 | AG80: =SUM('Interim inputs and outputs'!AF67:AF69)+'Interim inputs and outputs'!AF77 -> 6123.090768 | AH80: =SUM('Interim inputs and outputs'!AG67:AG69)+'Interim inputs and outputs'!AG77 -> 6137.541103 | AI80: =SUM('Interim inputs and outputs'!AH67:AH69)+'Interim inputs and outputs'!AH77 -> 6129.817606 | AJ80: =SUM('Interim inputs and outputs'!AI67:AI69)+'Interim inputs and outputs'!AI77 -> 6109.026066 | AK80: =SUM('Interim inputs and outputs'!AJ67:AJ69)+'Interim inputs and outputs'!AJ77 -> 6084.387251 | AL80: =SUM('Interim inputs and outputs'!AK67:AK69)+'Interim inputs and outputs'!AK77 -> 6046.828575 | AM80: =SUM('Interim inputs and outputs'!AL67:AL69)+'Interim inputs and outputs'!AL77 -> 6030.31639 | AN80: =SUM('Interim inputs and outputs'!AM67:AM69)+'Interim inputs and outputs'!AM77 -> 6021.734462 | AO80: =SUM('Interim inputs and outputs'!AN67:AN69)+'Interim inputs and outputs'!AN77 -> 6018.156335 | AP80: =SUM('Interim inputs and outputs'!AO67:AO69)+'Interim inputs and outputs'!AO77 -> 6018.973072 | AQ80: =AP80/$AP$79 -> 0.5948477457
B81: Formation CO2 venting | C81: ='Interim inputs and outputs'!B70 -> 2072.276838 | D81: ='Interim inputs and outputs'!C70 -> 2013.590641 | E81: ='Interim inputs and outputs'!D70 -> 2164.081568 | F81: ='Interim inputs and outputs'!E70 -> 2247.055169 | G81: ='Interim inputs and outputs'!F70 -> 2193.347616 | H81: ='Interim inputs and outputs'!G70 -> 1868.34861 | I81: ='Interim inputs and outputs'!H70 -> 1839.878623 | J81: ='Interim inputs and outputs'!I70 -> 1817.951904 | K81: ='Interim inputs and outputs'!J70 -> 1795.503389 | L81: ='Interim inputs and outputs'!K70 -> 1772.764124 | M81: ='Interim inputs and outputs'!L70 -> 1823.562297 | N81: ='Interim inputs and outputs'!M70 -> 1875.632607 | O81: ='Interim inputs and outputs'!N70 -> 1927.913582 | P81: ='Interim inputs and outputs'!O70 -> 1980.067533 | Q81: ='Interim inputs and outputs'!P70 -> 2032.329499 | R81: ='Interim inputs and outputs'!Q70 -> 2110.0162 | S81: ='Interim inputs and outputs'!R70 -> 2187.61167 | T81: ='Interim inputs and outputs'!S70 -> 2265.00057 | U81: ='Interim inputs and outputs'!T70 -> 2343.310084 | V81: ='Interim inputs and outputs'!U70 -> 2421.173476 | W81: ='Interim inputs and outputs'!V70 -> 2422.025319 | X81: ='Interim inputs and outputs'!W70 -> 2420.979863 | Y81: ='Interim inputs and outputs'!X70 -> 2421.361959 | Z81: ='Interim inputs and outputs'!Y70 -> 2421.511291 | AA81: ='Interim inputs and outputs'!Z70 -> 2421.615643 | AB81: ='Interim inputs and outputs'!AA70 -> 2421.396606 | AC81: ='Interim inputs and outputs'!AB70 -> 2420.518112 | AD81: ='Interim inputs and outputs'!AC70 -> 2420.839636 | AE81: ='Interim inputs and outputs'!AD70 -> 2420.978116 | AF81: ='Interim inputs and outputs'!AE70 -> 2421.386711 | AG81: ='Interim inputs and outputs'!AF70 -> 2422.403023 | AH81: ='Interim inputs and outputs'!AG70 -> 2423.42475 | AI81: ='Interim inputs and outputs'!AH70 -> 2423.768359 | AJ81: ='Interim inputs and outputs'!AI70 -> 2423.571948 | AK81: ='Interim inputs and outputs'!AJ70 -> 2423.0587 | AL81: ='Interim inputs and outputs'!AK70 -> 2422.453246 | AM81: ='Interim inputs and outputs'!AL70 -> 2421.524443 | AN81: ='Interim inputs and outputs'!AM70 -> 2421.127693 | AO81: ='Interim inputs and outputs'!AN70 -> 2420.919033 | AP81: ='Interim inputs and outputs'!AO70 -> 2420.830982 | AQ81: =AP81/$AP$79 -> 0.2392477646
B82: Methane Fugitive | C82: ='Interim inputs and outputs'!B95*'Interim inputs and outputs'!$B$44 -> 301.0026806 | D82: ='Interim inputs and outputs'!C95*'Interim inputs and outputs'!$B$44 -> 300.179522 | E82: ='Interim inputs and outputs'!D95*'Interim inputs and outputs'!$B$44 -> 319.6756381 | F82: ='Interim inputs and outputs'!E95*'Interim inputs and outputs'!$B$44 -> 331.8272182 | G82: ='Interim inputs and outputs'!F95*'Interim inputs and outputs'!$B$44 -> 331.7488531 | H82: ='Interim inputs and outputs'!G95*'Interim inputs and outputs'!$B$44 -> 332.1895345 | I82: ='Interim inputs and outputs'!H95*'Interim inputs and outputs'!$B$44 -> 332.2840347 | J82: ='Interim inputs and outputs'!I95*'Interim inputs and outputs'!$B$44 -> 333.1090076 | K82: ='Interim inputs and outputs'!J95*'Interim inputs and outputs'!$B$44 -> 333.4086507 | L82: ='Interim inputs and outputs'!K95*'Interim inputs and outputs'!$B$44 -> 332.9646574 | M82: ='Interim inputs and outputs'!L95*'Interim inputs and outputs'!$B$44 -> 332.4213075 | N82: ='Interim inputs and outputs'!M95*'Interim inputs and outputs'!$B$44 -> 332.1433632 | O82: ='Interim inputs and outputs'!N95*'Interim inputs and outputs'!$B$44 -> 331.3370314 | P82: ='Interim inputs and outputs'!O95*'Interim inputs and outputs'!$B$44 -> 330.7802018 | Q82: ='Interim inputs and outputs'!P95*'Interim inputs and outputs'!$B$44 -> 330.8094279 | R82: ='Interim inputs and outputs'!Q95*'Interim inputs and outputs'!$B$44 -> 328.4174352 | S82: ='Interim inputs and outputs'!R95*'Interim inputs and outputs'!$B$44 -> 325.779427 | T82: ='Interim inputs and outputs'!S95*'Interim inputs and outputs'!$B$44 -> 325.4653434 | U82: ='Interim inputs and outputs'!T95*'Interim inputs and outputs'!$B$44 -> 323.6768695 | V82: ='Interim inputs and outputs'!U95*'Interim inputs and outputs'!$B$44 -> 321.697034 | W82: ='Interim inputs and outputs'!V95*'Interim inputs and outputs'!$B$44 -> 318.9131777 | X82: ='Interim inputs and outputs'!W95*'Interim inputs and outputs'!$B$44 -> 319.9733405 | Y82: ='Interim inputs and outputs'!X95*'Interim inputs and outputs'!$B$44 -> 320.2328553 | Z82: ='Interim inputs and outputs'!Y95*'Interim inputs and outputs'!$B$44 -> 320.442204 | AA82: ='Interim inputs and outputs'!Z95*'Interim inputs and outputs'!$B$44 -> 319.8462281 | AB82: ='Interim inputs and outputs'!AA95*'Interim inputs and outputs'!$B$44 -> 317.6558533 | AC82: ='Interim inputs and outputs'!AB95*'Interim inputs and outputs'!$B$44 -> 318.5997954 | AD82: ='Interim inputs and outputs'!AC95*'Interim inputs and outputs'!$B$44 -> 318.8847235 | AE82: ='Interim inputs and outputs'!AD95*'Interim inputs and outputs'!$B$44 -> 319.889647 | AF82: ='Interim inputs and outputs'!AE95*'Interim inputs and outputs'!$B$44 -> 322.3569097 | AG82: ='Interim inputs and outputs'!AF95*'Interim inputs and outputs'!$B$44 -> 324.7179966 | AH82: ='Interim inputs and outputs'!AG95*'Interim inputs and outputs'!$B$44 -> 325.3901883 | AI82: ='Interim inputs and outputs'!AH95*'Interim inputs and outputs'!$B$44 -> 324.80241 | AJ82: ='Interim inputs and outputs'!AI95*'Interim inputs and outputs'!$B$44 -> 323.5112523 | AK82: ='Interim inputs and outputs'!AJ95*'Interim inputs and outputs'!$B$44 -> 322.0580637 | AL82: ='Interim inputs and outputs'!AK95*'Interim inputs and outputs'!$B$44 -> 319.8114213 | AM82: ='Interim inputs and outputs'!AL95*'Interim inputs and outputs'!$B$44 -> 318.980398 | AN82: ='Interim inputs and outputs'!AM95*'Interim inputs and outputs'!$B$44 -> 318.5316331 | AO82: ='Interim inputs and outputs'!AN95*'Interim inputs and outputs'!$B$44 -> 318.3630016 | AP82: ='Interim inputs and outputs'!AO95*'Interim inputs and outputs'!$B$44 -> 318.4430438 | AQ82: 0.03147133646
B83: Methane Venting | C83: =('Interim inputs and outputs'!B96+'Interim inputs and outputs'!B97)*'Interim inputs and outputs'!$B$44 -> 684.6305696 | D83: =('Interim inputs and outputs'!C96+'Interim inputs and outputs'!C97)*'Interim inputs and outputs'!$B$44 -> 689.6175504 | E83: =('Interim inputs and outputs'!D96+'Interim inputs and outputs'!D97)*'Interim inputs and outputs'!$B$44 -> 720.4438061 | F83: =('Interim inputs and outputs'!E96+'Interim inputs and outputs'!E97)*'Interim inputs and outputs'!$B$44 -> 738.5679065 | G83: =('Interim inputs and outputs'!F96+'Interim inputs and outputs'!F97)*'Interim inputs and outputs'!$B$44 -> 744.4977666 | H83: =('Interim inputs and outputs'!G96+'Interim inputs and outputs'!G97)*'Interim inputs and outputs'!$B$44 -> 745.6742721 | I83: =('Interim inputs and outputs'!H96+'Interim inputs and outputs'!H97)*'Interim inputs and outputs'!$B$44 -> 747.2399897 | J83: =('Interim inputs and outputs'!I96+'Interim inputs and outputs'!I97)*'Interim inputs and outputs'!$B$44 -> 749.586195 | K83: =('Interim inputs and outputs'!J96+'Interim inputs and outputs'!J97)*'Interim inputs and outputs'!$B$44 -> 749.9008763 | L83: =('Interim inputs and outputs'!K96+'Interim inputs and outputs'!K97)*'Interim inputs and outputs'!$B$44 -> 747.1987886 | M83: =('Interim inputs and outputs'!L96+'Interim inputs and outputs'!L97)*'Interim inputs and outputs'!$B$44 -> 745.2027769 | N83: =('Interim inputs and outputs'!M96+'Interim inputs and outputs'!M97)*'Interim inputs and outputs'!$B$44 -> 743.8637252 | O83: =('Interim inputs and outputs'!N96+'Interim inputs and outputs'!N97)*'Interim inputs and outputs'!$B$44 -> 740.2654427 | P83: =('Interim inputs and outputs'!O96+'Interim inputs and outputs'!O97)*'Interim inputs and outputs'!$B$44 -> 737.7592174 | Q83: =('Interim inputs and outputs'!P96+'Interim inputs and outputs'!P97)*'Interim inputs and outputs'!$B$44 -> 737.6677989 | R83: =('Interim inputs and outputs'!Q96+'Interim inputs and outputs'!Q97)*'Interim inputs and outputs'!$B$44 -> 727.4337066 | S83: =('Interim inputs and outputs'!R96+'Interim inputs and outputs'!R97)*'Interim inputs and outputs'!$B$44 -> 716.2219211 | T83: =('Interim inputs and outputs'!S96+'Interim inputs and outputs'!S97)*'Interim inputs and outputs'!$B$44 -> 714.7565579 | U83: =('Interim inputs and outputs'!T96+'Interim inputs and outputs'!T97)*'Interim inputs and outputs'!$B$44 -> 706.9135414 | V83: =('Interim inputs and outputs'!U96+'Interim inputs and outputs'!U97)*'Interim inputs and outputs'!$B$44 -> 698.4174579 | W83: =('Interim inputs and outputs'!V96+'Interim inputs and outputs'!V97)*'Interim inputs and outputs'!$B$44 -> 686.6055392 | X83: =('Interim inputs and outputs'!W96+'Interim inputs and outputs'!W97)*'Interim inputs and outputs'!$B$44 -> 691.2945657 | Y83: =('Interim inputs and outputs'!X96+'Interim inputs and outputs'!X97)*'Interim inputs and outputs'!$B$44 -> 692.2736005 | Z83: =('Interim inputs and outputs'!Y96+'Interim inputs and outputs'!Y97)*'Interim inputs and outputs'!$B$44 -> 693.1054167 | AA83: =('Interim inputs and outputs'!Z96+'Interim inputs and outputs'!Z97)*'Interim inputs and outputs'!$B$44 -> 690.5973254 | AB83: =('Interim inputs and outputs'!AA96+'Interim inputs and outputs'!AA97)*'Interim inputs and outputs'!$B$44 -> 681.5388038 | AC83: =('Interim inputs and outputs'!AB96+'Interim inputs and outputs'!AB97)*'Interim inputs and outputs'!$B$44 -> 685.6999448 | AD83: =('Interim inputs and outputs'!AC96+'Interim inputs and outputs'!AC97)*'Interim inputs and outputs'!$B$44 -> 686.8007751 | AE83: =('Interim inputs and outputs'!AD96+'Interim inputs and outputs'!AD97)*'Interim inputs and outputs'!$B$44 -> 690.9466905 | AF83: =('Interim inputs and outputs'!AE96+'Interim inputs and outputs'!AE97)*'Interim inputs and outputs'!$B$44 -> 701.1074889 | AG83: =('Interim inputs and outputs'!AF96+'Interim inputs and outputs'!AF97)*'Interim inputs and outputs'!$B$44 -> 710.6656106 | AH83: =('Interim inputs and outputs'!AG96+'Interim inputs and outputs'!AG97)*'Interim inputs and outputs'!$B$44 -> 713.1930204 | AI83: =('Interim inputs and outputs'!AH96+'Interim inputs and outputs'!AH97)*'Interim inputs and outputs'!$B$44 -> 710.6557542 | AJ83: =('Interim inputs and outputs'!AI96+'Interim inputs and outputs'!AI97)*'Interim inputs and outputs'!$B$44 -> 705.3338407 | AK83: =('Interim inputs and outputs'!AJ96+'Interim inputs and outputs'!AJ97)*'Interim inputs and outputs'!$B$44 -> 699.4213621 | AL83: =('Interim inputs and outputs'!AK96+'Interim inputs and outputs'!AK97)*'Interim inputs and outputs'!$B$44 -> 690.2308755 | AM83: =('Interim inputs and outputs'!AL96+'Interim inputs and outputs'!AL97)*'Interim inputs and outputs'!$B$44 -> 687.017817 | AN83: =('Interim inputs and outputs'!AM96+'Interim inputs and outputs'!AM97)*'Interim inputs and outputs'!$B$44 -> 685.2549891 | AO83: =('Interim inputs and outputs'!AN96+'Interim inputs and outputs'!AN97)*'Interim inputs and outputs'!$B$44 -> 684.6083346 | AP83: =('Interim inputs and outputs'!AO96+'Interim inputs and outputs'!AO97)*'Interim inputs and outputs'!$B$44 -> 684.9647677 | AQ83: 0.06769423007
B84: Flaring | C84: ='Interim inputs and outputs'!B71 -> 476.9822587 | D84: ='Interim inputs and outputs'!C71 -> 407.6810877 | E84: ='Interim inputs and outputs'!D71 -> 459.5901316 | F84: ='Interim inputs and outputs'!E71 -> 463.6729788 | G84: ='Interim inputs and outputs'!F71 -> 426.9503452 | H84: ='Interim inputs and outputs'!G71 -> 421.6412281 | I84: ='Interim inputs and outputs'!H71 -> 429.4512074 | J84: ='Interim inputs and outputs'!I71 -> 432.308281 | K84: ='Interim inputs and outputs'!J71 -> 433.3039387 | L84: ='Interim inputs and outputs'!K71 -> 433.6924777 | M84: ='Interim inputs and outputs'!L71 -> 426.8119383 | N84: ='Interim inputs and outputs'!M71 -> 423.7144469 | O84: ='Interim inputs and outputs'!N71 -> 421.1660572 | P84: ='Interim inputs and outputs'!O71 -> 418.1880892 | Q84: ='Interim inputs and outputs'!P71 -> 415.3448936 | R84: ='Interim inputs and outputs'!Q71 -> 416.3340265 | S84: ='Interim inputs and outputs'!R71 -> 414.218952 | T84: ='Interim inputs and outputs'!S71 -> 410.8215754 | U84: ='Interim inputs and outputs'!T71 -> 409.6106025 | V84: ='Interim inputs and outputs'!U71 -> 407.2146859 | W84: ='Interim inputs and outputs'!V71 -> 410.0225453 | X84: ='Interim inputs and outputs'!W71 -> 407.9200924 | Y84: ='Interim inputs and outputs'!X71 -> 409.0012581 | Z84: ='Interim inputs and outputs'!Y71 -> 409.4398587 | AA84: ='Interim inputs and outputs'!Z71 -> 410.035606 | AB84: ='Interim inputs and outputs'!AA71 -> 410.3781207 | AC84: ='Interim inputs and outputs'!AB71 -> 408.2581009 | AD84: ='Interim inputs and outputs'!AC71 -> 408.9217107 | AE84: ='Interim inputs and outputs'!AD71 -> 408.894534 | AF84: ='Interim inputs and outputs'!AE71 -> 409.1199816 | AG84: ='Interim inputs and outputs'!AF71 -> 410.8236636 | AH84: ='Interim inputs and outputs'!AG71 -> 412.9706427 | AI84: ='Interim inputs and outputs'!AH71 -> 414.1394424 | AJ84: ='Interim inputs and outputs'!AI71 -> 414.3340714 | AK84: ='Interim inputs and outputs'!AJ71 -> 413.7844918 | AL84: ='Interim inputs and outputs'!AK71 -> 413.2630847 | AM84: ='Interim inputs and outputs'!AL71 -> 411.4478598 | AN84: ='Interim inputs and outputs'!AM71 -> 410.6743863 | AO84: ='Interim inputs and outputs'!AN71 -> 410.1633454 | AP84: ='Interim inputs and outputs'!AO71 -> 409.8576433 | AQ84: 0.04050572951
B85: Other methane | C85: =('Interim inputs and outputs'!B75+'Interim inputs and outputs'!B76) -> 267.1663091 | D85: =('Interim inputs and outputs'!C75+'Interim inputs and outputs'!C76) -> 269.4241124 | E85: =('Interim inputs and outputs'!D75+'Interim inputs and outputs'!D76) -> 280.8392763 | F85: =('Interim inputs and outputs'!E75+'Interim inputs and outputs'!E76) -> 287.4795362 | G85: =('Interim inputs and outputs'!F75+'Interim inputs and outputs'!F76) -> 290.0711477 | H85: =('Interim inputs and outputs'!G75+'Interim inputs and outputs'!G76) -> 290.5381758 | I85: =('Interim inputs and outputs'!H75+'Interim inputs and outputs'!H76) -> 291.2105572 | J85: =('Interim inputs and outputs'!I75+'Interim inputs and outputs'!I76) -> 292.1474768 | K85: =('Interim inputs and outputs'!J75+'Interim inputs and outputs'!J76) -> 292.2536047 | L85: =('Interim inputs and outputs'!K75+'Interim inputs and outputs'!K76) -> 291.1222559 | M85: =('Interim inputs and outputs'!L75+'Interim inputs and outputs'!L76) -> 290.3087989 | N85: =('Interim inputs and outputs'!M75+'Interim inputs and outputs'!M76) -> 289.7541321 | O85: =('Interim inputs and outputs'!N75+'Interim inputs and outputs'!N76) -> 288.2697828 | P85: =('Interim inputs and outputs'!O75+'Interim inputs and outputs'!O76) -> 287.2354301 | Q85: =('Interim inputs and outputs'!P75+'Interim inputs and outputs'!P76) -> 287.1925802 | R85: =('Interim inputs and outputs'!Q75+'Interim inputs and outputs'!Q76) -> 282.9810502 | S85: =('Interim inputs and outputs'!R75+'Interim inputs and outputs'!R76) -> 278.3689894 | T85: =('Interim inputs and outputs'!S75+'Interim inputs and outputs'!S76) -> 277.7630268 | U85: =('Interim inputs and outputs'!T75+'Interim inputs and outputs'!T76) -> 274.5308557 | V85: =('Interim inputs and outputs'!U75+'Interim inputs and outputs'!U76) -> 271.0339369 | W85: =('Interim inputs and outputs'!V75+'Interim inputs and outputs'!V76) -> 266.1754863 | X85: =('Interim inputs and outputs'!W75+'Interim inputs and outputs'!W76) -> 268.1088124 | Y85: =('Interim inputs and outputs'!X75+'Interim inputs and outputs'!X76) -> 268.5085326 | Z85: =('Interim inputs and outputs'!Y75+'Interim inputs and outputs'!Y76) -> 268.8492981 | AA85: =('Interim inputs and outputs'!Z75+'Interim inputs and outputs'!Z76) -> 267.8181786 | AB85: =('Interim inputs and outputs'!AA75+'Interim inputs and outputs'!AA76) -> 264.0979797 | AC85: =('Interim inputs and outputs'!AB75+'Interim inputs and outputs'!AB76) -> 265.8133304 | AD85: =('Interim inputs and outputs'!AC75+'Interim inputs and outputs'!AC76) -> 266.2634874 | AE85: =('Interim inputs and outputs'!AD75+'Interim inputs and outputs'!AD76) -> 267.9659015 | AF85: =('Interim inputs and outputs'!AE75+'Interim inputs and outputs'!AE76) -> 272.1377187 | AG85: =('Interim inputs and outputs'!AF75+'Interim inputs and outputs'!AF76) -> 276.0579374 | AH85: =('Interim inputs and outputs'!AG75+'Interim inputs and outputs'!AG76) -> 277.0895956 | AI85: =('Interim inputs and outputs'!AH75+'Interim inputs and outputs'!AH76) -> 276.044918 | AJ85: =('Interim inputs and outputs'!AI75+'Interim inputs and outputs'!AI76) -> 273.8597329 | AK85: =('Interim inputs and outputs'!AJ75+'Interim inputs and outputs'!AJ76) -> 271.4339993 | AL85: =('Interim inputs and outputs'!AK75+'Interim inputs and outputs'!AK76) -> 267.662122 | AM85: =('Interim inputs and outputs'!AL75+'Interim inputs and outputs'!AL76) -> 266.3481587 | AN85: =('Interim inputs and outputs'!AM75+'Interim inputs and outputs'!AM76) -> 265.6013117 | AO85: =('Interim inputs and outputs'!AN75+'Interim inputs and outputs'!AN76) -> 265.3152153 | AP85: =('Interim inputs and outputs'!AO75+'Interim inputs and outputs'!AO76) -> 265.4408421 | AQ85: 0.02623319371
B87: Alberta CO2e emissions | C87: ='Alberta GHG Calcs'!I8 -> 0 | D87: ='Alberta GHG Calcs'!J8 -> 0 | E87: ='Alberta GHG Calcs'!K8 -> 0 | F87: ='Alberta GHG Calcs'!L8 -> 0 | G87: ='Alberta GHG Calcs'!M8 -> 0 | H87: ='Alberta GHG Calcs'!N8 -> 0 | I87: ='Alberta GHG Calcs'!O8 -> 0 | J87: ='Alberta GHG Calcs'!P8 -> 0 | K87: ='Alberta GHG Calcs'!Q8 -> 0 | L87: ='Alberta GHG Calcs'!R8 -> 0 | M87: ='Alberta GHG Calcs'!S8 -> 0 | N87: ='Alberta GHG Calcs'!T8 -> 0 | O87: ='Alberta GHG Calcs'!U8 -> 0 | P87: ='Alberta GHG Calcs'!V8 -> 0 | Q87: ='Alberta GHG Calcs'!W8 -> 0 | R87: ='Alberta GHG Calcs'!X8 -> 0 | S87: ='Alberta GHG Calcs'!Y8 -> 0 | T87: ='Alberta GHG Calcs'!Z8 -> 0 | U87: ='Alberta GHG Calcs'!AA8 -> 0 | V87: ='Alberta GHG Calcs'!AB8 -> 0 | W87: ='Alberta GHG Calcs'!AC8 -> 0 | X87: ='Alberta GHG Calcs'!AD8 -> 0 | Y87: ='Alberta GHG Calcs'!AE8 -> 0 | Z87: ='Alberta GHG Calcs'!AF8 -> 0 | AA87: ='Alberta GHG Calcs'!AG8 -> 0 | AB87: ='Alberta GHG Calcs'!AH8 -> 0 | AC87: ='Alberta GHG Calcs'!AI8 -> 0 | AD87: ='Alberta GHG Calcs'!AJ8 -> 0 | AE87: ='Alberta GHG Calcs'!AK8 -> 0 | AF87: ='Alberta GHG Calcs'!AL8 -> 0 | AG87: ='Alberta GHG Calcs'!AM8 -> 0 | AH87: ='Alberta GHG Calcs'!AN8 -> 0 | AI87: ='Alberta GHG Calcs'!AO8 -> 0 | AJ87: ='Alberta GHG Calcs'!AP8 -> 0 | AK87: ='Alberta GHG Calcs'!AQ8 -> 0 | AL87: ='Alberta GHG Calcs'!AR8 -> 0 | AM87: ='Alberta GHG Calcs'!AS8 -> 0 | AN87: ='Alberta GHG Calcs'!AT8 -> 0 | AO87: ='Alberta GHG Calcs'!AU8 -> 0 | AP87: ='Alberta GHG Calcs'!AV8 -> 0
B88: Combustion | C88: ='Alberta GHG Calcs'!I9 -> 0 | D88: ='Alberta GHG Calcs'!J9 -> 0 | E88: ='Alberta GHG Calcs'!K9 -> 0 | F88: ='Alberta GHG Calcs'!L9 -> 0 | G88: ='Alberta GHG Calcs'!M9 -> 0 | H88: ='Alberta GHG Calcs'!N9 -> 0 | I88: ='Alberta GHG Calcs'!O9 -> 0 | J88: ='Alberta GHG Calcs'!P9 -> 0 | K88: ='Alberta GHG Calcs'!Q9 -> 0 | L88: ='Alberta GHG Calcs'!R9 -> 0 | M88: ='Alberta GHG Calcs'!S9 -> 0 | N88: ='Alberta GHG Calcs'!T9 -> 0 | O88: ='Alberta GHG Calcs'!U9 -> 0 | P88: ='Alberta GHG Calcs'!V9 -> 0 | Q88: ='Alberta GHG Calcs'!W9 -> 0 | R88: ='Alberta GHG Calcs'!X9 -> 0 | S88: ='Alberta GHG Calcs'!Y9 -> 0 | T88: ='Alberta GHG Calcs'!Z9 -> 0 | U88: ='Alberta GHG Calcs'!AA9 -> 0 | V88: ='Alberta GHG Calcs'!AB9 -> 0 | W88: ='Alberta GHG Calcs'!AC9 -> 0 | X88: ='Alberta GHG Calcs'!AD9 -> 0 | Y88: ='Alberta GHG Calcs'!AE9 -> 0 | Z88: ='Alberta GHG Calcs'!AF9 -> 0 | AA88: ='Alberta GHG Calcs'!AG9 -> 0 | AB88: ='Alberta GHG Calcs'!AH9 -> 0 | AC88: ='Alberta GHG Calcs'!AI9 -> 0 | AD88: ='Alberta GHG Calcs'!AJ9 -> 0 | AE88: ='Alberta GHG Calcs'!AK9 -> 0 | AF88: ='Alberta GHG Calcs'!AL9 -> 0 | AG88: ='Alberta GHG Calcs'!AM9 -> 0 | AH88: ='Alberta GHG Calcs'!AN9 -> 0 | AI88: ='Alberta GHG Calcs'!AO9 -> 0 | AJ88: ='Alberta GHG Calcs'!AP9 -> 0 | AK88: ='Alberta GHG Calcs'!AQ9 -> 0 | AL88: ='Alberta GHG Calcs'!AR9 -> 0 | AM88: ='Alberta GHG Calcs'!AS9 -> 0 | AN88: ='Alberta GHG Calcs'!AT9 -> 0 | AO88: ='Alberta GHG Calcs'!AU9 -> 0 | AP88: ='Alberta GHG Calcs'!AV9 -> 0 | AQ88: =AP88/$AP$87 -> 
B89: Formation CO2 venting | C89: ='Alberta GHG Calcs'!I10 -> 0 | D89: ='Alberta GHG Calcs'!J10 -> 0 | E89: ='Alberta GHG Calcs'!K10 -> 0 | F89: ='Alberta GHG Calcs'!L10 -> 0 | G89: ='Alberta GHG Calcs'!M10 -> 0 | H89: ='Alberta GHG Calcs'!N10 -> 0 | I89: ='Alberta GHG Calcs'!O10 -> 0 | J89: ='Alberta GHG Calcs'!P10 -> 0 | K89: ='Alberta GHG Calcs'!Q10 -> 0 | L89: ='Alberta GHG Calcs'!R10 -> 0 | M89: ='Alberta GHG Calcs'!S10 -> 0 | N89: ='Alberta GHG Calcs'!T10 -> 0 | O89: ='Alberta GHG Calcs'!U10 -> 0 | P89: ='Alberta GHG Calcs'!V10 -> 0 | Q89: ='Alberta GHG Calcs'!W10 -> 0 | R89: ='Alberta GHG Calcs'!X10 -> 0 | S89: ='Alberta GHG Calcs'!Y10 -> 0 | T89: ='Alberta GHG Calcs'!Z10 -> 0 | U89: ='Alberta GHG Calcs'!AA10 -> 0 | V89: ='Alberta GHG Calcs'!AB10 -> 0 | W89: ='Alberta GHG Calcs'!AC10 -> 0 | X89: ='Alberta GHG Calcs'!AD10 -> 0 | Y89: ='Alberta GHG Calcs'!AE10 -> 0 | Z89: ='Alberta GHG Calcs'!AF10 -> 0 | AA89: ='Alberta GHG Calcs'!AG10 -> 0 | AB89: ='Alberta GHG Calcs'!AH10 -> 0 | AC89: ='Alberta GHG Calcs'!AI10 -> 0 | AD89: ='Alberta GHG Calcs'!AJ10 -> 0 | AE89: ='Alberta GHG Calcs'!AK10 -> 0 | AF89: ='Alberta GHG Calcs'!AL10 -> 0 | AG89: ='Alberta GHG Calcs'!AM10 -> 0 | AH89: ='Alberta GHG Calcs'!AN10 -> 0 | AI89: ='Alberta GHG Calcs'!AO10 -> 0 | AJ89: ='Alberta GHG Calcs'!AP10 -> 0 | AK89: ='Alberta GHG Calcs'!AQ10 -> 0 | AL89: ='Alberta GHG Calcs'!AR10 -> 0 | AM89: ='Alberta GHG Calcs'!AS10 -> 0 | AN89: ='Alberta GHG Calcs'!AT10 -> 0 | AO89: ='Alberta GHG Calcs'!AU10 -> 0 | AP89: ='Alberta GHG Calcs'!AV10 -> 0 | AQ89: =AP89/$AP$87 -> 
B90: Methane Fugitive | C90: ='Alberta GHG Calcs'!I11 -> 0 | D90: ='Alberta GHG Calcs'!J11 -> 0 | E90: ='Alberta GHG Calcs'!K11 -> 0 | F90: ='Alberta GHG Calcs'!L11 -> 0 | G90: ='Alberta GHG Calcs'!M11 -> 0 | H90: ='Alberta GHG Calcs'!N11 -> 0 | I90: ='Alberta GHG Calcs'!O11 -> 0 | J90: ='Alberta GHG Calcs'!P11 -> 0 | K90: ='Alberta GHG Calcs'!Q11 -> 0 | L90: ='Alberta GHG Calcs'!R11 -> 0 | M90: ='Alberta GHG Calcs'!S11 -> 0 | N90: ='Alberta GHG Calcs'!T11 -> 0 | O90: ='Alberta GHG Calcs'!U11 -> 0 | P90: ='Alberta GHG Calcs'!V11 -> 0 | Q90: ='Alberta GHG Calcs'!W11 -> 0 | R90: ='Alberta GHG Calcs'!X11 -> 0 | S90: ='Alberta GHG Calcs'!Y11 -> 0 | T90: ='Alberta GHG Calcs'!Z11 -> 0 | U90: ='Alberta GHG Calcs'!AA11 -> 0 | V90: ='Alberta GHG Calcs'!AB11 -> 0 | W90: ='Alberta GHG Calcs'!AC11 -> 0 | X90: ='Alberta GHG Calcs'!AD11 -> 0 | Y90: ='Alberta GHG Calcs'!AE11 -> 0 | Z90: ='Alberta GHG Calcs'!AF11 -> 0 | AA90: ='Alberta GHG Calcs'!AG11 -> 0 | AB90: ='Alberta GHG Calcs'!AH11 -> 0 | AC90: ='Alberta GHG Calcs'!AI11 -> 0 | AD90: ='Alberta GHG Calcs'!AJ11 -> 0 | AE90: ='Alberta GHG Calcs'!AK11 -> 0 | AF90: ='Alberta GHG Calcs'!AL11 -> 0 | AG90: ='Alberta GHG Calcs'!AM11 -> 0 | AH90: ='Alberta GHG Calcs'!AN11 -> 0 | AI90: ='Alberta GHG Calcs'!AO11 -> 0 | AJ90: ='Alberta GHG Calcs'!AP11 -> 0 | AK90: ='Alberta GHG Calcs'!AQ11 -> 0 | AL90: ='Alberta GHG Calcs'!AR11 -> 0 | AM90: ='Alberta GHG Calcs'!AS11 -> 0 | AN90: ='Alberta GHG Calcs'!AT11 -> 0 | AO90: ='Alberta GHG Calcs'!AU11 -> 0 | AP90: ='Alberta GHG Calcs'!AV11 -> 0
B91: Methane Venting | C91: ='Alberta GHG Calcs'!I12 -> 0 | D91: ='Alberta GHG Calcs'!J12 -> 0 | E91: ='Alberta GHG Calcs'!K12 -> 0 | F91: ='Alberta GHG Calcs'!L12 -> 0 | G91: ='Alberta GHG Calcs'!M12 -> 0 | H91: ='Alberta GHG Calcs'!N12 -> 0 | I91: ='Alberta GHG Calcs'!O12 -> 0 | J91: ='Alberta GHG Calcs'!P12 -> 0 | K91: ='Alberta GHG Calcs'!Q12 -> 0 | L91: ='Alberta GHG Calcs'!R12 -> 0 | M91: ='Alberta GHG Calcs'!S12 -> 0 | N91: ='Alberta GHG Calcs'!T12 -> 0 | O91: ='Alberta GHG Calcs'!U12 -> 0 | P91: ='Alberta GHG Calcs'!V12 -> 0 | Q91: ='Alberta GHG Calcs'!W12 -> 0 | R91: ='Alberta GHG Calcs'!X12 -> 0 | S91: ='Alberta GHG Calcs'!Y12 -> 0 | T91: ='Alberta GHG Calcs'!Z12 -> 0 | U91: ='Alberta GHG Calcs'!AA12 -> 0 | V91: ='Alberta GHG Calcs'!AB12 -> 0 | W91: ='Alberta GHG Calcs'!AC12 -> 0 | X91: ='Alberta GHG Calcs'!AD12 -> 0 | Y91: ='Alberta GHG Calcs'!AE12 -> 0 | Z91: ='Alberta GHG Calcs'!AF12 -> 0 | AA91: ='Alberta GHG Calcs'!AG12 -> 0 | AB91: ='Alberta GHG Calcs'!AH12 -> 0 | AC91: ='Alberta GHG Calcs'!AI12 -> 0 | AD91: ='Alberta GHG Calcs'!AJ12 -> 0 | AE91: ='Alberta GHG Calcs'!AK12 -> 0 | AF91: ='Alberta GHG Calcs'!AL12 -> 0 | AG91: ='Alberta GHG Calcs'!AM12 -> 0 | AH91: ='Alberta GHG Calcs'!AN12 -> 0 | AI91: ='Alberta GHG Calcs'!AO12 -> 0 | AJ91: ='Alberta GHG Calcs'!AP12 -> 0 | AK91: ='Alberta GHG Calcs'!AQ12 -> 0 | AL91: ='Alberta GHG Calcs'!AR12 -> 0 | AM91: ='Alberta GHG Calcs'!AS12 -> 0 | AN91: ='Alberta GHG Calcs'!AT12 -> 0 | AO91: ='Alberta GHG Calcs'!AU12 -> 0 | AP91: ='Alberta GHG Calcs'!AV12 -> 0
B92: Flaring | C92: ='Alberta GHG Calcs'!I13 -> 0 | D92: ='Alberta GHG Calcs'!J13 -> 0 | E92: ='Alberta GHG Calcs'!K13 -> 0 | F92: ='Alberta GHG Calcs'!L13 -> 0 | G92: ='Alberta GHG Calcs'!M13 -> 0 | H92: ='Alberta GHG Calcs'!N13 -> 0 | I92: ='Alberta GHG Calcs'!O13 -> 0 | J92: ='Alberta GHG Calcs'!P13 -> 0 | K92: ='Alberta GHG Calcs'!Q13 -> 0 | L92: ='Alberta GHG Calcs'!R13 -> 0 | M92: ='Alberta GHG Calcs'!S13 -> 0 | N92: ='Alberta GHG Calcs'!T13 -> 0 | O92: ='Alberta GHG Calcs'!U13 -> 0 | P92: ='Alberta GHG Calcs'!V13 -> 0 | Q92: ='Alberta GHG Calcs'!W13 -> 0 | R92: ='Alberta GHG Calcs'!X13 -> 0 | S92: ='Alberta GHG Calcs'!Y13 -> 0 | T92: ='Alberta GHG Calcs'!Z13 -> 0 | U92: ='Alberta GHG Calcs'!AA13 -> 0 | V92: ='Alberta GHG Calcs'!AB13 -> 0 | W92: ='Alberta GHG Calcs'!AC13 -> 0 | X92: ='Alberta GHG Calcs'!AD13 -> 0 | Y92: ='Alberta GHG Calcs'!AE13 -> 0 | Z92: ='Alberta GHG Calcs'!AF13 -> 0 | AA92: ='Alberta GHG Calcs'!AG13 -> 0 | AB92: ='Alberta GHG Calcs'!AH13 -> 0 | AC92: ='Alberta GHG Calcs'!AI13 -> 0 | AD92: ='Alberta GHG Calcs'!AJ13 -> 0 | AE92: ='Alberta GHG Calcs'!AK13 -> 0 | AF92: ='Alberta GHG Calcs'!AL13 -> 0 | AG92: ='Alberta GHG Calcs'!AM13 -> 0 | AH92: ='Alberta GHG Calcs'!AN13 -> 0 | AI92: ='Alberta GHG Calcs'!AO13 -> 0 | AJ92: ='Alberta GHG Calcs'!AP13 -> 0 | AK92: ='Alberta GHG Calcs'!AQ13 -> 0 | AL92: ='Alberta GHG Calcs'!AR13 -> 0 | AM92: ='Alberta GHG Calcs'!AS13 -> 0 | AN92: ='Alberta GHG Calcs'!AT13 -> 0 | AO92: ='Alberta GHG Calcs'!AU13 -> 0 | AP92: ='Alberta GHG Calcs'!AV13 -> 0
B93: Other | C93: ='Alberta GHG Calcs'!I14 -> 0 | D93: ='Alberta GHG Calcs'!J14 -> 0 | E93: ='Alberta GHG Calcs'!K14 -> 0 | F93: ='Alberta GHG Calcs'!L14 -> 0 | G93: ='Alberta GHG Calcs'!M14 -> 0 | H93: ='Alberta GHG Calcs'!N14 -> 0 | I93: ='Alberta GHG Calcs'!O14 -> 0 | J93: ='Alberta GHG Calcs'!P14 -> 0 | K93: ='Alberta GHG Calcs'!Q14 -> 0 | L93: ='Alberta GHG Calcs'!R14 -> 0 | M93: ='Alberta GHG Calcs'!S14 -> 0 | N93: ='Alberta GHG Calcs'!T14 -> 0 | O93: ='Alberta GHG Calcs'!U14 -> 0 | P93: ='Alberta GHG Calcs'!V14 -> 0 | Q93: ='Alberta GHG Calcs'!W14 -> 0 | R93: ='Alberta GHG Calcs'!X14 -> 0 | S93: ='Alberta GHG Calcs'!Y14 -> 0 | T93: ='Alberta GHG Calcs'!Z14 -> 0 | U93: ='Alberta GHG Calcs'!AA14 -> 0 | V93: ='Alberta GHG Calcs'!AB14 -> 0 | W93: ='Alberta GHG Calcs'!AC14 -> 0 | X93: ='Alberta GHG Calcs'!AD14 -> 0 | Y93: ='Alberta GHG Calcs'!AE14 -> 0 | Z93: ='Alberta GHG Calcs'!AF14 -> 0 | AA93: ='Alberta GHG Calcs'!AG14 -> 0 | AB93: ='Alberta GHG Calcs'!AH14 -> 0 | AC93: ='Alberta GHG Calcs'!AI14 -> 0 | AD93: ='Alberta GHG Calcs'!AJ14 -> 0 | AE93: ='Alberta GHG Calcs'!AK14 -> 0 | AF93: ='Alberta GHG Calcs'!AL14 -> 0 | AG93: ='Alberta GHG Calcs'!AM14 -> 0 | AH93: ='Alberta GHG Calcs'!AN14 -> 0 | AI93: ='Alberta GHG Calcs'!AO14 -> 0 | AJ93: ='Alberta GHG Calcs'!AP14 -> 0 | AK93: ='Alberta GHG Calcs'!AQ14 -> 0 | AL93: ='Alberta GHG Calcs'!AR14 -> 0 | AM93: ='Alberta GHG Calcs'!AS14 -> 0 | AN93: ='Alberta GHG Calcs'!AT14 -> 0 | AO93: ='Alberta GHG Calcs'!AU14 -> 0 | AP93: ='Alberta GHG Calcs'!AV14 -> 0
B95: Total CO2e emissions | C95: =C79+C87 -> 9623.46877 | D95: =D79+D87 -> 9376.4507 | E95: 10054.5055 | F95: 10391.96543 | G95: 10248.87019 | H95: 9919.606053 | I95: 9914.884979 | J95: 9918.209577 | K95: 9904.194268 | L95: 9871.156258 | M95: 9891.877214 | N95: 9929.280257 | O95: 9955.982315 | P95: 9987.299296 | Q95: 10032.64237 | R95: 10057.05702 | S95: 10067.70433 | T95: 10128.84069 | U95: 10162.05466 | V95: 10187.48815 | W95: 10130.73766 | X95: 10149.18224 | Y95: 10158.26144 | Z95: 10164.35549 | AA95: 10152.13848 | AB95: 10102.04873 | AC95: 10117.86643 | AD95: 10126.41446 | AE95: 10149.75724 | AF95: 10207.87021 | AG95: 10267.759 | AH95: 10289.6093 | AI95: 10279.22849 | AJ95: 10249.63691 | AK95: 10214.14387 | AL95: 10160.24932 | AM95: 10135.63507 | AN95: 10122.92448 | AO95: 10117.52526 | AP95: 10118.51035
B96: Combustion | C96: =C80+C88 -> 5821.410114 | D96: 5695.957787 | E96: 6109.875075 | F96: 6323.362617 | G96: 6262.254461 | H96: 6261.214232 | I96: 6274.820567 | J96: 6293.106712 | K96: 6299.823809 | L96: 6293.413955 | M96: 6273.570095 | N96: 6264.171983 | O96: 6247.030419 | P96: 6233.268825 | Q96: 6229.29817 | R96: 6191.874597 | S96: 6145.503374 | T96: 6135.033618 | U96: 6104.012703 | V96: 6067.951561 | W96: 6026.995597 | X96: 6040.905568 | Y96: 6046.88324 | Z96: 6051.007421 | AA96: 6042.225499 | AB96: 6006.981367 | AC96: 6018.977149 | AD96: 6024.704123 | AE96: 6041.082348 | AF96: 6081.761404 | AG96: 6123.090768 | AH96: 6137.541103 | AI96: 6129.817606 | AJ96: 6109.026066 | AK96: 6084.387251 | AL96: 6046.828575 | AM96: 6030.31639 | AN96: 6021.734462 | AO96: 6018.156335 | AP96: 6018.973072
B97: Formation CO2 venting | C97: 2072.276838 | D97: 2013.590641 | E97: 2164.081568 | F97: 2247.055169 | G97: 2193.347616 | H97: 1868.34861 | I97: 1839.878623 | J97: 1817.951904 | K97: 1795.503389 | L97: 1772.764124 | M97: 1823.562297 | N97: 1875.632607 | O97: 1927.913582 | P97: 1980.067533 | Q97: 2032.329499 | R97: 2110.0162 | S97: 2187.61167 | T97: 2265.00057 | U97: 2343.310084 | V97: 2421.173476 | W97: 2422.025319 | X97: 2420.979863 | Y97: 2421.361959 | Z97: 2421.511291 | AA97: 2421.615643 | AB97: 2421.396606 | AC97: 2420.518112 | AD97: 2420.839636 | AE97: 2420.978116 | AF97: 2421.386711 | AG97: 2422.403023 | AH97: 2423.42475 | AI97: 2423.768359 | AJ97: 2423.571948 | AK97: 2423.0587 | AL97: 2422.453246 | AM97: 2421.524443 | AN97: 2421.127693 | AO97: 2420.919033 | AP97: 2420.830982
B98: Methane Fugitive | C98: 301.0026806 | D98: 300.179522 | E98: 319.6756381 | F98: 331.8272182 | G98: 331.7488531 | H98: 332.1895345 | I98: 332.2840347 | J98: 333.1090076 | K98: 333.4086507 | L98: 332.9646574 | M98: 332.4213075 | N98: 332.1433632 | O98: 331.3370314 | P98: 330.7802018 | Q98: 330.8094279 | R98: 328.4174352 | S98: 325.779427 | T98: 325.4653434 | U98: 323.6768695 | V98: 321.697034 | W98: 318.9131777 | X98: 319.9733405 | Y98: 320.2328553 | Z98: 320.442204 | AA98: 319.8462281 | AB98: 317.6558533 | AC98: 318.5997954 | AD98: 318.8847235 | AE98: 319.889647 | AF98: 322.3569097 | AG98: 324.7179966 | AH98: 325.3901883 | AI98: 324.80241 | AJ98: 323.5112523 | AK98: 322.0580637 | AL98: 319.8114213 | AM98: 318.980398 | AN98: 318.5316331 | AO98: 318.3630016 | AP98: 318.4430438
B99: Methane Venting | C99: 684.6305696 | D99: 689.6175504 | E99: 720.4438061 | F99: 738.5679065 | G99: 744.4977666 | H99: 745.6742721 | I99: 747.2399897 | J99: 749.586195 | K99: 749.9008763 | L99: 747.1987886 | M99: 745.2027769 | N99: 743.8637252 | O99: 740.2654427 | P99: 737.7592174 | Q99: 737.6677989 | R99: 727.4337066 | S99: 716.2219211 | T99: 714.7565579 | U99: 706.9135414 | V99: 698.4174579 | W99: 686.6055392 | X99: 691.2945657 | Y99: 692.2736005 | Z99: 693.1054167 | AA99: 690.5973254 | AB99: 681.5388038 | AC99: 685.6999448 | AD99: 686.8007751 | AE99: 690.9466905 | AF99: 701.1074889 | AG99: 710.6656106 | AH99: 713.1930204 | AI99: 710.6557542 | AJ99: 705.3338407 | AK99: 699.4213621 | AL99: 690.2308755 | AM99: 687.017817 | AN99: 685.2549891 | AO99: 684.6083346 | AP99: 684.9647677
B100: Flaring | C100: 476.9822587 | D100: 407.6810877 | E100: 459.5901316 | F100: 463.6729788 | G100: 426.9503452 | H100: 421.6412281 | I100: 429.4512074 | J100: 432.308281 | K100: 433.3039387 | L100: 433.6924777 | M100: 426.8119383 | N100: 423.7144469 | O100: 421.1660572 | P100: 418.1880892 | Q100: 415.3448936 | R100: 416.3340265 | S100: 414.218952 | T100: 410.8215754 | U100: 409.6106025 | V100: 407.2146859 | W100: 410.0225453 | X100: 407.9200924 | Y100: 409.0012581 | Z100: 409.4398587 | AA100: 410.035606 | AB100: 410.3781207 | AC100: 408.2581009 | AD100: 408.9217107 | AE100: 408.894534 | AF100: 409.1199816 | AG100: 410.8236636 | AH100: 412.9706427 | AI100: 414.1394424 | AJ100: 414.3340714 | AK100: 413.7844918 | AL100: 413.2630847 | AM100: 411.4478598 | AN100: 410.6743863 | AO100: 410.1633454 | AP100: 409.8576433
B101: Other methane | C101: 267.1663091 | D101: 269.4241124 | E101: 280.8392763 | F101: 287.4795362 | G101: 290.0711477 | H101: 290.5381758 | I101: 291.2105572 | J101: 292.1474768 | K101: 292.2536047 | L101: 291.1222559 | M101: 290.3087989 | N101: 289.7541321 | O101: 288.2697828 | P101: 287.2354301 | Q101: 287.1925802 | R101: 282.9810502 | S101: 278.3689894 | T101: 277.7630268 | U101: 274.5308557 | V101: 271.0339369 | W101: 266.1754863 | X101: 268.1088124 | Y101: 268.5085326 | Z101: 268.8492981 | AA101: 267.8181786 | AB101: 264.0979797 | AC101: 265.8133304 | AD101: 266.2634874 | AE101: 267.9659015 | AF101: 272.1377187 | AG101: 276.0579374 | AH101: 277.0895956 | AI101: 276.044918 | AJ101: 273.8597329 | AK101: 271.4339993 | AL101: 267.662122 | AM101: 266.3481587 | AN101: =AN85+AN93 -> 265.6013117 | AO101: 265.3152153 | AP101: 265.4408421
B118: By Basin
B119: Conventional
B120: Total CO2e | C120: =SUMPRODUCT('Conventional GHG Calcs'!$F4:$F26,'Conventional GHG Calcs'!G4:G26) -> 7788.707606 | D120: =SUMPRODUCT('Conventional GHG Calcs'!$F4:$F26,'Conventional GHG Calcs'!H4:H26) -> 7046.208102 | E120: =SUMPRODUCT('Conventional GHG Calcs'!$F4:$F26,'Conventional GHG Calcs'!I4:I26) -> 6921.883948 | F120: =SUMPRODUCT('Conventional GHG Calcs'!$F4:$F26,'Conventional GHG Calcs'!J4:J26) -> 6474.106857 | G120: =SUMPRODUCT('Conventional GHG Calcs'!$F4:$F26,'Conventional GHG Calcs'!K4:K26) -> 5746.446946 | H120: =SUMPRODUCT('Conventional GHG Calcs'!$F4:$F26,'Conventional GHG Calcs'!L4:L26) -> 4924.229051 | I120: =SUMPRODUCT('Conventional GHG Calcs'!$F4:$F26,'Conventional GHG Calcs'!M4:M26) -> 4844.997752 | J120: =SUMPRODUCT('Conventional GHG Calcs'!$F4:$F26,'Conventional GHG Calcs'!N4:N26) -> 4710.728541 | K120: =SUMPRODUCT('Conventional GHG Calcs'!$F4:$F26,'Conventional GHG Calcs'!O4:O26) -> 4558.56977 | L120: =SUMPRODUCT('Conventional GHG Calcs'!$F4:$F26,'Conventional GHG Calcs'!P4:P26) -> 4387.496829 | M120: =SUMPRODUCT('Conventional GHG Calcs'!$F4:$F26,'Conventional GHG Calcs'!Q4:Q26) -> 4125.133298 | N120: =SUMPRODUCT('Conventional GHG Calcs'!$F4:$F26,'Conventional GHG Calcs'!R4:R26) -> 3876.653971 | O120: =SUMPRODUCT('Conventional GHG Calcs'!$F4:$F26,'Conventional GHG Calcs'!S4:S26) -> 3616.50222 | P120: =SUMPRODUCT('Conventional GHG Calcs'!$F4:$F26,'Conventional GHG Calcs'!T4:T26) -> 3361.726157 | Q120: =SUMPRODUCT('Conventional GHG Calcs'!$F4:$F26,'Conventional GHG Calcs'!U4:U26) -> 3120.417062 | R120: =SUMPRODUCT('Conventional GHG Calcs'!$F4:$F26,'Conventional GHG Calcs'!V4:V26) -> 2921.077818 | S120: =SUMPRODUCT('Conventional GHG Calcs'!$F4:$F26,'Conventional GHG Calcs'!W4:W26) -> 2706.161458 | T120: =SUMPRODUCT('Conventional GHG Calcs'!$F4:$F26,'Conventional GHG Calcs'!X4:X26) -> 2543.140559 | U120: =SUMPRODUCT('Conventional GHG Calcs'!$F4:$F26,'Conventional GHG Calcs'!Y4:Y26) -> 2352.509897 | V120: =SUMPRODUCT('Conventional GHG Calcs'!$F4:$F26,'Conventional GHG Calcs'!Z4:Z26) -> 2165.681133 | W120: =SUMPRODUCT('Conventional GHG Calcs'!$F4:$F26,'Conventional GHG Calcs'!AA4:AA26) -> 2050.609723 | X120: =SUMPRODUCT('Conventional GHG Calcs'!$F4:$F26,'Conventional GHG Calcs'!AB4:AB26) -> 2009.98941 | Y120: =SUMPRODUCT('Conventional GHG Calcs'!$F4:$F26,'Conventional GHG Calcs'!AC4:AC26) -> 1955.293122 | Z120: =SUMPRODUCT('Conventional GHG Calcs'!$F4:$F26,'Conventional GHG Calcs'!AD4:AD26) -> 1900.080389 | AA120: =SUMPRODUCT('Conventional GHG Calcs'!$F4:$F26,'Conventional GHG Calcs'!AE4:AE26) -> 1827.36854 | AB120: =SUMPRODUCT('Conventional GHG Calcs'!$F4:$F26,'Conventional GHG Calcs'!AF4:AF26) -> 1726.052774 | AC120: =SUMPRODUCT('Conventional GHG Calcs'!$F4:$F26,'Conventional GHG Calcs'!AG4:AG26) -> 1695.005318 | AD120: =SUMPRODUCT('Conventional GHG Calcs'!$F4:$F26,'Conventional GHG Calcs'!AH4:AH26) -> 1658.541774 | AE120: =SUMPRODUCT('Conventional GHG Calcs'!$F4:$F26,'Conventional GHG Calcs'!AI4:AI26) -> 1641.97355 | AF120: =SUMPRODUCT('Conventional GHG Calcs'!$F4:$F26,'Conventional GHG Calcs'!AJ4:AJ26) -> 1664.872621 | AG120: =SUMPRODUCT('Conventional GHG Calcs'!$F4:$F26,'Conventional GHG Calcs'!AK4:AK26) -> 1716.391317 | AH120: =SUMPRODUCT('Conventional GHG Calcs'!$F4:$F26,'Conventional GHG Calcs'!AL4:AL26) -> 1734.723889 | AI120: =SUMPRODUCT('Conventional GHG Calcs'!$F4:$F26,'Conventional GHG Calcs'!AM4:AM26) -> 1742.683991 | AJ120: =SUMPRODUCT('Conventional GHG Calcs'!$F4:$F26,'Conventional GHG Calcs'!AN4:AN26) -> 1745.580759 | AK120: =SUMPRODUCT('Conventional GHG Calcs'!$F4:$F26,'Conventional GHG Calcs'!AO4:AO26) -> 1744.830279 | AL120: =SUMPRODUCT('Conventional GHG Calcs'!$F4:$F26,'Conventional GHG Calcs'!AP4:AP26) -> 1750.193967 | AM120: =SUMPRODUCT('Conventional GHG Calcs'!$F4:$F26,'Conventional GHG Calcs'!AQ4:AQ26) -> 1758.527527 | AN120: =SUMPRODUCT('Conventional GHG Calcs'!$F4:$F26,'Conventional GHG Calcs'!AR4:AR26) -> 1769.029764 | AO120: =SUMPRODUCT('Conventional GHG Calcs'!$F4:$F26,'Conventional GHG Calcs'!AS4:AS26) -> 1782.218691 | AP120: =SUMPRODUCT('Conventional GHG Calcs'!$F4:$F26,'Conventional GHG Calcs'!AT4:AT26) -> 1798.756946
B121: Montney
B122: Total CO2e | C122: =SUMPRODUCT('Montney GHG Calcs'!$F4:$F26,'Montney GHG Calcs'!G4:G26) -> 1191.320465 | D122: =SUMPRODUCT('Montney GHG Calcs'!$F4:$F26,'Montney GHG Calcs'!H4:H26) -> 1483.765804 | E122: =SUMPRODUCT('Montney GHG Calcs'!$F4:$F26,'Montney GHG Calcs'!I4:I26) -> 1975.883171 | F122: =SUMPRODUCT('Montney GHG Calcs'!$F4:$F26,'Montney GHG Calcs'!J4:J26) -> 2452.861345 | G122: =SUMPRODUCT('Montney GHG Calcs'!$F4:$F26,'Montney GHG Calcs'!K4:K26) -> 2805.65508 | H122: =SUMPRODUCT('Montney GHG Calcs'!$F4:$F26,'Montney GHG Calcs'!L4:L26) -> 3444.55818 | I122: =SUMPRODUCT('Montney GHG Calcs'!$F4:$F26,'Montney GHG Calcs'!M4:M26) -> 3511.227391 | J122: =SUMPRODUCT('Montney GHG Calcs'!$F4:$F26,'Montney GHG Calcs'!N4:N26) -> 3637.241331 | K122: =SUMPRODUCT('Montney GHG Calcs'!$F4:$F26,'Montney GHG Calcs'!O4:O26) -> 3764.342302 | L122: =SUMPRODUCT('Montney GHG Calcs'!$F4:$F26,'Montney GHG Calcs'!P4:P26) -> 3891.557434 | M122: =SUMPRODUCT('Montney GHG Calcs'!$F4:$F26,'Montney GHG Calcs'!Q4:Q26) -> 4012.278496 | N122: =SUMPRODUCT('Montney GHG Calcs'!$F4:$F26,'Montney GHG Calcs'!R4:R26) -> 4135.864401 | O122: =SUMPRODUCT('Montney GHG Calcs'!$F4:$F26,'Montney GHG Calcs'!S4:S26) -> 4259.429466 | P122: =SUMPRODUCT('Montney GHG Calcs'!$F4:$F26,'Montney GHG Calcs'!T4:T26) -> 4382.504899 | Q122: =SUMPRODUCT('Montney GHG Calcs'!$F4:$F26,'Montney GHG Calcs'!U4:U26) -> 4505.685278 | R122: =SUMPRODUCT('Montney GHG Calcs'!$F4:$F26,'Montney GHG Calcs'!V4:V26) -> 4567.650775 | S122: =SUMPRODUCT('Montney GHG Calcs'!$F4:$F26,'Montney GHG Calcs'!W4:W26) -> 4633.33315 | T122: =SUMPRODUCT('Montney GHG Calcs'!$F4:$F26,'Montney GHG Calcs'!X4:X26) -> 4697.704508 | U122: =SUMPRODUCT('Montney GHG Calcs'!$F4:$F26,'Montney GHG Calcs'!Y4:Y26) -> 4762.533811 | V122: =SUMPRODUCT('Montney GHG Calcs'!$F4:$F26,'Montney GHG Calcs'!Z4:Z26) -> 4817.454807 | W122: =SUMPRODUCT('Montney GHG Calcs'!$F4:$F26,'Montney GHG Calcs'!AA4:AA26) -> 4873.090817 | X122: =SUMPRODUCT('Montney GHG Calcs'!$F4:$F26,'Montney GHG Calcs'!AB4:AB26) -> 4924.913549 | Y122: =SUMPRODUCT('Montney GHG Calcs'!$F4:$F26,'Montney GHG Calcs'!AC4:AC26) -> 4979.806596 | Z122: =SUMPRODUCT('Montney GHG Calcs'!$F4:$F26,'Montney GHG Calcs'!AD4:AD26) -> 5032.397375 | AA122: =SUMPRODUCT('Montney GHG Calcs'!$F4:$F26,'Montney GHG Calcs'!AE4:AE26) -> 5084.087425 | AB122: =SUMPRODUCT('Montney GHG Calcs'!$F4:$F26,'Montney GHG Calcs'!AF4:AF26) -> 5126.816274 | AC122: =SUMPRODUCT('Montney GHG Calcs'!$F4:$F26,'Montney GHG Calcs'!AG4:AG26) -> 5168.347316 | AD122: =SUMPRODUCT('Montney GHG Calcs'!$F4:$F26,'Montney GHG Calcs'!AH4:AH26) -> 5207.742573 | AE122: =SUMPRODUCT('Montney GHG Calcs'!$F4:$F26,'Montney GHG Calcs'!AI4:AI26) -> 5243.357703 | AF122: =SUMPRODUCT('Montney GHG Calcs'!$F4:$F26,'Montney GHG Calcs'!AJ4:AJ26) -> 5274.932562 | AG122: =SUMPRODUCT('Montney GHG Calcs'!$F4:$F26,'Montney GHG Calcs'!AK4:AK26) -> 5279.851262 | AH122: =SUMPRODUCT('Montney GHG Calcs'!$F4:$F26,'Montney GHG Calcs'!AL4:AL26) -> 5280.897713 | AI122: =SUMPRODUCT('Montney GHG Calcs'!$F4:$F26,'Montney GHG Calcs'!AM4:AM26) -> 5261.91955 | AJ122: =SUMPRODUCT('Montney GHG Calcs'!$F4:$F26,'Montney GHG Calcs'!AN4:AN26) -> 5230.400058 | AK122: =SUMPRODUCT('Montney GHG Calcs'!$F4:$F26,'Montney GHG Calcs'!AO4:AO26) -> 5197.99419 | AL122: =SUMPRODUCT('Montney GHG Calcs'!$F4:$F26,'Montney GHG Calcs'!AP4:AP26) -> 5142.131024 | AM122: =SUMPRODUCT('Montney GHG Calcs'!$F4:$F26,'Montney GHG Calcs'!AQ4:AQ26) -> 5111.45755 | AN122: =SUMPRODUCT('Montney GHG Calcs'!$F4:$F26,'Montney GHG Calcs'!AR4:AR26) -> 5089.280958 | AO122: =SUMPRODUCT('Montney GHG Calcs'!$F4:$F26,'Montney GHG Calcs'!AS4:AS26) -> 5071.244603 | AP122: =SUMPRODUCT('Montney GHG Calcs'!$F4:$F26,'Montney GHG Calcs'!AT4:AT26) -> 5055.912908
B123: Horn River
B124: Total CO2e | C124: =SUMPRODUCT('Horn River GHG Calcs'!$F4:$F26,'Horn River GHG Calcs'!G4:G26) -> 643.4406991 | D124: =SUMPRODUCT('Horn River GHG Calcs'!$F4:$F26,'Horn River GHG Calcs'!H4:H26) -> 846.476794 | E124: =SUMPRODUCT('Horn River GHG Calcs'!$F4:$F26,'Horn River GHG Calcs'!I4:I26) -> 1156.738376 | F124: =SUMPRODUCT('Horn River GHG Calcs'!$F4:$F26,'Horn River GHG Calcs'!J4:J26) -> 1464.997224 | G124: =SUMPRODUCT('Horn River GHG Calcs'!$F4:$F26,'Horn River GHG Calcs'!K4:K26) -> 1696.768163 | H124: =SUMPRODUCT('Horn River GHG Calcs'!$F4:$F26,'Horn River GHG Calcs'!L4:L26) -> 1550.818823 | I124: =SUMPRODUCT('Horn River GHG Calcs'!$F4:$F26,'Horn River GHG Calcs'!M4:M26) -> 1558.659837 | J124: =SUMPRODUCT('Horn River GHG Calcs'!$F4:$F26,'Horn River GHG Calcs'!N4:N26) -> 1570.239705 | K124: =SUMPRODUCT('Horn River GHG Calcs'!$F4:$F26,'Horn River GHG Calcs'!O4:O26) -> 1581.282196 | L124: =SUMPRODUCT('Horn River GHG Calcs'!$F4:$F26,'Horn River GHG Calcs'!P4:P26) -> 1592.101995 | M124: =SUMPRODUCT('Horn River GHG Calcs'!$F4:$F26,'Horn River GHG Calcs'!Q4:Q26) -> 1754.46542 | N124: =SUMPRODUCT('Horn River GHG Calcs'!$F4:$F26,'Horn River GHG Calcs'!R4:R26) -> 1916.761885 | O124: =SUMPRODUCT('Horn River GHG Calcs'!$F4:$F26,'Horn River GHG Calcs'!S4:S26) -> 2080.050629 | P124: =SUMPRODUCT('Horn River GHG Calcs'!$F4:$F26,'Horn River GHG Calcs'!T4:T26) -> 2243.06824 | Q124: =SUMPRODUCT('Horn River GHG Calcs'!$F4:$F26,'Horn River GHG Calcs'!U4:U26) -> 2406.540029 | R124: =SUMPRODUCT('Horn River GHG Calcs'!$F4:$F26,'Horn River GHG Calcs'!V4:V26) -> 2568.328423 | S124: =SUMPRODUCT('Horn River GHG Calcs'!$F4:$F26,'Horn River GHG Calcs'!W4:W26) -> 2728.209725 | T124: =SUMPRODUCT('Horn River GHG Calcs'!$F4:$F26,'Horn River GHG Calcs'!X4:X26) -> 2887.995623 | U124: =SUMPRODUCT('Horn River GHG Calcs'!$F4:$F26,'Horn River GHG Calcs'!Y4:Y26) -> 3047.010948 | V124: =SUMPRODUCT('Horn River GHG Calcs'!$F4:$F26,'Horn River GHG Calcs'!Z4:Z26) -> 3204.352212 | W124: =SUMPRODUCT('Horn River GHG Calcs'!$F4:$F26,'Horn River GHG Calcs'!AA4:AA26) -> 3207.037124 | X124: =SUMPRODUCT('Horn River GHG Calcs'!$F4:$F26,'Horn River GHG Calcs'!AB4:AB26) -> 3214.279282 | Y124: =SUMPRODUCT('Horn River GHG Calcs'!$F4:$F26,'Horn River GHG Calcs'!AC4:AC26) -> 3223.161728 | Z124: =SUMPRODUCT('Horn River GHG Calcs'!$F4:$F26,'Horn River GHG Calcs'!AD4:AD26) -> 3231.877725 | AA124: =SUMPRODUCT('Horn River GHG Calcs'!$F4:$F26,'Horn River GHG Calcs'!AE4:AE26) -> 3240.682515 | AB124: =SUMPRODUCT('Horn River GHG Calcs'!$F4:$F26,'Horn River GHG Calcs'!AF4:AF26) -> 3249.179683 | AC124: =SUMPRODUCT('Horn River GHG Calcs'!$F4:$F26,'Horn River GHG Calcs'!AG4:AG26) -> 3254.5138 | AD124: =SUMPRODUCT('Horn River GHG Calcs'!$F4:$F26,'Horn River GHG Calcs'!AH4:AH26) -> 3260.130108 | AE124: =SUMPRODUCT('Horn River GHG Calcs'!$F4:$F26,'Horn River GHG Calcs'!AI4:AI26) -> 3264.425983 | AF124: =SUMPRODUCT('Horn River GHG Calcs'!$F4:$F26,'Horn River GHG Calcs'!AJ4:AJ26) -> 3268.065031 | AG124: =SUMPRODUCT('Horn River GHG Calcs'!$F4:$F26,'Horn River GHG Calcs'!AK4:AK26) -> 3271.516421 | AH124: =SUMPRODUCT('Horn River GHG Calcs'!$F4:$F26,'Horn River GHG Calcs'!AL4:AL26) -> 3273.987698 | AI124: =SUMPRODUCT('Horn River GHG Calcs'!$F4:$F26,'Horn River GHG Calcs'!AM4:AM26) -> 3274.624948 | AJ124: =SUMPRODUCT('Horn River GHG Calcs'!$F4:$F26,'Horn River GHG Calcs'!AN4:AN26) -> 3273.656094 | AK124: =SUMPRODUCT('Horn River GHG Calcs'!$F4:$F26,'Horn River GHG Calcs'!AO4:AO26) -> 3271.319399 | AL124: =SUMPRODUCT('Horn River GHG Calcs'!$F4:$F26,'Horn River GHG Calcs'!AP4:AP26) -> 3267.924332 | AM124: =SUMPRODUCT('Horn River GHG Calcs'!$F4:$F26,'Horn River GHG Calcs'!AQ4:AQ26) -> 3265.64999 | AN124: =SUMPRODUCT('Horn River GHG Calcs'!$F4:$F26,'Horn River GHG Calcs'!AR4:AR26) -> 3264.613753 | AO124: =SUMPRODUCT('Horn River GHG Calcs'!$F4:$F26,'Horn River GHG Calcs'!AS4:AS26) -> 3264.06197 | AP124: =SUMPRODUCT('Horn River GHG Calcs'!$F4:$F26,'Horn River GHG Calcs'!AT4:AT26) -> 3263.840498
B125: Cordova
B126: Total CO2e | C126: =SUMPRODUCT('Cordova GHG Calcs'!$F4:$F26,'Cordova GHG Calcs'!G4:G26) -> 0 | D126: =SUMPRODUCT('Cordova GHG Calcs'!$F4:$F26,'Cordova GHG Calcs'!H4:H26) -> 0 | E126: =SUMPRODUCT('Cordova GHG Calcs'!$F4:$F26,'Cordova GHG Calcs'!I4:I26) -> 0 | F126: =SUMPRODUCT('Cordova GHG Calcs'!$F4:$F26,'Cordova GHG Calcs'!J4:J26) -> 0 | G126: =SUMPRODUCT('Cordova GHG Calcs'!$F4:$F26,'Cordova GHG Calcs'!K4:K26) -> 0 | H126: =SUMPRODUCT('Cordova GHG Calcs'!$F4:$F26,'Cordova GHG Calcs'!L4:L26) -> 0 | I126: =SUMPRODUCT('Cordova GHG Calcs'!$F4:$F26,'Cordova GHG Calcs'!M4:M26) -> 0 | J126: =SUMPRODUCT('Cordova GHG Calcs'!$F4:$F26,'Cordova GHG Calcs'!N4:N26) -> 0 | K126: =SUMPRODUCT('Cordova GHG Calcs'!$F4:$F26,'Cordova GHG Calcs'!O4:O26) -> 0 | L126: =SUMPRODUCT('Cordova GHG Calcs'!$F4:$F26,'Cordova GHG Calcs'!P4:P26) -> 0 | M126: =SUMPRODUCT('Cordova GHG Calcs'!$F4:$F26,'Cordova GHG Calcs'!Q4:Q26) -> 0 | N126: =SUMPRODUCT('Cordova GHG Calcs'!$F4:$F26,'Cordova GHG Calcs'!R4:R26) -> 0 | O126: =SUMPRODUCT('Cordova GHG Calcs'!$F4:$F26,'Cordova GHG Calcs'!S4:S26) -> 0 | P126: =SUMPRODUCT('Cordova GHG Calcs'!$F4:$F26,'Cordova GHG Calcs'!T4:T26) -> 0 | Q126: =SUMPRODUCT('Cordova GHG Calcs'!$F4:$F26,'Cordova GHG Calcs'!U4:U26) -> 0 | R126: =SUMPRODUCT('Cordova GHG Calcs'!$F4:$F26,'Cordova GHG Calcs'!V4:V26) -> 0 | S126: =SUMPRODUCT('Cordova GHG Calcs'!$F4:$F26,'Cordova GHG Calcs'!W4:W26) -> 0 | T126: =SUMPRODUCT('Cordova GHG Calcs'!$F4:$F26,'Cordova GHG Calcs'!X4:X26) -> 0 | U126: =SUMPRODUCT('Cordova GHG Calcs'!$F4:$F26,'Cordova GHG Calcs'!Y4:Y26) -> 0 | V126: =SUMPRODUCT('Cordova GHG Calcs'!$F4:$F26,'Cordova GHG Calcs'!Z4:Z26) -> 0 | W126: =SUMPRODUCT('Cordova GHG Calcs'!$F4:$F26,'Cordova GHG Calcs'!AA4:AA26) -> 0 | X126: =SUMPRODUCT('Cordova GHG Calcs'!$F4:$F26,'Cordova GHG Calcs'!AB4:AB26) -> 0 | Y126: =SUMPRODUCT('Cordova GHG Calcs'!$F4:$F26,'Cordova GHG Calcs'!AC4:AC26) -> 0 | Z126: =SUMPRODUCT('Cordova GHG Calcs'!$F4:$F26,'Cordova GHG Calcs'!AD4:AD26) -> 0 | AA126: =SUMPRODUCT('Cordova GHG Calcs'!$F4:$F26,'Cordova GHG Calcs'!AE4:AE26) -> 0 | AB126: =SUMPRODUCT('Cordova GHG Calcs'!$F4:$F26,'Cordova GHG Calcs'!AF4:AF26) -> 0 | AC126: =SUMPRODUCT('Cordova GHG Calcs'!$F4:$F26,'Cordova GHG Calcs'!AG4:AG26) -> 0 | AD126: =SUMPRODUCT('Cordova GHG Calcs'!$F4:$F26,'Cordova GHG Calcs'!AH4:AH26) -> 0 | AE126: =SUMPRODUCT('Cordova GHG Calcs'!$F4:$F26,'Cordova GHG Calcs'!AI4:AI26) -> 0 | AF126: =SUMPRODUCT('Cordova GHG Calcs'!$F4:$F26,'Cordova GHG Calcs'!AJ4:AJ26) -> 0 | AG126: =SUMPRODUCT('Cordova GHG Calcs'!$F4:$F26,'Cordova GHG Calcs'!AK4:AK26) -> 0 | AH126: =SUMPRODUCT('Cordova GHG Calcs'!$F4:$F26,'Cordova GHG Calcs'!AL4:AL26) -> 0 | AI126: =SUMPRODUCT('Cordova GHG Calcs'!$F4:$F26,'Cordova GHG Calcs'!AM4:AM26) -> 0 | AJ126: =SUMPRODUCT('Cordova GHG Calcs'!$F4:$F26,'Cordova GHG Calcs'!AN4:AN26) -> 0 | AK126: =SUMPRODUCT('Cordova GHG Calcs'!$F4:$F26,'Cordova GHG Calcs'!AO4:AO26) -> 0 | AL126: =SUMPRODUCT('Cordova GHG Calcs'!$F4:$F26,'Cordova GHG Calcs'!AP4:AP26) -> 0 | AM126: =SUMPRODUCT('Cordova GHG Calcs'!$F4:$F26,'Cordova GHG Calcs'!AQ4:AQ26) -> 0 | AN126: =SUMPRODUCT('Cordova GHG Calcs'!$F4:$F26,'Cordova GHG Calcs'!AR4:AR26) -> 0 | AO126: =SUMPRODUCT('Cordova GHG Calcs'!$F4:$F26,'Cordova GHG Calcs'!AS4:AS26) -> 0 | AP126: =SUMPRODUCT('Cordova GHG Calcs'!$F4:$F26,'Cordova GHG Calcs'!AT4:AT26) -> 0
B127: Liard
B128: Total CO2e | C128: =SUMPRODUCT('Liard GHG Calcs'!$F4:$F26,'Liard GHG Calcs'!G4:G26) -> 0 | D128: =SUMPRODUCT('Liard GHG Calcs'!$F4:$F26,'Liard GHG Calcs'!H4:H26) -> 0 | E128: =SUMPRODUCT('Liard GHG Calcs'!$F4:$F26,'Liard GHG Calcs'!I4:I26) -> 0 | F128: =SUMPRODUCT('Liard GHG Calcs'!$F4:$F26,'Liard GHG Calcs'!J4:J26) -> 0 | G128: =SUMPRODUCT('Liard GHG Calcs'!$F4:$F26,'Liard GHG Calcs'!K4:K26) -> 0 | H128: =SUMPRODUCT('Liard GHG Calcs'!$F4:$F26,'Liard GHG Calcs'!L4:L26) -> 0 | I128: =SUMPRODUCT('Liard GHG Calcs'!$F4:$F26,'Liard GHG Calcs'!M4:M26) -> 0 | J128: =SUMPRODUCT('Liard GHG Calcs'!$F4:$F26,'Liard GHG Calcs'!N4:N26) -> 0 | K128: =SUMPRODUCT('Liard GHG Calcs'!$F4:$F26,'Liard GHG Calcs'!O4:O26) -> 0 | L128: =SUMPRODUCT('Liard GHG Calcs'!$F4:$F26,'Liard GHG Calcs'!P4:P26) -> 0 | M128: =SUMPRODUCT('Liard GHG Calcs'!$F4:$F26,'Liard GHG Calcs'!Q4:Q26) -> 0 | N128: =SUMPRODUCT('Liard GHG Calcs'!$F4:$F26,'Liard GHG Calcs'!R4:R26) -> 0 | O128: =SUMPRODUCT('Liard GHG Calcs'!$F4:$F26,'Liard GHG Calcs'!S4:S26) -> 0 | P128: =SUMPRODUCT('Liard GHG Calcs'!$F4:$F26,'Liard GHG Calcs'!T4:T26) -> 0 | Q128: =SUMPRODUCT('Liard GHG Calcs'!$F4:$F26,'Liard GHG Calcs'!U4:U26) -> 0 | R128: =SUMPRODUCT('Liard GHG Calcs'!$F4:$F26,'Liard GHG Calcs'!V4:V26) -> 0 | S128: =SUMPRODUCT('Liard GHG Calcs'!$F4:$F26,'Liard GHG Calcs'!W4:W26) -> 0 | T128: =SUMPRODUCT('Liard GHG Calcs'!$F4:$F26,'Liard GHG Calcs'!X4:X26) -> 0 | U128: =SUMPRODUCT('Liard GHG Calcs'!$F4:$F26,'Liard GHG Calcs'!Y4:Y26) -> 0 | V128: =SUMPRODUCT('Liard GHG Calcs'!$F4:$F26,'Liard GHG Calcs'!Z4:Z26) -> 0 | W128: =SUMPRODUCT('Liard GHG Calcs'!$F4:$F26,'Liard GHG Calcs'!AA4:AA26) -> 0 | X128: =SUMPRODUCT('Liard GHG Calcs'!$F4:$F26,'Liard GHG Calcs'!AB4:AB26) -> 0 | Y128: =SUMPRODUCT('Liard GHG Calcs'!$F4:$F26,'Liard GHG Calcs'!AC4:AC26) -> 0 | Z128: =SUMPRODUCT('Liard GHG Calcs'!$F4:$F26,'Liard GHG Calcs'!AD4:AD26) -> 0 | AA128: =SUMPRODUCT('Liard GHG Calcs'!$F4:$F26,'Liard GHG Calcs'!AE4:AE26) -> 0 | AB128: =SUMPRODUCT('Liard GHG Calcs'!$F4:$F26,'Liard GHG Calcs'!AF4:AF26) -> 0 | AC128: =SUMPRODUCT('Liard GHG Calcs'!$F4:$F26,'Liard GHG Calcs'!AG4:AG26) -> 0 | AD128: =SUMPRODUCT('Liard GHG Calcs'!$F4:$F26,'Liard GHG Calcs'!AH4:AH26) -> 0 | AE128: =SUMPRODUCT('Liard GHG Calcs'!$F4:$F26,'Liard GHG Calcs'!AI4:AI26) -> 0 | AF128: =SUMPRODUCT('Liard GHG Calcs'!$F4:$F26,'Liard GHG Calcs'!AJ4:AJ26) -> 0 | AG128: =SUMPRODUCT('Liard GHG Calcs'!$F4:$F26,'Liard GHG Calcs'!AK4:AK26) -> 0 | AH128: =SUMPRODUCT('Liard GHG Calcs'!$F4:$F26,'Liard GHG Calcs'!AL4:AL26) -> 0 | AI128: =SUMPRODUCT('Liard GHG Calcs'!$F4:$F26,'Liard GHG Calcs'!AM4:AM26) -> 0 | AJ128: =SUMPRODUCT('Liard GHG Calcs'!$F4:$F26,'Liard GHG Calcs'!AN4:AN26) -> 0 | AK128: =SUMPRODUCT('Liard GHG Calcs'!$F4:$F26,'Liard GHG Calcs'!AO4:AO26) -> 0 | AL128: =SUMPRODUCT('Liard GHG Calcs'!$F4:$F26,'Liard GHG Calcs'!AP4:AP26) -> 0 | AM128: =SUMPRODUCT('Liard GHG Calcs'!$F4:$F26,'Liard GHG Calcs'!AQ4:AQ26) -> 0 | AN128: =SUMPRODUCT('Liard GHG Calcs'!$F4:$F26,'Liard GHG Calcs'!AR4:AR26) -> 0 | AO128: =SUMPRODUCT('Liard GHG Calcs'!$F4:$F26,'Liard GHG Calcs'!AS4:AS26) -> 0 | AP128: =SUMPRODUCT('Liard GHG Calcs'!$F4:$F26,'Liard GHG Calcs'!AT4:AT26) -> 0
B129: Alberta
B130: Total CO2e | C130: ='Alberta GHG Calcs'!I8 -> 0 | D130: ='Alberta GHG Calcs'!J8 -> 0 | E130: ='Alberta GHG Calcs'!K8 -> 0 | F130: ='Alberta GHG Calcs'!L8 -> 0 | G130: ='Alberta GHG Calcs'!M8 -> 0 | H130: ='Alberta GHG Calcs'!N8 -> 0 | I130: ='Alberta GHG Calcs'!O8 -> 0 | J130: ='Alberta GHG Calcs'!P8 -> 0 | K130: ='Alberta GHG Calcs'!Q8 -> 0 | L130: ='Alberta GHG Calcs'!R8 -> 0 | M130: ='Alberta GHG Calcs'!S8 -> 0 | N130: ='Alberta GHG Calcs'!T8 -> 0 | O130: ='Alberta GHG Calcs'!U8 -> 0 | P130: ='Alberta GHG Calcs'!V8 -> 0 | Q130: ='Alberta GHG Calcs'!W8 -> 0 | R130: ='Alberta GHG Calcs'!X8 -> 0 | S130: ='Alberta GHG Calcs'!Y8 -> 0 | T130: ='Alberta GHG Calcs'!Z8 -> 0 | U130: ='Alberta GHG Calcs'!AA8 -> 0 | V130: ='Alberta GHG Calcs'!AB8 -> 0 | W130: ='Alberta GHG Calcs'!AC8 -> 0 | X130: ='Alberta GHG Calcs'!AD8 -> 0 | Y130: ='Alberta GHG Calcs'!AE8 -> 0 | Z130: ='Alberta GHG Calcs'!AF8 -> 0 | AA130: ='Alberta GHG Calcs'!AG8 -> 0 | AB130: ='Alberta GHG Calcs'!AH8 -> 0 | AC130: ='Alberta GHG Calcs'!AI8 -> 0 | AD130: ='Alberta GHG Calcs'!AJ8 -> 0 | AE130: ='Alberta GHG Calcs'!AK8 -> 0 | AF130: ='Alberta GHG Calcs'!AL8 -> 0 | AG130: ='Alberta GHG Calcs'!AM8 -> 0 | AH130: ='Alberta GHG Calcs'!AN8 -> 0 | AI130: ='Alberta GHG Calcs'!AO8 -> 0 | AJ130: ='Alberta GHG Calcs'!AP8 -> 0 | AK130: ='Alberta GHG Calcs'!AQ8 -> 0 | AL130: ='Alberta GHG Calcs'!AR8 -> 0 | AM130: ='Alberta GHG Calcs'!AS8 -> 0 | AN130: ='Alberta GHG Calcs'!AT8 -> 0 | AO130: ='Alberta GHG Calcs'!AU8 -> 0 | AP130: ='Alberta GHG Calcs'!AV8 -> 0
B131: Alberta CH4 emissions | C131: ='Alberta GHG Calcs'!I11+'Alberta GHG Calcs'!I12 -> 0 | D131: ='Alberta GHG Calcs'!J11+'Alberta GHG Calcs'!J12 -> 0 | E131: ='Alberta GHG Calcs'!K11+'Alberta GHG Calcs'!K12 -> 0 | F131: ='Alberta GHG Calcs'!L11+'Alberta GHG Calcs'!L12 -> 0 | G131: ='Alberta GHG Calcs'!M11+'Alberta GHG Calcs'!M12 -> 0 | H131: ='Alberta GHG Calcs'!N11+'Alberta GHG Calcs'!N12 -> 0 | I131: ='Alberta GHG Calcs'!O11+'Alberta GHG Calcs'!O12 -> 0 | J131: ='Alberta GHG Calcs'!P11+'Alberta GHG Calcs'!P12 -> 0 | K131: ='Alberta GHG Calcs'!Q11+'Alberta GHG Calcs'!Q12 -> 0 | L131: ='Alberta GHG Calcs'!R11+'Alberta GHG Calcs'!R12 -> 0 | M131: ='Alberta GHG Calcs'!S11+'Alberta GHG Calcs'!S12 -> 0 | N131: ='Alberta GHG Calcs'!T11+'Alberta GHG Calcs'!T12 -> 0 | O131: ='Alberta GHG Calcs'!U11+'Alberta GHG Calcs'!U12 -> 0 | P131: ='Alberta GHG Calcs'!V11+'Alberta GHG Calcs'!V12 -> 0 | Q131: ='Alberta GHG Calcs'!W11+'Alberta GHG Calcs'!W12 -> 0 | R131: ='Alberta GHG Calcs'!X11+'Alberta GHG Calcs'!X12 -> 0 | S131: ='Alberta GHG Calcs'!Y11+'Alberta GHG Calcs'!Y12 -> 0 | T131: ='Alberta GHG Calcs'!Z11+'Alberta GHG Calcs'!Z12 -> 0 | U131: ='Alberta GHG Calcs'!AA11+'Alberta GHG Calcs'!AA12 -> 0 | V131: ='Alberta GHG Calcs'!AB11+'Alberta GHG Calcs'!AB12 -> 0 | W131: ='Alberta GHG Calcs'!AC11+'Alberta GHG Calcs'!AC12 -> 0 | X131: ='Alberta GHG Calcs'!AD11+'Alberta GHG Calcs'!AD12 -> 0 | Y131: ='Alberta GHG Calcs'!AE11+'Alberta GHG Calcs'!AE12 -> 0 | Z131: ='Alberta GHG Calcs'!AF11+'Alberta GHG Calcs'!AF12 -> 0 | AA131: ='Alberta GHG Calcs'!AG11+'Alberta GHG Calcs'!AG12 -> 0 | AB131: ='Alberta GHG Calcs'!AH11+'Alberta GHG Calcs'!AH12 -> 0 | AC131: ='Alberta GHG Calcs'!AI11+'Alberta GHG Calcs'!AI12 -> 0 | AD131: ='Alberta GHG Calcs'!AJ11+'Alberta GHG Calcs'!AJ12 -> 0 | AE131: ='Alberta GHG Calcs'!AK11+'Alberta GHG Calcs'!AK12 -> 0 | AF131: ='Alberta GHG Calcs'!AL11+'Alberta GHG Calcs'!AL12 -> 0 | AG131: ='Alberta GHG Calcs'!AM11+'Alberta GHG Calcs'!AM12 -> 0 | AH131: ='Alberta GHG Calcs'!AN11+'Alberta GHG Calcs'!AN12 -> 0 | AI131: ='Alberta GHG Calcs'!AO11+'Alberta GHG Calcs'!AO12 -> 0 | AJ131: ='Alberta GHG Calcs'!AP11+'Alberta GHG Calcs'!AP12 -> 0 | AK131: ='Alberta GHG Calcs'!AQ11+'Alberta GHG Calcs'!AQ12 -> 0 | AL131: ='Alberta GHG Calcs'!AR11+'Alberta GHG Calcs'!AR12 -> 0 | AM131: ='Alberta GHG Calcs'!AS11+'Alberta GHG Calcs'!AS12 -> 0 | AN131: ='Alberta GHG Calcs'!AT11+'Alberta GHG Calcs'!AT12 -> 0 | AO131: ='Alberta GHG Calcs'!AU11+'Alberta GHG Calcs'!AU12 -> 0 | AP131: ='Alberta GHG Calcs'!AV11+'Alberta GHG Calcs'!AV12 -> 0
B133: Total by Type of GHG | C133: =SUM(C134:C135) -> 9623.46877 | D133: =SUM(D134:D135) -> 9376.4507 | E133: 10054.5055 | F133: 10391.96543 | G133: 10248.87019 | H133: 9919.606053 | I133: 9914.884979 | J133: 9918.209577 | K133: 9904.194268 | L133: 9871.156258 | M133: 9891.877214 | N133: 9929.280257 | O133: 9955.982315 | P133: 9987.299296 | Q133: 10032.64237 | R133: 10057.05702 | S133: 10067.70433 | T133: 10128.84069 | U133: 10162.05466 | V133: 10187.48815 | W133: 10130.73766 | X133: 10149.18224 | Y133: 10158.26144 | Z133: 10164.35549 | AA133: 10152.13848 | AB133: 10102.04873 | AC133: 10117.86643 | AD133: 10126.41446 | AE133: 10149.75724 | AF133: 10207.87021 | AG133: 10267.759 | AH133: 10289.6093 | AI133: 10279.22849 | AJ133: 10249.63691 | AK133: 10214.14387 | AL133: 10160.24932 | AM133: 10135.63507 | AN133: 10122.92448 | AO133: 10117.52526 | AP133: 10118.51035
B134: CO2 emissions | C134: ='Interim inputs and outputs'!B90+('Alberta GHG Calcs'!I9+'Alberta GHG Calcs'!I10+'Alberta GHG Calcs'!I13) -> 8317.779771 | D134: ='Interim inputs and outputs'!C90+('Alberta GHG Calcs'!J9+'Alberta GHG Calcs'!J10+'Alberta GHG Calcs'!J13) -> 8071.843398 | E134: ='Interim inputs and outputs'!D90+('Alberta GHG Calcs'!K9+'Alberta GHG Calcs'!K10+'Alberta GHG Calcs'!K13) -> 8682.498888 | F134: ='Interim inputs and outputs'!E90+('Alberta GHG Calcs'!L9+'Alberta GHG Calcs'!L10+'Alberta GHG Calcs'!L13) -> 8982.586718 | G134: ='Interim inputs and outputs'!F90+('Alberta GHG Calcs'!M9+'Alberta GHG Calcs'!M10+'Alberta GHG Calcs'!M13) -> 8835.014786 | H134: ='Interim inputs and outputs'!G90+('Alberta GHG Calcs'!N9+'Alberta GHG Calcs'!N10+'Alberta GHG Calcs'!N13) -> 8504.240579 | I134: ='Interim inputs and outputs'!H90+('Alberta GHG Calcs'!O9+'Alberta GHG Calcs'!O10+'Alberta GHG Calcs'!O13) -> 8496.334198 | J134: ='Interim inputs and outputs'!I90+('Alberta GHG Calcs'!P9+'Alberta GHG Calcs'!P10+'Alberta GHG Calcs'!P13) -> 8495.235926 | K134: ='Interim inputs and outputs'!J90+('Alberta GHG Calcs'!Q9+'Alberta GHG Calcs'!Q10+'Alberta GHG Calcs'!Q13) -> 8480.392201 | L134: ='Interim inputs and outputs'!K90+('Alberta GHG Calcs'!R9+'Alberta GHG Calcs'!R10+'Alberta GHG Calcs'!R13) -> 8451.59674 | M134: ='Interim inputs and outputs'!L90+('Alberta GHG Calcs'!S9+'Alberta GHG Calcs'!S10+'Alberta GHG Calcs'!S13) -> 8476.422001 | N134: ='Interim inputs and outputs'!M90+('Alberta GHG Calcs'!T9+'Alberta GHG Calcs'!T10+'Alberta GHG Calcs'!T13) -> 8516.336355 | O134: ='Interim inputs and outputs'!N90+('Alberta GHG Calcs'!U9+'Alberta GHG Calcs'!U10+'Alberta GHG Calcs'!U13) -> 8549.2129 | P134: ='Interim inputs and outputs'!O90+('Alberta GHG Calcs'!V9+'Alberta GHG Calcs'!V10+'Alberta GHG Calcs'!V13) -> 8584.956773 | Q134: ='Interim inputs and outputs'!P90+('Alberta GHG Calcs'!W9+'Alberta GHG Calcs'!W10+'Alberta GHG Calcs'!W13) -> 8630.713962 | R134: ='Interim inputs and outputs'!Q90+('Alberta GHG Calcs'!X9+'Alberta GHG Calcs'!X10+'Alberta GHG Calcs'!X13) -> 8671.883696 | S134: ='Interim inputs and outputs'!R90+('Alberta GHG Calcs'!Y9+'Alberta GHG Calcs'!Y10+'Alberta GHG Calcs'!Y13) -> 8701.249633 | T134: ='Interim inputs and outputs'!S90+('Alberta GHG Calcs'!Z9+'Alberta GHG Calcs'!Z10+'Alberta GHG Calcs'!Z13) -> 8765.143885 | U134: ='Interim inputs and outputs'!T90+('Alberta GHG Calcs'!AA9+'Alberta GHG Calcs'!AA10+'Alberta GHG Calcs'!AA13) -> 8811.372193 | V134: ='Interim inputs and outputs'!U90+('Alberta GHG Calcs'!AB9+'Alberta GHG Calcs'!AB10+'Alberta GHG Calcs'!AB13) -> 8851.059278 | W134: ='Interim inputs and outputs'!V90+('Alberta GHG Calcs'!AC9+'Alberta GHG Calcs'!AC10+'Alberta GHG Calcs'!AC13) -> 8813.48679 | X134: ='Interim inputs and outputs'!W90+('Alberta GHG Calcs'!AD9+'Alberta GHG Calcs'!AD10+'Alberta GHG Calcs'!AD13) -> 8824.465564 | Y134: ='Interim inputs and outputs'!X90+('Alberta GHG Calcs'!AE9+'Alberta GHG Calcs'!AE10+'Alberta GHG Calcs'!AE13) -> 8831.786872 | Z134: ='Interim inputs and outputs'!Y90+('Alberta GHG Calcs'!AF9+'Alberta GHG Calcs'!AF10+'Alberta GHG Calcs'!AF13) -> 8836.449411 | AA134: ='Interim inputs and outputs'!Z90+('Alberta GHG Calcs'!AG9+'Alberta GHG Calcs'!AG10+'Alberta GHG Calcs'!AG13) -> 8828.308967 | AB134: ='Interim inputs and outputs'!AA90+('Alberta GHG Calcs'!AH9+'Alberta GHG Calcs'!AH10+'Alberta GHG Calcs'!AH13) -> 8793.172838 | AC134: ='Interim inputs and outputs'!AB90+('Alberta GHG Calcs'!AI9+'Alberta GHG Calcs'!AI10+'Alberta GHG Calcs'!AI13) -> 8802.390036 | AD134: ='Interim inputs and outputs'!AC90+('Alberta GHG Calcs'!AJ9+'Alberta GHG Calcs'!AJ10+'Alberta GHG Calcs'!AJ13) -> 8809.027539 | AE134: ='Interim inputs and outputs'!AD90+('Alberta GHG Calcs'!AK9+'Alberta GHG Calcs'!AK10+'Alberta GHG Calcs'!AK13) -> 8825.510091 | AF134: ='Interim inputs and outputs'!AE90+('Alberta GHG Calcs'!AL9+'Alberta GHG Calcs'!AL10+'Alberta GHG Calcs'!AL13) -> 8866.774405 | AG134: ='Interim inputs and outputs'!AF90+('Alberta GHG Calcs'!AM9+'Alberta GHG Calcs'!AM10+'Alberta GHG Calcs'!AM13) -> 8910.616104 | AH134: ='Interim inputs and outputs'!AG90+('Alberta GHG Calcs'!AN9+'Alberta GHG Calcs'!AN10+'Alberta GHG Calcs'!AN13) -> 8927.996254 | AI134: ='Interim inputs and outputs'!AH90+('Alberta GHG Calcs'!AO9+'Alberta GHG Calcs'!AO10+'Alberta GHG Calcs'!AO13) -> 8921.664464 | AJ134: ='Interim inputs and outputs'!AI90+('Alberta GHG Calcs'!AP9+'Alberta GHG Calcs'!AP10+'Alberta GHG Calcs'!AP13) -> 8900.86275 | AK134: ='Interim inputs and outputs'!AJ90+('Alberta GHG Calcs'!AQ9+'Alberta GHG Calcs'!AQ10+'Alberta GHG Calcs'!AQ13) -> 8875.234847 | AL134: ='Interim inputs and outputs'!AK90+('Alberta GHG Calcs'!AR9+'Alberta GHG Calcs'!AR10+'Alberta GHG Calcs'!AR13) -> 8836.627842 | AM134: ='Interim inputs and outputs'!AL90+('Alberta GHG Calcs'!AS9+'Alberta GHG Calcs'!AS10+'Alberta GHG Calcs'!AS13) -> 8817.576176 | AN134: ='Interim inputs and outputs'!AM90+('Alberta GHG Calcs'!AT9+'Alberta GHG Calcs'!AT10+'Alberta GHG Calcs'!AT13) -> 8807.912128 | AO134: ='Interim inputs and outputs'!AN90+('Alberta GHG Calcs'!AU9+'Alberta GHG Calcs'!AU10+'Alberta GHG Calcs'!AU13) -> 8803.671279 | AP134: ='Interim inputs and outputs'!AO90+('Alberta GHG Calcs'!AV9+'Alberta GHG Calcs'!AV10+'Alberta GHG Calcs'!AV13) -> 8804.126572
B135: CH4 emission | C135: =('Interim inputs and outputs'!B101*'Interim inputs and outputs'!$B$44)+('Alberta GHG Calcs'!I11+'Alberta GHG Calcs'!I12) -> 1305.688999 | D135: =('Interim inputs and outputs'!C101*'Interim inputs and outputs'!$B$44)+('Alberta GHG Calcs'!J11+'Alberta GHG Calcs'!J12) -> 1304.607302 | E135: =('Interim inputs and outputs'!D101*'Interim inputs and outputs'!$B$44)+('Alberta GHG Calcs'!K11+'Alberta GHG Calcs'!K12) -> 1372.006607 | F135: =('Interim inputs and outputs'!E101*'Interim inputs and outputs'!$B$44)+('Alberta GHG Calcs'!L11+'Alberta GHG Calcs'!L12) -> 1409.378707 | G135: =('Interim inputs and outputs'!F101*'Interim inputs and outputs'!$B$44)+('Alberta GHG Calcs'!M11+'Alberta GHG Calcs'!M12) -> 1413.855403 | H135: =('Interim inputs and outputs'!G101*'Interim inputs and outputs'!$B$44)+('Alberta GHG Calcs'!N11+'Alberta GHG Calcs'!N12) -> 1415.365474 | I135: =('Interim inputs and outputs'!H101*'Interim inputs and outputs'!$B$44)+('Alberta GHG Calcs'!O11+'Alberta GHG Calcs'!O12) -> 1418.550782 | J135: =('Interim inputs and outputs'!I101*'Interim inputs and outputs'!$B$44)+('Alberta GHG Calcs'!P11+'Alberta GHG Calcs'!P12) -> 1422.973651 | K135: =('Interim inputs and outputs'!J101*'Interim inputs and outputs'!$B$44)+('Alberta GHG Calcs'!Q11+'Alberta GHG Calcs'!Q12) -> 1423.802067 | L135: =('Interim inputs and outputs'!K101*'Interim inputs and outputs'!$B$44)+('Alberta GHG Calcs'!R11+'Alberta GHG Calcs'!R12) -> 1419.559518 | M135: =('Interim inputs and outputs'!L101*'Interim inputs and outputs'!$B$44)+('Alberta GHG Calcs'!S11+'Alberta GHG Calcs'!S12) -> 1415.455213 | N135: =('Interim inputs and outputs'!M101*'Interim inputs and outputs'!$B$44)+('Alberta GHG Calcs'!T11+'Alberta GHG Calcs'!T12) -> 1412.943901 | O135: =('Interim inputs and outputs'!N101*'Interim inputs and outputs'!$B$44)+('Alberta GHG Calcs'!U11+'Alberta GHG Calcs'!U12) -> 1406.769415 | P135: =('Interim inputs and outputs'!O101*'Interim inputs and outputs'!$B$44)+('Alberta GHG Calcs'!V11+'Alberta GHG Calcs'!V12) -> 1402.342523 | Q135: =('Interim inputs and outputs'!P101*'Interim inputs and outputs'!$B$44)+('Alberta GHG Calcs'!W11+'Alberta GHG Calcs'!W12) -> 1401.928407 | R135: =('Interim inputs and outputs'!Q101*'Interim inputs and outputs'!$B$44)+('Alberta GHG Calcs'!X11+'Alberta GHG Calcs'!X12) -> 1385.17332 | S135: =('Interim inputs and outputs'!R101*'Interim inputs and outputs'!$B$44)+('Alberta GHG Calcs'!Y11+'Alberta GHG Calcs'!Y12) -> 1366.4547 | T135: =('Interim inputs and outputs'!S101*'Interim inputs and outputs'!$B$44)+('Alberta GHG Calcs'!Z11+'Alberta GHG Calcs'!Z12) -> 1363.696806 | U135: =('Interim inputs and outputs'!T101*'Interim inputs and outputs'!$B$44)+('Alberta GHG Calcs'!AA11+'Alberta GHG Calcs'!AA12) -> 1350.682463 | V135: =('Interim inputs and outputs'!U101*'Interim inputs and outputs'!$B$44)+('Alberta GHG Calcs'!AB11+'Alberta GHG Calcs'!AB12) -> 1336.428874 | W135: =('Interim inputs and outputs'!V101*'Interim inputs and outputs'!$B$44)+('Alberta GHG Calcs'!AC11+'Alberta GHG Calcs'!AC12) -> 1317.250874 | X135: =('Interim inputs and outputs'!W101*'Interim inputs and outputs'!$B$44)+('Alberta GHG Calcs'!AD11+'Alberta GHG Calcs'!AD12) -> 1324.716677 | Y135: =('Interim inputs and outputs'!X101*'Interim inputs and outputs'!$B$44)+('Alberta GHG Calcs'!AE11+'Alberta GHG Calcs'!AE12) -> 1326.474573 | Z135: =('Interim inputs and outputs'!Y101*'Interim inputs and outputs'!$B$44)+('Alberta GHG Calcs'!AF11+'Alberta GHG Calcs'!AF12) -> 1327.906079 | AA135: =('Interim inputs and outputs'!Z101*'Interim inputs and outputs'!$B$44)+('Alberta GHG Calcs'!AG11+'Alberta GHG Calcs'!AG12) -> 1323.829514 | AB135: =('Interim inputs and outputs'!AA101*'Interim inputs and outputs'!$B$44)+('Alberta GHG Calcs'!AH11+'Alberta GHG Calcs'!AH12) -> 1308.875892 | AC135: =('Interim inputs and outputs'!AB101*'Interim inputs and outputs'!$B$44)+('Alberta GHG Calcs'!AI11+'Alberta GHG Calcs'!AI12) -> 1315.476397 | AD135: =('Interim inputs and outputs'!AC101*'Interim inputs and outputs'!$B$44)+('Alberta GHG Calcs'!AJ11+'Alberta GHG Calcs'!AJ12) -> 1317.386917 | AE135: =('Interim inputs and outputs'!AD101*'Interim inputs and outputs'!$B$44)+('Alberta GHG Calcs'!AK11+'Alberta GHG Calcs'!AK12) -> 1324.247146 | AF135: =('Interim inputs and outputs'!AE101*'Interim inputs and outputs'!$B$44)+('Alberta GHG Calcs'!AL11+'Alberta GHG Calcs'!AL12) -> 1341.095809 | AG135: =('Interim inputs and outputs'!AF101*'Interim inputs and outputs'!$B$44)+('Alberta GHG Calcs'!AM11+'Alberta GHG Calcs'!AM12) -> 1357.142896 | AH135: =('Interim inputs and outputs'!AG101*'Interim inputs and outputs'!$B$44)+('Alberta GHG Calcs'!AN11+'Alberta GHG Calcs'!AN12) -> 1361.613046 | AI135: =('Interim inputs and outputs'!AH101*'Interim inputs and outputs'!$B$44)+('Alberta GHG Calcs'!AO11+'Alberta GHG Calcs'!AO12) -> 1357.564025 | AJ135: =('Interim inputs and outputs'!AI101*'Interim inputs and outputs'!$B$44)+('Alberta GHG Calcs'!AP11+'Alberta GHG Calcs'!AP12) -> 1348.77416 | AK135: =('Interim inputs and outputs'!AJ101*'Interim inputs and outputs'!$B$44)+('Alberta GHG Calcs'!AQ11+'Alberta GHG Calcs'!AQ12) -> 1338.909021 | AL135: =('Interim inputs and outputs'!AK101*'Interim inputs and outputs'!$B$44)+('Alberta GHG Calcs'!AR11+'Alberta GHG Calcs'!AR12) -> 1323.621482 | AM135: =('Interim inputs and outputs'!AL101*'Interim inputs and outputs'!$B$44)+('Alberta GHG Calcs'!AS11+'Alberta GHG Calcs'!AS12) -> 1318.058891 | AN135: =('Interim inputs and outputs'!AM101*'Interim inputs and outputs'!$B$44)+('Alberta GHG Calcs'!AT11+'Alberta GHG Calcs'!AT12) -> 1315.012347 | AO135: =('Interim inputs and outputs'!AN101*'Interim inputs and outputs'!$B$44)+('Alberta GHG Calcs'!AU11+'Alberta GHG Calcs'!AU12) -> 1313.853985 | AP135: =('Interim inputs and outputs'!AO101*'Interim inputs and outputs'!$B$44)+('Alberta GHG Calcs'!AV11+'Alberta GHG Calcs'!AV12) -> 1314.383779
B136: Total in CH4 | C136: ='Interim inputs and outputs'!B101+('Detailed outputs'!C131/'Interim inputs and outputs'!$B$44) -> 62.17566661 | D136: ='Interim inputs and outputs'!C101+('Detailed outputs'!D131/'Interim inputs and outputs'!$B$44) -> 62.12415723 | E136: ='Interim inputs and outputs'!D101+('Detailed outputs'!E131/'Interim inputs and outputs'!$B$44) -> 65.33364797 | F136: ='Interim inputs and outputs'!E101+('Detailed outputs'!F131/'Interim inputs and outputs'!$B$44) -> 67.11327178 | G136: ='Interim inputs and outputs'!F101+('Detailed outputs'!G131/'Interim inputs and outputs'!$B$44) -> 67.32644778 | H136: ='Interim inputs and outputs'!G101+('Detailed outputs'!H131/'Interim inputs and outputs'!$B$44) -> 67.39835592 | I136: ='Interim inputs and outputs'!H101+('Detailed outputs'!I131/'Interim inputs and outputs'!$B$44) -> 67.55003723 | J136: ='Interim inputs and outputs'!I101+('Detailed outputs'!J131/'Interim inputs and outputs'!$B$44) -> 67.76065003 | K136: ='Interim inputs and outputs'!J101+('Detailed outputs'!K131/'Interim inputs and outputs'!$B$44) -> 67.80009842 | L136: ='Interim inputs and outputs'!K101+('Detailed outputs'!L131/'Interim inputs and outputs'!$B$44) -> 67.5980723 | M136: ='Interim inputs and outputs'!L101+('Detailed outputs'!M131/'Interim inputs and outputs'!$B$44) -> 67.40262918 | N136: ='Interim inputs and outputs'!M101+('Detailed outputs'!N131/'Interim inputs and outputs'!$B$44) -> 67.28304292 | O136: ='Interim inputs and outputs'!N101+('Detailed outputs'!O131/'Interim inputs and outputs'!$B$44) -> 66.98901974 | P136: ='Interim inputs and outputs'!O101+('Detailed outputs'!P131/'Interim inputs and outputs'!$B$44) -> 66.7782154 | Q136: ='Interim inputs and outputs'!P101+('Detailed outputs'!Q131/'Interim inputs and outputs'!$B$44) -> 66.75849557 | R136: ='Interim inputs and outputs'!Q101+('Detailed outputs'!R131/'Interim inputs and outputs'!$B$44) -> 65.96063429 | S136: ='Interim inputs and outputs'!R101+('Detailed outputs'!S131/'Interim inputs and outputs'!$B$44) -> 65.06927143 | T136: ='Interim inputs and outputs'!S101+('Detailed outputs'!T131/'Interim inputs and outputs'!$B$44) -> 64.93794315 | U136: ='Interim inputs and outputs'!T101+('Detailed outputs'!U131/'Interim inputs and outputs'!$B$44) -> 64.31821253 | V136: ='Interim inputs and outputs'!U101+('Detailed outputs'!V131/'Interim inputs and outputs'!$B$44) -> 63.63947019 | W136: ='Interim inputs and outputs'!V101+('Detailed outputs'!W131/'Interim inputs and outputs'!$B$44) -> 62.72623211 | X136: ='Interim inputs and outputs'!W101+('Detailed outputs'!X131/'Interim inputs and outputs'!$B$44) -> 63.08174652 | Y136: ='Interim inputs and outputs'!X101+('Detailed outputs'!Y131/'Interim inputs and outputs'!$B$44) -> 63.16545587 | Z136: ='Interim inputs and outputs'!Y101+('Detailed outputs'!Z131/'Interim inputs and outputs'!$B$44) -> 63.23362281 | AA136: ='Interim inputs and outputs'!Z101+('Detailed outputs'!AA131/'Interim inputs and outputs'!$B$44) -> 63.03950066 | AB136: ='Interim inputs and outputs'!AA101+('Detailed outputs'!AB131/'Interim inputs and outputs'!$B$44) -> 62.32742345 | AC136: ='Interim inputs and outputs'!AB101+('Detailed outputs'!AC131/'Interim inputs and outputs'!$B$44) -> 62.64173317 | AD136: ='Interim inputs and outputs'!AC101+('Detailed outputs'!AD131/'Interim inputs and outputs'!$B$44) -> 62.73271033 | AE136: ='Interim inputs and outputs'!AD101+('Detailed outputs'!AE131/'Interim inputs and outputs'!$B$44) -> 63.0593879 | AF136: ='Interim inputs and outputs'!AE101+('Detailed outputs'!AF131/'Interim inputs and outputs'!$B$44) -> 63.86170517 | AG136: ='Interim inputs and outputs'!AF101+('Detailed outputs'!AG131/'Interim inputs and outputs'!$B$44) -> 64.62585218 | AH136: ='Interim inputs and outputs'!AG101+('Detailed outputs'!AH131/'Interim inputs and outputs'!$B$44) -> 64.83871647 | AI136: ='Interim inputs and outputs'!AH101+('Detailed outputs'!AI131/'Interim inputs and outputs'!$B$44) -> 64.64590597 | AJ136: ='Interim inputs and outputs'!AI101+('Detailed outputs'!AJ131/'Interim inputs and outputs'!$B$44) -> 64.22734097 | AK136: ='Interim inputs and outputs'!AJ101+('Detailed outputs'!AK131/'Interim inputs and outputs'!$B$44) -> 63.75757243 | AL136: ='Interim inputs and outputs'!AK101+('Detailed outputs'!AL131/'Interim inputs and outputs'!$B$44) -> 63.02959437 | AM136: ='Interim inputs and outputs'!AL101+('Detailed outputs'!AM131/'Interim inputs and outputs'!$B$44) -> 62.76470908 | AN136: ='Interim inputs and outputs'!AM101+('Detailed outputs'!AN131/'Interim inputs and outputs'!$B$44) -> 62.61963558 | AO136: ='Interim inputs and outputs'!AN101+('Detailed outputs'!AO131/'Interim inputs and outputs'!$B$44) -> 62.56447549 | AP136: ='Interim inputs and outputs'!AO101+('Detailed outputs'!AP131/'Interim inputs and outputs'!$B$44) -> 62.58970377
B137: Total Upstream | C137: =C120+C122+C124+C126+C128+C130 -> 9623.46877 | D137: 9376.4507 | E137: 10054.5055 | F137: 10391.96543 | G137: 10248.87019 | H137: 9919.606053 | I137: 9914.884979 | J137: 9918.209577 | K137: 9904.194268 | L137: 9871.156258 | M137: 9891.877214 | N137: 9929.280257 | O137: 9955.982315 | P137: 9987.299296 | Q137: 10032.64237 | R137: 10057.05702 | S137: 10067.70433 | T137: 10128.84069 | U137: 10162.05466 | V137: 10187.48815 | W137: 10130.73766 | X137: 10149.18224 | Y137: 10158.26144 | Z137: 10164.35549 | AA137: 10152.13848 | AB137: 10102.04873 | AC137: 10117.86643 | AD137: 10126.41446 | AE137: 10149.75724 | AF137: 10207.87021 | AG137: 10267.759 | AH137: 10289.6093 | AI137: 10279.22849 | AJ137: 10249.63691 | AK137: 10214.14387 | AL137: 10160.24932 | AM137: 10135.63507 | AN137: 10122.92448 | AO137: 10117.52526 | AP137: 10118.51035
B138: Emissions at LNG terminals | C138: ='Interim inputs and outputs'!B88 -> 0 | D138: ='Interim inputs and outputs'!C88 -> 0 | E138: ='Interim inputs and outputs'!D88 -> 0 | F138: ='Interim inputs and outputs'!E88 -> 0 | G138: ='Interim inputs and outputs'!F88 -> 0 | H138: ='Interim inputs and outputs'!G88 -> 0 | I138: ='Interim inputs and outputs'!H88 -> 0 | J138: ='Interim inputs and outputs'!I88 -> 0 | K138: ='Interim inputs and outputs'!J88 -> 0 | L138: ='Interim inputs and outputs'!K88 -> 0 | M138: ='Interim inputs and outputs'!L88 -> 0 | N138: ='Interim inputs and outputs'!M88 -> 0 | O138: ='Interim inputs and outputs'!N88 -> 0 | P138: ='Interim inputs and outputs'!O88 -> 0 | Q138: ='Interim inputs and outputs'!P88 -> 0 | R138: ='Interim inputs and outputs'!Q88 -> 0 | S138: ='Interim inputs and outputs'!R88 -> 0 | T138: ='Interim inputs and outputs'!S88 -> 0 | U138: ='Interim inputs and outputs'!T88 -> 0 | V138: ='Interim inputs and outputs'!U88 -> 0 | W138: ='Interim inputs and outputs'!V88 -> 0 | X138: ='Interim inputs and outputs'!W88 -> 0 | Y138: ='Interim inputs and outputs'!X88 -> 0 | Z138: ='Interim inputs and outputs'!Y88 -> 0 | AA138: ='Interim inputs and outputs'!Z88 -> 0 | AB138: ='Interim inputs and outputs'!AA88 -> 0 | AC138: ='Interim inputs and outputs'!AB88 -> 0 | AD138: ='Interim inputs and outputs'!AC88 -> 0 | AE138: ='Interim inputs and outputs'!AD88 -> 0 | AF138: ='Interim inputs and outputs'!AE88 -> 0 | AG138: ='Interim inputs and outputs'!AF88 -> 0 | AH138: ='Interim inputs and outputs'!AG88 -> 0 | AI138: ='Interim inputs and outputs'!AH88 -> 0 | AJ138: ='Interim inputs and outputs'!AI88 -> 0 | AK138: ='Interim inputs and outputs'!AJ88 -> 0 | AL138: ='Interim inputs and outputs'!AK88 -> 0 | AM138: ='Interim inputs and outputs'!AL88 -> 0 | AN138: ='Interim inputs and outputs'!AM88 -> 0 | AO138: ='Interim inputs and outputs'!AN88 -> 0 | AP138: ='Interim inputs and outputs'!AO88 -> 0
B140: BC - CO2 emissions by process
A141: similar to above - worthwhile populating if not too much time, but ok to delete if time doesn't permit | B141: Fuel Combustion - Heat | C141: ='Interim inputs and outputs'!B83 -> 744.4606376 | D141: ='Interim inputs and outputs'!C83 -> 744.2155467 | E141: ='Interim inputs and outputs'!D83 -> 788.905523 | F141: ='Interim inputs and outputs'!E83 -> 816.4755788 | G141: ='Interim inputs and outputs'!F83 -> 817.8764529 | H141: ='Interim inputs and outputs'!G83 -> 819.01185 | I141: ='Interim inputs and outputs'!H83 -> 819.5982328 | J141: ='Interim inputs and outputs'!I83 -> 821.7612685 | K141: ='Interim inputs and outputs'!J83 -> 822.4065883 | L141: ='Interim inputs and outputs'!K83 -> 820.8666703 | M141: ='Interim inputs and outputs'!L83 -> 819.3243579 | N141: ='Interim inputs and outputs'!M83 -> 818.4523792 | O141: ='Interim inputs and outputs'!N83 -> 815.9974884 | P141: ='Interim inputs and outputs'!O83 -> 814.2966361 | Q141: ='Interim inputs and outputs'!P83 -> 814.3276975 | R141: ='Interim inputs and outputs'!Q83 -> 807.1601763 | S141: ='Interim inputs and outputs'!R83 -> 799.2750275 | T141: ='Interim inputs and outputs'!S83 -> 798.3021498 | U141: ='Interim inputs and outputs'!T83 -> 792.8931676 | V141: ='Interim inputs and outputs'!U83 -> 786.9540299 | W141: ='Interim inputs and outputs'!V83 -> 778.6380859 | X141: ='Interim inputs and outputs'!W83 -> 781.854808 | Y141: ='Interim inputs and outputs'!X83 -> 782.5981569 | Z141: ='Interim inputs and outputs'!Y83 -> 783.2087857 | AA141: ='Interim inputs and outputs'!Z83 -> 781.4338728 | AB141: ='Interim inputs and outputs'!AA83 -> 774.9521974 | AC141: ='Interim inputs and outputs'!AB83 -> 777.8126696 | AD141: ='Interim inputs and outputs'!AC83 -> 778.6355795 | AE141: ='Interim inputs and outputs'!AD83 -> 781.6066878 | AF141: ='Interim inputs and outputs'!AE83 -> 788.8965397 | AG141: ='Interim inputs and outputs'!AF83 -> 795.8294941 | AH141: ='Interim inputs and outputs'!AG83 -> 797.7526942 | AI141: ='Interim inputs and outputs'!AH83 -> 795.9855713 | AJ141: ='Interim inputs and outputs'!AI83 -> 792.1694736 | AK141: ='Interim inputs and outputs'!AJ83 -> 787.8946637 | AL141: ='Interim inputs and outputs'!AK83 -> 781.2727831 | AM141: ='Interim inputs and outputs'!AL83 -> 778.8720596 | AN141: ='Interim inputs and outputs'!AM83 -> 777.568394 | AO141: ='Interim inputs and outputs'!AN83 -> 777.0826326 | AP141: ='Interim inputs and outputs'!AO83 -> 777.3261245
B142: Fuel Combustion - Engine/Turbine | C142: ='Interim inputs and outputs'!B84 -> 4800.935314 | D142: ='Interim inputs and outputs'!C84 -> 4784.7896 | E142: ='Interim inputs and outputs'!D84 -> 5101.693585 | F142: ='Interim inputs and outputs'!E84 -> 5299.693229 | G142: ='Interim inputs and outputs'!F84 -> 5295.757164 | H142: ='Interim inputs and outputs'!G84 -> 5302.709351 | I142: ='Interim inputs and outputs'!H84 -> 5303.62258 | J142: ='Interim inputs and outputs'!I84 -> 5316.574135 | K142: ='Interim inputs and outputs'!J84 -> 5321.514718 | L142: ='Interim inputs and outputs'!K84 -> 5315.177299 | M142: ='Interim inputs and outputs'!L84 -> 5306.845267 | N142: ='Interim inputs and outputs'!M84 -> 5302.722968 | O142: ='Interim inputs and outputs'!N84 -> 5290.638006 | P142: ='Interim inputs and outputs'!O84 -> 5282.30187 | Q142: ='Interim inputs and outputs'!P84 -> 5282.837457 | R142: ='Interim inputs and outputs'!Q84 -> 5246.793668 | S142: ='Interim inputs and outputs'!R84 -> 5207.009859 | T142: ='Interim inputs and outputs'!S84 -> 5202.330544 | U142: ='Interim inputs and outputs'!T84 -> 5175.464914 | V142: ='Interim inputs and outputs'!U84 -> 5145.642892 | W142: ='Interim inputs and outputs'!V84 -> 5103.65087 | X142: ='Interim inputs and outputs'!W84 -> 5119.558607 | Y142: ='Interim inputs and outputs'!X84 -> 5123.52685 | Z142: ='Interim inputs and outputs'!Y84 -> 5126.709516 | AA142: ='Interim inputs and outputs'!Z84 -> 5117.710669 | AB142: ='Interim inputs and outputs'!AA84 -> 5084.567334 | AC142: ='Interim inputs and outputs'!AB84 -> 5098.737272 | AD142: ='Interim inputs and outputs'!AC84 -> 5103.08271 | AE142: ='Interim inputs and outputs'!AD84 -> 5118.292981 | AF142: ='Interim inputs and outputs'!AE84 -> 5155.644834 | AG142: ='Interim inputs and outputs'!AF84 -> 5191.462041 | AH142: ='Interim inputs and outputs'!AG84 -> 5201.744256 | AI142: ='Interim inputs and outputs'!AH84 -> 5192.897188 | AJ142: ='Interim inputs and outputs'!AI84 -> 5173.352397 | AK142: ='Interim inputs and outputs'!AJ84 -> 5151.320883 | AL142: ='Interim inputs and outputs'!AK84 -> 5117.281844 | AM142: ='Interim inputs and outputs'!AL84 -> 5104.608951 | AN142: ='Interim inputs and outputs'!AM84 -> 5097.777595 | AO142: ='Interim inputs and outputs'!AN84 -> 5095.203658 | AP142: ='Interim inputs and outputs'!AO84 -> 5096.40363
B143: Fuel Combustion - Well Drilling | C143: ='Interim inputs and outputs'!B85 -> 276.0141628 | D143: ='Interim inputs and outputs'!C85 -> 166.9526401 | E143: ='Interim inputs and outputs'!D85 -> 219.2759675 | F143: ='Interim inputs and outputs'!E85 -> 207.193809 | G143: ='Interim inputs and outputs'!F85 -> 148.6208438 | H143: ='Interim inputs and outputs'!G85 -> 139.4930313 | I143: ='Interim inputs and outputs'!H85 -> 151.5997541 | J143: ='Interim inputs and outputs'!I85 -> 154.7713086 | K143: ='Interim inputs and outputs'!J85 -> 155.9025024 | L143: ='Interim inputs and outputs'!K85 -> 157.3699864 | M143: ='Interim inputs and outputs'!L85 -> 147.4004699 | N143: ='Interim inputs and outputs'!M85 -> 142.9966357 | O143: ='Interim inputs and outputs'!N85 -> 140.394924 | P143: ='Interim inputs and outputs'!O85 -> 136.6703187 | Q143: ='Interim inputs and outputs'!P85 -> 132.133016 | R143: ='Interim inputs and outputs'!Q85 -> 137.920753 | S143: ='Interim inputs and outputs'!R85 -> 139.2184872 | T143: ='Interim inputs and outputs'!S85 -> 134.400924 | U143: ='Interim inputs and outputs'!T85 -> 135.6546215 | V143: ='Interim inputs and outputs'!U85 -> 135.3546392 | W143: ='Interim inputs and outputs'!V85 -> 144.7066415 | X143: ='Interim inputs and outputs'!W85 -> 139.4921524 | Y143: ='Interim inputs and outputs'!X85 -> 140.7582327 | Z143: ='Interim inputs and outputs'!Y85 -> 141.0891194 | AA143: ='Interim inputs and outputs'!Z85 -> 143.0809578 | AB143: ='Interim inputs and outputs'!AA85 -> 147.4618351 | AC143: ='Interim inputs and outputs'!AB85 -> 142.4272073 | AD143: ='Interim inputs and outputs'!AC85 -> 142.9858339 | AE143: ='Interim inputs and outputs'!AD85 -> 141.1826794 | AF143: ='Interim inputs and outputs'!AE85 -> 137.2200296 | AG143: ='Interim inputs and outputs'!AF85 -> 135.799233 | AH143: ='Interim inputs and outputs'!AG85 -> 138.0441528 | AI143: ='Interim inputs and outputs'!AH85 -> 140.9348464 | AJ143: ='Interim inputs and outputs'!AI85 -> 143.5041955 | AK143: ='Interim inputs and outputs'!AJ85 -> 145.1717042 | AL143: ='Interim inputs and outputs'!AK85 -> 148.2739479 | AM143: ='Interim inputs and outputs'!AL85 -> 146.8353792 | AN143: ='Interim inputs and outputs'!AM85 -> 146.3884727 | AO143: ='Interim inputs and outputs'!AN85 -> 145.8700436 | AP143: ='Interim inputs and outputs'!AO85 -> 145.2433178
B144: Formation CO2 | C144: ='Interim inputs and outputs'!B86 -> 2072.276838 | D144: ='Interim inputs and outputs'!C86 -> 2013.590641 | E144: ='Interim inputs and outputs'!D86 -> 2164.081568 | F144: ='Interim inputs and outputs'!E86 -> 2247.055169 | G144: ='Interim inputs and outputs'!F86 -> 2193.347616 | H144: ='Interim inputs and outputs'!G86 -> 1868.34861 | I144: ='Interim inputs and outputs'!H86 -> 1839.878623 | J144: ='Interim inputs and outputs'!I86 -> 1817.951904 | K144: ='Interim inputs and outputs'!J86 -> 1795.503389 | L144: ='Interim inputs and outputs'!K86 -> 1772.764124 | M144: ='Interim inputs and outputs'!L86 -> 1823.562297 | N144: ='Interim inputs and outputs'!M86 -> 1875.632607 | O144: ='Interim inputs and outputs'!N86 -> 1927.913582 | P144: ='Interim inputs and outputs'!O86 -> 1980.067533 | Q144: ='Interim inputs and outputs'!P86 -> 2032.329499 | R144: ='Interim inputs and outputs'!Q86 -> 2110.0162 | S144: ='Interim inputs and outputs'!R86 -> 2187.61167 | T144: ='Interim inputs and outputs'!S86 -> 2265.00057 | U144: ='Interim inputs and outputs'!T86 -> 2343.310084 | V144: ='Interim inputs and outputs'!U86 -> 2421.173476 | W144: ='Interim inputs and outputs'!V86 -> 2422.025319 | X144: ='Interim inputs and outputs'!W86 -> 2420.979863 | Y144: ='Interim inputs and outputs'!X86 -> 2421.361959 | Z144: ='Interim inputs and outputs'!Y86 -> 2421.511291 | AA144: ='Interim inputs and outputs'!Z86 -> 2421.615643 | AB144: ='Interim inputs and outputs'!AA86 -> 2421.396606 | AC144: ='Interim inputs and outputs'!AB86 -> 2420.518112 | AD144: ='Interim inputs and outputs'!AC86 -> 2420.839636 | AE144: ='Interim inputs and outputs'!AD86 -> 2420.978116 | AF144: ='Interim inputs and outputs'!AE86 -> 2421.386711 | AG144: ='Interim inputs and outputs'!AF86 -> 2422.403023 | AH144: ='Interim inputs and outputs'!AG86 -> 2423.42475 | AI144: ='Interim inputs and outputs'!AH86 -> 2423.768359 | AJ144: ='Interim inputs and outputs'!AI86 -> 2423.571948 | AK144: ='Interim inputs and outputs'!AJ86 -> 2423.0587 | AL144: ='Interim inputs and outputs'!AK86 -> 2422.453246 | AM144: ='Interim inputs and outputs'!AL86 -> 2421.524443 | AN144: ='Interim inputs and outputs'!AM86 -> 2421.127693 | AO144: ='Interim inputs and outputs'!AN86 -> 2420.919033 | AP144: ='Interim inputs and outputs'!AO86 -> 2420.830982
B145: Flaring | C145: ='Interim inputs and outputs'!B87 -> 424.0928193 | D145: ='Interim inputs and outputs'!C87 -> 362.2949707 | E145: ='Interim inputs and outputs'!D87 -> 408.5422448 | F145: ='Interim inputs and outputs'!E87 -> 412.1689323 | G145: ='Interim inputs and outputs'!F87 -> 379.4127092 | H145: ='Interim inputs and outputs'!G87 -> 374.6777363 | I145: ='Interim inputs and outputs'!H87 -> 381.6350072 | J145: ='Interim inputs and outputs'!I87 -> 384.1773097 | K145: ='Interim inputs and outputs'!J87 -> 385.0650037 | L145: ='Interim inputs and outputs'!K87 -> 385.4186612 | M145: ='Interim inputs and outputs'!L87 -> 379.2896088 | N145: ='Interim inputs and outputs'!M87 -> 376.5317659 | O145: ='Interim inputs and outputs'!N87 -> 374.2688997 | P145: ='Interim inputs and outputs'!O87 -> 371.6204151 | Q145: ='Interim inputs and outputs'!P87 -> 369.0862935 | R145: ='Interim inputs and outputs'!Q87 -> 369.9928983 | S145: ='Interim inputs and outputs'!R87 -> 368.1345896 | T145: ='Interim inputs and outputs'!S87 -> 365.1096973 | U145: ='Interim inputs and outputs'!T87 -> 364.049406 | V145: ='Interim inputs and outputs'!U87 -> 361.9342407 | W145: ='Interim inputs and outputs'!V87 -> 364.4658742 | X145: ='Interim inputs and outputs'!W87 -> 362.5801341 | Y145: ='Interim inputs and outputs'!X87 -> 363.5416731 | Z145: ='Interim inputs and outputs'!Y87 -> 363.9306986 | AA145: ='Interim inputs and outputs'!Z87 -> 364.4678243 | AB145: ='Interim inputs and outputs'!AA87 -> 364.794865 | AC145: ='Interim inputs and outputs'!AB87 -> 362.894775 | AD145: ='Interim inputs and outputs'!AC87 -> 363.4837797 | AE145: ='Interim inputs and outputs'!AD87 -> 363.449627 | AF145: ='Interim inputs and outputs'!AE87 -> 363.6262903 | AG145: ='Interim inputs and outputs'!AF87 -> 365.1223125 | AH145: ='Interim inputs and outputs'!AG87 -> 367.0304012 | AI145: ='Interim inputs and outputs'!AH87 -> 368.0784993 | AJ145: ='Interim inputs and outputs'!AI87 -> 368.2647369 | AK145: ='Interim inputs and outputs'!AJ87 -> 367.7888959 | AL145: ='Interim inputs and outputs'!AK87 -> 367.3460217 | AM145: ='Interim inputs and outputs'!AL87 -> 365.735343 | AN145: ='Interim inputs and outputs'!AM87 -> 365.0499729 | AO145: ='Interim inputs and outputs'!AN87 -> 364.5959115 | AP145: ='Interim inputs and outputs'!AO87 -> 364.3225177
B146: LNG | C146: ='Interim inputs and outputs'!B88 -> 0 | D146: ='Interim inputs and outputs'!C88 -> 0 | E146: ='Interim inputs and outputs'!D88 -> 0 | F146: ='Interim inputs and outputs'!E88 -> 0 | G146: ='Interim inputs and outputs'!F88 -> 0 | H146: ='Interim inputs and outputs'!G88 -> 0 | I146: ='Interim inputs and outputs'!H88 -> 0 | J146: ='Interim inputs and outputs'!I88 -> 0 | K146: ='Interim inputs and outputs'!J88 -> 0 | L146: ='Interim inputs and outputs'!K88 -> 0 | M146: ='Interim inputs and outputs'!L88 -> 0 | N146: ='Interim inputs and outputs'!M88 -> 0 | O146: ='Interim inputs and outputs'!N88 -> 0 | P146: ='Interim inputs and outputs'!O88 -> 0 | Q146: ='Interim inputs and outputs'!P88 -> 0 | R146: ='Interim inputs and outputs'!Q88 -> 0 | S146: ='Interim inputs and outputs'!R88 -> 0 | T146: ='Interim inputs and outputs'!S88 -> 0 | U146: ='Interim inputs and outputs'!T88 -> 0 | V146: ='Interim inputs and outputs'!U88 -> 0 | W146: ='Interim inputs and outputs'!V88 -> 0 | X146: ='Interim inputs and outputs'!W88 -> 0 | Y146: ='Interim inputs and outputs'!X88 -> 0 | Z146: ='Interim inputs and outputs'!Y88 -> 0 | AA146: ='Interim inputs and outputs'!Z88 -> 0 | AB146: ='Interim inputs and outputs'!AA88 -> 0 | AC146: ='Interim inputs and outputs'!AB88 -> 0 | AD146: ='Interim inputs and outputs'!AC88 -> 0 | AE146: ='Interim inputs and outputs'!AD88 -> 0 | AF146: ='Interim inputs and outputs'!AE88 -> 0 | AG146: ='Interim inputs and outputs'!AF88 -> 0 | AH146: ='Interim inputs and outputs'!AG88 -> 0 | AI146: ='Interim inputs and outputs'!AH88 -> 0 | AJ146: ='Interim inputs and outputs'!AI88 -> 0 | AK146: ='Interim inputs and outputs'!AJ88 -> 0 | AL146: ='Interim inputs and outputs'!AK88 -> 0 | AM146: ='Interim inputs and outputs'!AL88 -> 0 | AN146: ='Interim inputs and outputs'!AM88 -> 0 | AO146: ='Interim inputs and outputs'!AN88 -> 0 | AP146: ='Interim inputs and outputs'!AO88 -> 0
B147: Sub-total: CO2 | C147: =SUM(C141:C146) -> 8317.779771 | D147: =SUM(D141:D146) -> 8071.843398 | E147: 8682.498888 | F147: 8982.586718 | G147: 8835.014786 | H147: 8504.240579 | I147: 8496.334198 | J147: 8495.235926 | K147: 8480.392201 | L147: 8451.59674 | M147: 8476.422001 | N147: 8516.336355 | O147: 8549.2129 | P147: 8584.956773 | Q147: 8630.713962 | R147: 8671.883696 | S147: 8701.249633 | T147: 8765.143885 | U147: 8811.372193 | V147: 8851.059278 | W147: 8813.48679 | X147: 8824.465564 | Y147: 8831.786872 | Z147: 8836.449411 | AA147: 8828.308967 | AB147: 8793.172838 | AC147: 8802.390036 | AD147: 8809.027539 | AE147: 8825.510091 | AF147: 8866.774405 | AG147: 8910.616104 | AH147: 8927.996254 | AI147: 8921.664464 | AJ147: 8900.86275 | AK147: 8875.234847 | AL147: 8836.627842 | AM147: 8817.576176 | AN147: 8807.912128 | AO147: 8803.671279 | AP147: 8804.126572
B148: BC - CH4 emissions by process
B149: Flaring | C149: ='Interim inputs and outputs'!B94 -> 2.518544732 | D149: ='Interim inputs and outputs'!C94 -> 2.161243666 | E149: ='Interim inputs and outputs'!D94 -> 2.430851753 | F149: ='Interim inputs and outputs'!E94 -> 2.45257364 | G149: ='Interim inputs and outputs'!F94 -> 2.263696955 | H149: ='Interim inputs and outputs'!G94 -> 2.236356753 | I149: ='Interim inputs and outputs'!H94 -> 2.276961915 | J149: ='Interim inputs and outputs'!I94 -> 2.291951016 | K149: ='Interim inputs and outputs'!J94 -> 2.297092143 | L149: ='Interim inputs and outputs'!K94 -> 2.298753169 | M149: ='Interim inputs and outputs'!L94 -> 2.262968069 | N149: ='Interim inputs and outputs'!M94 -> 2.246794331 | O149: ='Interim inputs and outputs'!N94 -> 2.23319798 | P149: ='Interim inputs and outputs'!O94 -> 2.217508291 | Q149: ='Interim inputs and outputs'!P94 -> 2.202790478 | R149: ='Interim inputs and outputs'!Q94 -> 2.206720389 | S149: ='Interim inputs and outputs'!R94 -> 2.194493449 | T149: ='Interim inputs and outputs'!S94 -> 2.176756099 | U149: ='Interim inputs and outputs'!T94 -> 2.169580785 | V149: ='Interim inputs and outputs'!U94 -> 2.156211679 | W149: ='Interim inputs and outputs'!V94 -> 2.169365292 | X149: ='Interim inputs and outputs'!W94 -> 2.159045634 | Y149: ='Interim inputs and outputs'!X94 -> 2.164742144 | Z149: ='Interim inputs and outputs'!Y94 -> 2.167102864 | AA149: ='Interim inputs and outputs'!Z94 -> 2.169894369 | AB149: ='Interim inputs and outputs'!AA94 -> 2.170631221 | AC149: ='Interim inputs and outputs'!AB94 -> 2.160158373 | AD149: ='Interim inputs and outputs'!AC94 -> 2.163711 | AE149: ='Interim inputs and outputs'!AD94 -> 2.164043191 | AF149: ='Interim inputs and outputs'!AE94 -> 2.166366253 | AG149: ='Interim inputs and outputs'!AF94 -> 2.176254814 | AH149: ='Interim inputs and outputs'!AG94 -> 2.187630548 | AI149: ='Interim inputs and outputs'!AH94 -> 2.193378243 | AJ149: ='Interim inputs and outputs'!AI94 -> 2.193777834 | AK149: ='Interim inputs and outputs'!AJ94 -> 2.19026647 | AL149: ='Interim inputs and outputs'!AK94 -> 2.186526808 | AM149: ='Interim inputs and outputs'!AL94 -> 2.176786517 | AN149: ='Interim inputs and outputs'!AM94 -> 2.17259111 | AO149: ='Interim inputs and outputs'!AN94 -> 2.169877803 | AP149: ='Interim inputs and outputs'!AO94 -> 2.168339314
B150: Fugitive Equipment Leaks | C150: ='Interim inputs and outputs'!B95 -> 14.33346098 | D150: ='Interim inputs and outputs'!C95 -> 14.29426295 | E150: ='Interim inputs and outputs'!D95 -> 15.22264943 | F150: ='Interim inputs and outputs'!E95 -> 15.80129611 | G150: ='Interim inputs and outputs'!F95 -> 15.79756443 | H150: ='Interim inputs and outputs'!G95 -> 15.81854926 | I150: ='Interim inputs and outputs'!H95 -> 15.82304927 | J150: ='Interim inputs and outputs'!I95 -> 15.86233369 | K150: ='Interim inputs and outputs'!J95 -> 15.87660242 | L150: ='Interim inputs and outputs'!K95 -> 15.85545988 | M150: ='Interim inputs and outputs'!L95 -> 15.82958607 | N150: ='Interim inputs and outputs'!M95 -> 15.81635063 | O150: ='Interim inputs and outputs'!N95 -> 15.77795388 | P150: ='Interim inputs and outputs'!O95 -> 15.75143818 | Q150: ='Interim inputs and outputs'!P95 -> 15.7528299 | R150: ='Interim inputs and outputs'!Q95 -> 15.63892549 | S150: ='Interim inputs and outputs'!R95 -> 15.51330605 | T150: ='Interim inputs and outputs'!S95 -> 15.49834969 | U150: ='Interim inputs and outputs'!T95 -> 15.41318426 | V150: ='Interim inputs and outputs'!U95 -> 15.31890638 | W150: ='Interim inputs and outputs'!V95 -> 15.1863418 | X150: ='Interim inputs and outputs'!W95 -> 15.23682574 | Y150: ='Interim inputs and outputs'!X95 -> 15.24918359 | Z150: ='Interim inputs and outputs'!Y95 -> 15.25915257 | AA150: ='Interim inputs and outputs'!Z95 -> 15.23077277 | AB150: ='Interim inputs and outputs'!AA95 -> 15.1264692 | AC150: ='Interim inputs and outputs'!AB95 -> 15.17141883 | AD150: ='Interim inputs and outputs'!AC95 -> 15.18498683 | AE150: ='Interim inputs and outputs'!AD95 -> 15.23284033 | AF150: ='Interim inputs and outputs'!AE95 -> 15.35032903 | AG150: ='Interim inputs and outputs'!AF95 -> 15.46276174 | AH150: ='Interim inputs and outputs'!AG95 -> 15.49477087 | AI150: ='Interim inputs and outputs'!AH95 -> 15.46678143 | AJ150: ='Interim inputs and outputs'!AI95 -> 15.40529773 | AK150: ='Interim inputs and outputs'!AJ95 -> 15.33609827 | AL150: ='Interim inputs and outputs'!AK95 -> 15.2291153 | AM150: ='Interim inputs and outputs'!AL95 -> 15.18954276 | AN150: ='Interim inputs and outputs'!AM95 -> 15.16817301 | AO150: ='Interim inputs and outputs'!AN95 -> 15.16014293 | AP150: ='Interim inputs and outputs'!AO95 -> 15.16395446
B151: Reported Venting | C151: ='Interim inputs and outputs'!B96 -> 19.36919586 | D151: ='Interim inputs and outputs'!C96 -> 19.41122244 | E151: ='Interim inputs and outputs'!D96 -> 20.47856613 | F151: ='Interim inputs and outputs'!E96 -> 21.12873555 | G151: ='Interim inputs and outputs'!F96 -> 21.20828583 | H151: ='Interim inputs and outputs'!G96 -> 21.23905541 | I151: ='Interim inputs and outputs'!H96 -> 21.26384372 | J151: ='Interim inputs and outputs'!I96 -> 21.3234363 | K151: ='Interim inputs and outputs'!J96 -> 21.3376373 | L151: ='Interim inputs and outputs'!K96 -> 21.28563066 | M151: ='Interim inputs and outputs'!L96 -> 21.24013896 | N151: ='Interim inputs and outputs'!M96 -> 21.21246392 | O151: ='Interim inputs and outputs'!N96 -> 21.13614327 | P151: ='Interim inputs and outputs'!O96 -> 21.08314268 | Q151: ='Interim inputs and outputs'!P96 -> 21.08283663 | R151: ='Interim inputs and outputs'!Q96 -> 20.86252777 | S151: ='Interim inputs and outputs'!R96 -> 20.62059725 | T151: ='Interim inputs and outputs'!S96 -> 20.58998575 | U151: ='Interim inputs and outputs'!T96 -> 20.42261642 | V151: ='Interim inputs and outputs'!U96 -> 20.23991658 | W151: ='Interim inputs and outputs'!V96 -> 19.98488372 | X151: ='Interim inputs and outputs'!W96 -> 20.08464843 | Y151: ='Interim inputs and outputs'!X96 -> 20.1067321 | Z151: ='Interim inputs and outputs'!Y96 -> 20.125129 | AA151: ='Interim inputs and outputs'!Z96 -> 20.07081666 | AB151: ='Interim inputs and outputs'!AA96 -> 19.87341151 | AC151: ='Interim inputs and outputs'!AB96 -> 19.96204767 | AD151: ='Interim inputs and outputs'!AC96 -> 19.98665292 | AE151: ='Interim inputs and outputs'!AD96 -> 20.07708137 | AF151: ='Interim inputs and outputs'!AE96 -> 20.29884769 | AG151: ='Interim inputs and outputs'!AF96 -> 20.50877962 | AH151: ='Interim inputs and outputs'!AG96 -> 20.56586309 | AI151: ='Interim inputs and outputs'!AH96 -> 20.51141598 | AJ151: ='Interim inputs and outputs'!AI96 -> 20.39529835 | AK151: ='Interim inputs and outputs'!AJ96 -> 20.26567931 | AL151: ='Interim inputs and outputs'!AK96 -> 20.06459822 | AM151: ='Interim inputs and outputs'!AL96 -> 19.99280158 | AN151: ='Interim inputs and outputs'!AM96 -> 19.95364631 | AO151: ='Interim inputs and outputs'!AN96 -> 19.93915127 | AP151: ='Interim inputs and outputs'!AO96 -> 19.9467169
B152: Unreported Venting | C152: ='Interim inputs and outputs'!B97 -> 13.23225983 | D152: ='Interim inputs and outputs'!C97 -> 13.42770853 | E152: ='Interim inputs and outputs'!D97 -> 13.82828178 | F152: ='Interim inputs and outputs'!E97 -> 14.04116476 | G152: ='Interim inputs and outputs'!F97 -> 14.24398877 | H152: ='Interim inputs and outputs'!G97 -> 14.26924326 | I152: ='Interim inputs and outputs'!H97 -> 14.31901293 | J152: ='Interim inputs and outputs'!I97 -> 14.37114442 | K152: ='Interim inputs and outputs'!J97 -> 14.37192824 | L152: ='Interim inputs and outputs'!K97 -> 14.29526403 | M152: ='Interim inputs and outputs'!L97 -> 14.24570756 | N152: ='Interim inputs and outputs'!M97 -> 14.20961823 | O152: ='Interim inputs and outputs'!N97 -> 14.11459209 | P152: ='Interim inputs and outputs'!O97 -> 14.04824863 | Q152: ='Interim inputs and outputs'!P97 -> 14.04420141 | R152: ='Interim inputs and outputs'!Q97 -> 13.77717254 | S152: ='Interim inputs and outputs'!R97 -> 13.48520852 | T152: ='Interim inputs and outputs'!S97 -> 13.44604081 | U152: ='Interim inputs and outputs'!T97 -> 13.23993317 | V152: ='Interim inputs and outputs'!U97 -> 13.0180576 | W152: ='Interim inputs and outputs'!V97 -> 12.71061815 | X152: ='Interim inputs and outputs'!W97 -> 12.83414041 | Y152: ='Interim inputs and outputs'!X97 -> 12.85867745 | Z152: ='Interim inputs and outputs'!Y97 -> 12.87989084 | AA152: ='Interim inputs and outputs'!Z97 -> 12.81477026 | AB152: ='Interim inputs and outputs'!AA97 -> 12.58081724 | AC152: ='Interim inputs and outputs'!AB97 -> 12.69033065 | AD152: ='Interim inputs and outputs'!AC97 -> 12.71814589 | AE152: ='Interim inputs and outputs'!AD97 -> 12.82514198 | AF152: ='Interim inputs and outputs'!AE97 -> 13.08722321 | AG152: ='Interim inputs and outputs'!AF97 -> 13.33243993 | AH152: ='Interim inputs and outputs'!AG97 -> 13.3957093 | AI152: ='Interim inputs and outputs'!AH97 -> 13.32933422 | AJ152: ='Interim inputs and outputs'!AI97 -> 13.19202739 | AK152: ='Interim inputs and outputs'!AJ97 -> 13.04009984 | AL152: ='Interim inputs and outputs'!AK97 -> 12.80353871 | AM152: ='Interim inputs and outputs'!AL97 -> 12.72233256 | AN152: ='Interim inputs and outputs'!AM97 -> 12.67754365 | AO152: ='Interim inputs and outputs'!AN97 -> 12.66124562 | AP152: ='Interim inputs and outputs'!AO97 -> 12.67065299
B153: Other methane | C153: ='Interim inputs and outputs'!B98 -> 2.907333716 | D153: ='Interim inputs and outputs'!C98 -> 2.864283442 | E153: ='Interim inputs and outputs'!D98 -> 3.121764385 | F153: ='Interim inputs and outputs'!E98 -> 3.28782198 | G153: ='Interim inputs and outputs'!F98 -> 3.255809271 | H153: ='Interim inputs and outputs'!G98 -> 3.259174462 | I153: ='Interim inputs and outputs'!H98 -> 3.253175156 | J153: ='Interim inputs and outputs'!I98 -> 3.25873939 | K153: ='Interim inputs and outputs'!J98 -> 3.263510838 | L153: ='Interim inputs and outputs'!K98 -> 3.267881674 | M153: ='Interim inputs and outputs'!L98 -> 3.26652338 | N153: ='Interim inputs and outputs'!M98 -> 3.267455878 | O153: ='Interim inputs and outputs'!N98 -> 3.268695666 | P153: ='Interim inputs and outputs'!O98 -> 3.269661102 | Q153: ='Interim inputs and outputs'!P98 -> 3.270751347 | R153: ='Interim inputs and outputs'!Q98 -> 3.272176366 | S153: ='Interim inputs and outputs'!R98 -> 3.273364779 | T153: ='Interim inputs and outputs'!S98 -> 3.274173944 | U153: ='Interim inputs and outputs'!T98 -> 3.276217127 | V153: ='Interim inputs and outputs'!U98 -> 3.277526563 | W153: ='Interim inputs and outputs'!V98 -> 3.278679697 | X153: ='Interim inputs and outputs'!W98 -> 3.27726447 | Y153: ='Interim inputs and outputs'!X98 -> 3.277781711 | Z153: ='Interim inputs and outputs'!Y98 -> 3.277983862 | AA153: ='Interim inputs and outputs'!Z98 -> 3.278125122 | AB153: ='Interim inputs and outputs'!AA98 -> 3.277828613 | AC153: ='Interim inputs and outputs'!AB98 -> 3.276639401 | AD153: ='Interim inputs and outputs'!AC98 -> 3.277074645 | AE153: ='Interim inputs and outputs'!AD98 -> 3.277262105 | AF153: ='Interim inputs and outputs'!AE98 -> 3.277815218 | AG153: ='Interim inputs and outputs'!AF98 -> 3.279190993 | AH153: ='Interim inputs and outputs'!AG98 -> 3.280574098 | AI153: ='Interim inputs and outputs'!AH98 -> 3.281039239 | AJ153: ='Interim inputs and outputs'!AI98 -> 3.280773359 | AK153: ='Interim inputs and outputs'!AJ98 -> 3.280078579 | AL153: ='Interim inputs and outputs'!AK98 -> 3.279258979 | AM153: ='Interim inputs and outputs'!AL98 -> 3.278001665 | AN153: ='Interim inputs and outputs'!AM98 -> 3.276264274 | AO153: ='Interim inputs and outputs'!AN98 -> 3.274944041 | AP153: ='Interim inputs and outputs'!AO98 -> 3.273806276
B154: Surface Casing Vent Flow/Gas Migration | C154: ='Interim inputs and outputs'!B99 -> 9.814871481 | D154: ='Interim inputs and outputs'!C99 -> 9.965436195 | E154: ='Interim inputs and outputs'!D99 -> 10.25153449 | F154: ='Interim inputs and outputs'!E99 -> 10.40167974 | G154: ='Interim inputs and outputs'!F99 -> 10.55710253 | H154: ='Interim inputs and outputs'!G99 -> 10.57597677 | I154: ='Interim inputs and outputs'!H99 -> 10.61399423 | J154: ='Interim inputs and outputs'!I99 -> 10.65304522 | K154: ='Interim inputs and outputs'!J99 -> 10.65332748 | L154: ='Interim inputs and outputs'!K99 -> 10.59508289 | M154: ='Interim inputs and outputs'!L99 -> 10.55770514 | N154: ='Interim inputs and outputs'!M99 -> 10.53035993 | O154: ='Interim inputs and outputs'!N99 -> 10.45843685 | P154: ='Interim inputs and outputs'!O99 -> 10.40821652 | Q154: ='Interim inputs and outputs'!P99 -> 10.4050858 | R154: ='Interim inputs and outputs'!Q99 -> 10.20311174 | S154: ='Interim inputs and outputs'!R99 -> 9.982301382 | T154: ='Interim inputs and outputs'!S99 -> 9.952636858 | U154: ='Interim inputs and outputs'!T99 -> 9.796680762 | V154: ='Interim inputs and outputs'!U99 -> 9.628851387 | W154: ='Interim inputs and outputs'!V99 -> 9.396343459 | X154: ='Interim inputs and outputs'!W99 -> 9.489821835 | Y154: ='Interim inputs and outputs'!X99 -> 9.508338887 | Z154: ='Interim inputs and outputs'!Y99 -> 9.524363666 | AA154: ='Interim inputs and outputs'!Z99 -> 9.475121477 | AB154: ='Interim inputs and outputs'!AA99 -> 9.298265656 | AC154: ='Interim inputs and outputs'!AB99 -> 9.381138237 | AD154: ='Interim inputs and outputs'!AC99 -> 9.402139041 | AE154: ='Interim inputs and outputs'!AD99 -> 9.48301892 | AF154: ='Interim inputs and outputs'!AE99 -> 9.681123769 | AG154: ='Interim inputs and outputs'!AF99 -> 9.866425074 | AH154: ='Interim inputs and outputs'!AG99 -> 9.914168551 | AI154: ='Interim inputs and outputs'!AH99 -> 9.863956856 | AJ154: ='Interim inputs and outputs'!AI99 -> 9.760166302 | AK154: ='Interim inputs and outputs'!AJ99 -> 9.645349959 | AL154: ='Interim inputs and outputs'!AK99 -> 9.466556356 | AM154: ='Interim inputs and outputs'!AL99 -> 9.405243988 | AN154: ='Interim inputs and outputs'!AM99 -> 9.371417234 | AO154: ='Interim inputs and outputs'!AN99 -> 9.359113831 | AP154: ='Interim inputs and outputs'!AO99 -> 9.366233825
B155: Sub-total: CH4 | C155: =SUM(C149:C154) -> 62.17566661 | D155: =SUM(D149:D154) -> 62.12415723 | E155: 65.33364797 | F155: 67.11327178 | G155: 67.32644778 | H155: 67.39835592 | I155: 67.55003723 | J155: 67.76065003 | K155: 67.80009842 | L155: 67.5980723 | M155: 67.40262918 | N155: 67.28304292 | O155: 66.98901974 | P155: 66.7782154 | Q155: 66.75849557 | R155: 65.96063429 | S155: 65.06927143 | T155: 64.93794315 | U155: 64.31821253 | V155: 63.63947019 | W155: 62.72623211 | X155: 63.08174652 | Y155: 63.16545587 | Z155: 63.23362281 | AA155: 63.03950066 | AB155: 62.32742345 | AC155: 62.64173317 | AD155: 62.73271033 | AE155: 63.0593879 | AF155: 63.86170517 | AG155: 64.62585218 | AH155: 64.83871647 | AI155: 64.64590597 | AJ155: 64.22734097 | AK155: 63.75757243 | AL155: 63.02959437 | AM155: 62.76470908 | AN155: 62.61963558 | AO155: 62.56447549 | AP155: 62.58970377
B158: Water use for fracking (million m3)
B159: Year | C159: 2011 | D159: 2012 | E159: 2013 | F159: 2014 | G159: 2015 | H159: 2016 | I159: 2017 | J159: 2018 | K159: 2019 | L159: 2020 | M159: 2021 | N159: 2022 | O159: 2023 | P159: 2024 | Q159: 2025 | R159: 2026 | S159: 2027 | T159: 2028 | U159: 2029 | V159: 2030 | W159: 2031 | X159: 2032 | Y159: 2033 | Z159: 2034 | AA159: 2035 | AB159: 2036 | AC159: 2037 | AD159: 2038 | AE159: 2039 | AF159: 2040 | AG159: 2041 | AH159: 2042 | AI159: 2043 | AJ159: 2044 | AK159: 2045 | AL159: 2046 | AM159: 2047 | AN159: 2048 | AO159: 2049 | AP159: 2050
B160: Water use for fracking
B161: Fresh water used | C161: ='Water + wastewater calculations'!C108/1000000 -> 3.816707177 | D161: ='Water + wastewater calculations'!D108/1000000 -> 3.92920702 | E161: ='Water + wastewater calculations'!E108/1000000 -> 5.339342192 | F161: ='Water + wastewater calculations'!F108/1000000 -> 6.187979765 | G161: ='Water + wastewater calculations'!G108/1000000 -> 6.282248853 | H161: ='Water + wastewater calculations'!H108/1000000 -> 5.847794919 | I161: ='Water + wastewater calculations'!I108/1000000 -> 5.048862462 | J161: ='Water + wastewater calculations'!J108/1000000 -> 4.848531033 | K161: ='Water + wastewater calculations'!K108/1000000 -> 4.71085691 | L161: ='Water + wastewater calculations'!L108/1000000 -> 4.617870314 | M161: ='Water + wastewater calculations'!M108/1000000 -> 5.143119636 | N161: ='Water + wastewater calculations'!N108/1000000 -> 5.416427121 | O161: ='Water + wastewater calculations'!O108/1000000 -> 5.656551655 | P161: ='Water + wastewater calculations'!P108/1000000 -> 5.886390756 | Q161: ='Water + wastewater calculations'!Q108/1000000 -> 6.111201298 | R161: ='Water + wastewater calculations'!R108/1000000 -> 6.214457315 | S161: ='Water + wastewater calculations'!S108/1000000 -> 6.392708417 | T161: ='Water + wastewater calculations'!T108/1000000 -> 6.566795193 | U161: ='Water + wastewater calculations'!U108/1000000 -> 6.771584135 | V161: ='Water + wastewater calculations'!V108/1000000 -> 6.985313056 | W161: ='Water + wastewater calculations'!W108/1000000 -> 6.561113869 | X161: ='Water + wastewater calculations'!X108/1000000 -> 6.381573284 | Y161: ='Water + wastewater calculations'!Y108/1000000 -> 6.293019859 | Z161: ='Water + wastewater calculations'!Z108/1000000 -> 6.223441156 | AA161: ='Water + wastewater calculations'!AA108/1000000 -> 6.170097564 | AB161: ='Water + wastewater calculations'!AB108/1000000 -> 6.144016517 | AC161: ='Water + wastewater calculations'!AC108/1000000 -> 6.109210814 | AD161: ='Water + wastewater calculations'!AD108/1000000 -> 6.107661746 | AE161: ='Water + wastewater calculations'!AE108/1000000 -> 6.10119452 | AF161: ='Water + wastewater calculations'!AF108/1000000 -> 6.102359595 | AG161: ='Water + wastewater calculations'!AG108/1000000 -> 6.165679671 | AH161: ='Water + wastewater calculations'!AH108/1000000 -> 6.200845979 | AI161: ='Water + wastewater calculations'!AI108/1000000 -> 6.263585259 | AJ161: ='Water + wastewater calculations'!AJ108/1000000 -> 6.32032183 | AK161: ='Water + wastewater calculations'!AK108/1000000 -> 6.357201966 | AL161: ='Water + wastewater calculations'!AL108/1000000 -> 6.442727472 | AM161: ='Water + wastewater calculations'!AM108/1000000 -> 6.417668738 | AN161: ='Water + wastewater calculations'!AN108/1000000 -> 6.4164404 | AO161: ='Water + wastewater calculations'!AO108/1000000 -> 6.416167351 | AP161: ='Water + wastewater calculations'!AP108/1000000 -> 6.416236339
B162: Recycled water used | C162: ='Water + wastewater calculations'!C89/1000000 -> 0 | D162: ='Water + wastewater calculations'!D89/1000000 -> 0 | E162: ='Water + wastewater calculations'!E89/1000000 -> 0 | F162: ='Water + wastewater calculations'!F89/1000000 -> 0 | G162: ='Water + wastewater calculations'!G89/1000000 -> 0 | H162: ='Water + wastewater calculations'!H89/1000000 -> 0 | I162: ='Water + wastewater calculations'!I89/1000000 -> 0 | J162: ='Water + wastewater calculations'!J89/1000000 -> 0 | K162: ='Water + wastewater calculations'!K89/1000000 -> 0 | L162: ='Water + wastewater calculations'!L89/1000000 -> 0 | M162: ='Water + wastewater calculations'!M89/1000000 -> 0 | N162: ='Water + wastewater calculations'!N89/1000000 -> 0 | O162: ='Water + wastewater calculations'!O89/1000000 -> 0 | P162: ='Water + wastewater calculations'!P89/1000000 -> 0 | Q162: ='Water + wastewater calculations'!Q89/1000000 -> 0 | R162: ='Water + wastewater calculations'!R89/1000000 -> 0 | S162: ='Water + wastewater calculations'!S89/1000000 -> 0 | T162: ='Water + wastewater calculations'!T89/1000000 -> 0 | U162: ='Water + wastewater calculations'!U89/1000000 -> 0 | V162: ='Water + wastewater calculations'!V89/1000000 -> 0 | W162: ='Water + wastewater calculations'!W89/1000000 -> 0 | X162: ='Water + wastewater calculations'!X89/1000000 -> 0 | Y162: ='Water + wastewater calculations'!Y89/1000000 -> 0 | Z162: ='Water + wastewater calculations'!Z89/1000000 -> 0 | AA162: ='Water + wastewater calculations'!AA89/1000000 -> 0 | AB162: ='Water + wastewater calculations'!AB89/1000000 -> 0 | AC162: ='Water + wastewater calculations'!AC89/1000000 -> 0 | AD162: ='Water + wastewater calculations'!AD89/1000000 -> 0 | AE162: ='Water + wastewater calculations'!AE89/1000000 -> 0 | AF162: ='Water + wastewater calculations'!AF89/1000000 -> 0 | AG162: ='Water + wastewater calculations'!AG89/1000000 -> 0 | AH162: ='Water + wastewater calculations'!AH89/1000000 -> 0 | AI162: ='Water + wastewater calculations'!AI89/1000000 -> 0 | AJ162: ='Water + wastewater calculations'!AJ89/1000000 -> 0 | AK162: ='Water + wastewater calculations'!AK89/1000000 -> 0 | AL162: ='Water + wastewater calculations'!AL89/1000000 -> 0 | AM162: ='Water + wastewater calculations'!AM89/1000000 -> 0 | AN162: ='Water + wastewater calculations'!AN89/1000000 -> 0 | AO162: ='Water + wastewater calculations'!AO89/1000000 -> 0 | AP162: ='Water + wastewater calculations'!AP89/1000000 -> 0
B163: Saline water used | C163: ='Water + wastewater calculations'!C98/1000000 -> 0 | D163: ='Water + wastewater calculations'!D98/1000000 -> 0 | E163: ='Water + wastewater calculations'!E98/1000000 -> 0 | F163: ='Water + wastewater calculations'!F98/1000000 -> 0 | G163: ='Water + wastewater calculations'!G98/1000000 -> 0 | H163: ='Water + wastewater calculations'!H98/1000000 -> 0 | I163: ='Water + wastewater calculations'!I98/1000000 -> 0 | J163: ='Water + wastewater calculations'!J98/1000000 -> 0 | K163: ='Water + wastewater calculations'!K98/1000000 -> 0 | L163: ='Water + wastewater calculations'!L98/1000000 -> 0 | M163: ='Water + wastewater calculations'!M98/1000000 -> 0 | N163: ='Water + wastewater calculations'!N98/1000000 -> 0 | O163: ='Water + wastewater calculations'!O98/1000000 -> 0 | P163: ='Water + wastewater calculations'!P98/1000000 -> 0 | Q163: ='Water + wastewater calculations'!Q98/1000000 -> 0 | R163: ='Water + wastewater calculations'!R98/1000000 -> 0 | S163: ='Water + wastewater calculations'!S98/1000000 -> 0 | T163: ='Water + wastewater calculations'!T98/1000000 -> 0 | U163: ='Water + wastewater calculations'!U98/1000000 -> 0 | V163: ='Water + wastewater calculations'!V98/1000000 -> 0 | W163: ='Water + wastewater calculations'!W98/1000000 -> 0 | X163: ='Water + wastewater calculations'!X98/1000000 -> 0 | Y163: ='Water + wastewater calculations'!Y98/1000000 -> 0 | Z163: ='Water + wastewater calculations'!Z98/1000000 -> 0 | AA163: ='Water + wastewater calculations'!AA98/1000000 -> 0 | AB163: ='Water + wastewater calculations'!AB98/1000000 -> 0 | AC163: ='Water + wastewater calculations'!AC98/1000000 -> 0 | AD163: ='Water + wastewater calculations'!AD98/1000000 -> 0 | AE163: ='Water + wastewater calculations'!AE98/1000000 -> 0 | AF163: ='Water + wastewater calculations'!AF98/1000000 -> 0 | AG163: ='Water + wastewater calculations'!AG98/1000000 -> 0 | AH163: ='Water + wastewater calculations'!AH98/1000000 -> 0 | AI163: ='Water + wastewater calculations'!AI98/1000000 -> 0 | AJ163: ='Water + wastewater calculations'!AJ98/1000000 -> 0 | AK163: ='Water + wastewater calculations'!AK98/1000000 -> 0 | AL163: ='Water + wastewater calculations'!AL98/1000000 -> 0 | AM163: ='Water + wastewater calculations'!AM98/1000000 -> 0 | AN163: ='Water + wastewater calculations'!AN98/1000000 -> 0 | AO163: ='Water + wastewater calculations'!AO98/1000000 -> 0 | AP163: ='Water + wastewater calculations'!AP98/1000000 -> 0
B164: Total water used | C164: ='Water + wastewater calculations'!C12/1000000 -> 3.816707177 | D164: ='Water + wastewater calculations'!D12/1000000 -> 3.92920702 | E164: ='Water + wastewater calculations'!E12/1000000 -> 5.339342192 | F164: ='Water + wastewater calculations'!F12/1000000 -> 6.187979765 | G164: ='Water + wastewater calculations'!G12/1000000 -> 6.282248853 | H164: ='Water + wastewater calculations'!H12/1000000 -> 5.847794919 | I164: ='Water + wastewater calculations'!I12/1000000 -> 5.048862462 | J164: ='Water + wastewater calculations'!J12/1000000 -> 4.848531033 | K164: ='Water + wastewater calculations'!K12/1000000 -> 4.71085691 | L164: ='Water + wastewater calculations'!L12/1000000 -> 4.617870314 | M164: ='Water + wastewater calculations'!M12/1000000 -> 5.143119636 | N164: ='Water + wastewater calculations'!N12/1000000 -> 5.416427121 | O164: ='Water + wastewater calculations'!O12/1000000 -> 5.656551655 | P164: ='Water + wastewater calculations'!P12/1000000 -> 5.886390756 | Q164: ='Water + wastewater calculations'!Q12/1000000 -> 6.111201298 | R164: ='Water + wastewater calculations'!R12/1000000 -> 6.214457315 | S164: ='Water + wastewater calculations'!S12/1000000 -> 6.392708417 | T164: ='Water + wastewater calculations'!T12/1000000 -> 6.566795193 | U164: ='Water + wastewater calculations'!U12/1000000 -> 6.771584135 | V164: ='Water + wastewater calculations'!V12/1000000 -> 6.985313056 | W164: ='Water + wastewater calculations'!W12/1000000 -> 6.561113869 | X164: ='Water + wastewater calculations'!X12/1000000 -> 6.381573284 | Y164: ='Water + wastewater calculations'!Y12/1000000 -> 6.293019859 | Z164: ='Water + wastewater calculations'!Z12/1000000 -> 6.223441156 | AA164: ='Water + wastewater calculations'!AA12/1000000 -> 6.170097564 | AB164: ='Water + wastewater calculations'!AB12/1000000 -> 6.144016517 | AC164: ='Water + wastewater calculations'!AC12/1000000 -> 6.109210814 | AD164: ='Water + wastewater calculations'!AD12/1000000 -> 6.107661746 | AE164: ='Water + wastewater calculations'!AE12/1000000 -> 6.10119452 | AF164: ='Water + wastewater calculations'!AF12/1000000 -> 6.102359595 | AG164: ='Water + wastewater calculations'!AG12/1000000 -> 6.165679671 | AH164: ='Water + wastewater calculations'!AH12/1000000 -> 6.200845979 | AI164: ='Water + wastewater calculations'!AI12/1000000 -> 6.263585259 | AJ164: ='Water + wastewater calculations'!AJ12/1000000 -> 6.32032183 | AK164: ='Water + wastewater calculations'!AK12/1000000 -> 6.357201966 | AL164: ='Water + wastewater calculations'!AL12/1000000 -> 6.442727472 | AM164: ='Water + wastewater calculations'!AM12/1000000 -> 6.417668738 | AN164: ='Water + wastewater calculations'!AN12/1000000 -> 6.4164404 | AO164: ='Water + wastewater calculations'!AO12/1000000 -> 6.416167351 | AP164: ='Water + wastewater calculations'!AP12/1000000 -> 6.416236339
B166: Water use by Basin
B167: Conventional
B168: Fresh water used | C168: ='Water + wastewater calculations'!C102/1000000 -> 0.2258651055 | D168: ='Water + wastewater calculations'!D102/1000000 -> 0.08997137669 | E168: ='Water + wastewater calculations'!E102/1000000 -> 0.1120372564 | F168: ='Water + wastewater calculations'!F102/1000000 -> 0.07368077866 | G168: ='Water + wastewater calculations'!G102/1000000 -> 0.001979370844 | H168: ='Water + wastewater calculations'!H102/1000000 -> 0 | I168: ='Water + wastewater calculations'!I102/1000000 -> 0.01845551215 | J168: ='Water + wastewater calculations'!J102/1000000 -> 0.03233542528 | K168: ='Water + wastewater calculations'!K102/1000000 -> 0.03980427227 | L168: ='Water + wastewater calculations'!L102/1000000 -> 0.04556558349 | M168: ='Water + wastewater calculations'!M102/1000000 -> 0.03327776482 | N168: ='Water + wastewater calculations'!N102/1000000 -> 0.02788835291 | O168: ='Water + wastewater calculations'!O102/1000000 -> 0.0244874893 | P168: ='Water + wastewater calculations'!P102/1000000 -> 0.01950506784 | Q168: ='Water + wastewater calculations'!Q102/1000000 -> 0.01326390256 | R168: ='Water + wastewater calculations'!R102/1000000 -> 0.02765138981 | S168: ='Water + wastewater calculations'!S102/1000000 -> 0.0317726328 | T168: ='Water + wastewater calculations'!T102/1000000 -> 0.02775128029 | U168: ='Water + wastewater calculations'!U102/1000000 -> 0.03023077294 | V168: ='Water + wastewater calculations'!V102/1000000 -> 0.02978687551 | W168: ='Water + wastewater calculations'!W102/1000000 -> 0.04561149982 | X168: ='Water + wastewater calculations'!X102/1000000 -> 0.04235431803 | Y168: ='Water + wastewater calculations'!Y102/1000000 -> 0.04588006394 | Z168: ='Water + wastewater calculations'!Z102/1000000 -> 0.04801336433 | AA168: ='Water + wastewater calculations'!AA102/1000000 -> 0.0520033873 | AB168: ='Water + wastewater calculations'!AB102/1000000 -> 0.05782109889 | AC168: ='Water + wastewater calculations'!AC102/1000000 -> 0.05293281063 | AD168: ='Water + wastewater calculations'!AD102/1000000 -> 0.05381625506 | AE168: ='Water + wastewater calculations'!AE102/1000000 -> 0.05195391436 | AF168: ='Water + wastewater calculations'!AF102/1000000 -> 0.04710112687 | AG168: ='Water + wastewater calculations'!AG102/1000000 -> 0.0420571926 | AH168: ='Water + wastewater calculations'!AH102/1000000 -> 0.04333856445 | AI168: ='Water + wastewater calculations'!AI102/1000000 -> 0.04367184958 | AJ168: ='Water + wastewater calculations'!AJ102/1000000 -> 0.04390682321 | AK168: ='Water + wastewater calculations'!AK102/1000000 -> 0.04418060795 | AL168: ='Water + wastewater calculations'!AL102/1000000 -> 0.04345550085 | AM168: ='Water + wastewater calculations'!AM102/1000000 -> 0.04277110195 | AN168: ='Water + wastewater calculations'!AN102/1000000 -> 0.04218652992 | AO168: ='Water + wastewater calculations'!AO102/1000000 -> 0.04147550407 | AP168: ='Water + wastewater calculations'!AP102/1000000 -> 0.04061792331
B169: Total water used | C169: ='Water + wastewater calculations'!C6/1000000 -> 0.2258651055 | D169: ='Water + wastewater calculations'!D6/1000000 -> 0.08997137669 | E169: ='Water + wastewater calculations'!E6/1000000 -> 0.1120372564 | F169: ='Water + wastewater calculations'!F6/1000000 -> 0.07368077866 | G169: ='Water + wastewater calculations'!G6/1000000 -> 0.001979370844 | H169: ='Water + wastewater calculations'!H6/1000000 -> 0 | I169: ='Water + wastewater calculations'!I6/1000000 -> 0.01845551215 | J169: ='Water + wastewater calculations'!J6/1000000 -> 0.03233542528 | K169: ='Water + wastewater calculations'!K6/1000000 -> 0.03980427227 | L169: ='Water + wastewater calculations'!L6/1000000 -> 0.04556558349 | M169: ='Water + wastewater calculations'!M6/1000000 -> 0.03327776482 | N169: ='Water + wastewater calculations'!N6/1000000 -> 0.02788835291 | O169: ='Water + wastewater calculations'!O6/1000000 -> 0.0244874893 | P169: ='Water + wastewater calculations'!P6/1000000 -> 0.01950506784 | Q169: ='Water + wastewater calculations'!Q6/1000000 -> 0.01326390256 | R169: ='Water + wastewater calculations'!R6/1000000 -> 0.02765138981 | S169: ='Water + wastewater calculations'!S6/1000000 -> 0.0317726328 | T169: ='Water + wastewater calculations'!T6/1000000 -> 0.02775128029 | U169: ='Water + wastewater calculations'!U6/1000000 -> 0.03023077294 | V169: ='Water + wastewater calculations'!V6/1000000 -> 0.02978687551 | W169: ='Water + wastewater calculations'!W6/1000000 -> 0.04561149982 | X169: ='Water + wastewater calculations'!X6/1000000 -> 0.04235431803 | Y169: ='Water + wastewater calculations'!Y6/1000000 -> 0.04588006394 | Z169: ='Water + wastewater calculations'!Z6/1000000 -> 0.04801336433 | AA169: ='Water + wastewater calculations'!AA6/1000000 -> 0.0520033873 | AB169: ='Water + wastewater calculations'!AB6/1000000 -> 0.05782109889 | AC169: ='Water + wastewater calculations'!AC6/1000000 -> 0.05293281063 | AD169: ='Water + wastewater calculations'!AD6/1000000 -> 0.05381625506 | AE169: ='Water + wastewater calculations'!AE6/1000000 -> 0.05195391436 | AF169: ='Water + wastewater calculations'!AF6/1000000 -> 0.04710112687 | AG169: ='Water + wastewater calculations'!AG6/1000000 -> 0.0420571926 | AH169: ='Water + wastewater calculations'!AH6/1000000 -> 0.04333856445 | AI169: ='Water + wastewater calculations'!AI6/1000000 -> 0.04367184958 | AJ169: ='Water + wastewater calculations'!AJ6/1000000 -> 0.04390682321 | AK169: ='Water + wastewater calculations'!AK6/1000000 -> 0.04418060795 | AL169: ='Water + wastewater calculations'!AL6/1000000 -> 0.04345550085 | AM169: ='Water + wastewater calculations'!AM6/1000000 -> 0.04277110195 | AN169: ='Water + wastewater calculations'!AN6/1000000 -> 0.04218652992 | AO169: ='Water + wastewater calculations'!AO6/1000000 -> 0.04147550407 | AP169: ='Water + wastewater calculations'!AP6/1000000 -> 0.04061792331
B170: Montney
B171: Fresh water used | C171: ='Water + wastewater calculations'!C103/1000000 -> 1.704818192 | D171: ='Water + wastewater calculations'!D103/1000000 -> 1.765200748 | E171: ='Water + wastewater calculations'!E103/1000000 -> 2.419274767 | F171: ='Water + wastewater calculations'!F103/1000000 -> 2.789220063 | G171: ='Water + wastewater calculations'!G103/1000000 -> 2.791466745 | H171: ='Water + wastewater calculations'!H103/1000000 -> 3.620549108 | I171: ='Water + wastewater calculations'!I103/1000000 -> 2.689419405 | J171: ='Water + wastewater calculations'!J103/1000000 -> 2.512568815 | K171: ='Water + wastewater calculations'!K103/1000000 -> 2.407150649 | L171: ='Water + wastewater calculations'!L103/1000000 -> 2.338690448 | M171: ='Water + wastewater calculations'!M103/1000000 -> 2.275757369 | N171: ='Water + wastewater calculations'!N103/1000000 -> 2.241910723 | O171: ='Water + wastewater calculations'!O103/1000000 -> 2.21624781 | P171: ='Water + wastewater calculations'!P103/1000000 -> 2.196346557 | Q171: ='Water + wastewater calculations'!Q103/1000000 -> 2.182608112 | R171: ='Water + wastewater calculations'!R103/1000000 -> 2.020722432 | S171: ='Water + wastewater calculations'!S103/1000000 -> 1.946566737 | T171: ='Water + wastewater calculations'!T103/1000000 -> 1.887677954 | U171: ='Water + wastewater calculations'!U103/1000000 -> 1.842172325 | V171: ='Water + wastewater calculations'!V103/1000000 -> 1.816507527 | W171: ='Water + wastewater calculations'!W103/1000000 -> 1.780105903 | X171: ='Water + wastewater calculations'!X103/1000000 -> 1.741243779 | Y171: ='Water + wastewater calculations'!Y103/1000000 -> 1.712385688 | Z171: ='Water + wastewater calculations'!Z103/1000000 -> 1.686328246 | AA171: ='Water + wastewater calculations'!AA103/1000000 -> 1.661353549 | AB171: ='Water + wastewater calculations'!AB103/1000000 -> 1.654439242 | AC171: ='Water + wastewater calculations'!AC103/1000000 -> 1.634397215 | AD171: ='Water + wastewater calculations'!AD103/1000000 -> 1.630432627 | AE171: ='Water + wastewater calculations'!AE103/1000000 -> 1.624739755 | AF171: ='Water + wastewater calculations'!AF103/1000000 -> 1.62559664 | AG171: ='Water + wastewater calculations'!AG103/1000000 -> 1.684515793 | AH171: ='Water + wastewater calculations'!AH103/1000000 -> 1.709063191 | AI171: ='Water + wastewater calculations'!AI103/1000000 -> 1.765001181 | AJ171: ='Water + wastewater calculations'!AJ103/1000000 -> 1.815832427 | AK171: ='Water + wastewater calculations'!AK103/1000000 -> 1.846368137 | AL171: ='Water + wastewater calculations'!AL103/1000000 -> 1.925917073 | AM171: ='Water + wastewater calculations'!AM103/1000000 -> 1.907751394 | AN171: ='Water + wastewater calculations'!AN103/1000000 -> 1.908773483 | AO171: ='Water + wastewater calculations'!AO103/1000000 -> 1.910475683 | AP171: ='Water + wastewater calculations'!AP103/1000000 -> 1.9124427
B172: Total water used | C172: ='Water + wastewater calculations'!C7/1000000 -> 1.704818192 | D172: ='Water + wastewater calculations'!D7/1000000 -> 1.765200748 | E172: ='Water + wastewater calculations'!E7/1000000 -> 2.419274767 | F172: ='Water + wastewater calculations'!F7/1000000 -> 2.789220063 | G172: ='Water + wastewater calculations'!G7/1000000 -> 2.791466745 | H172: ='Water + wastewater calculations'!H7/1000000 -> 3.620549108 | I172: ='Water + wastewater calculations'!I7/1000000 -> 2.689419405 | J172: ='Water + wastewater calculations'!J7/1000000 -> 2.512568815 | K172: ='Water + wastewater calculations'!K7/1000000 -> 2.407150649 | L172: ='Water + wastewater calculations'!L7/1000000 -> 2.338690448 | M172: ='Water + wastewater calculations'!M7/1000000 -> 2.275757369 | N172: ='Water + wastewater calculations'!N7/1000000 -> 2.241910723 | O172: ='Water + wastewater calculations'!O7/1000000 -> 2.21624781 | P172: ='Water + wastewater calculations'!P7/1000000 -> 2.196346557 | Q172: ='Water + wastewater calculations'!Q7/1000000 -> 2.182608112 | R172: ='Water + wastewater calculations'!R7/1000000 -> 2.020722432 | S172: ='Water + wastewater calculations'!S7/1000000 -> 1.946566737 | T172: ='Water + wastewater calculations'!T7/1000000 -> 1.887677954 | U172: ='Water + wastewater calculations'!U7/1000000 -> 1.842172325 | V172: ='Water + wastewater calculations'!V7/1000000 -> 1.816507527 | W172: ='Water + wastewater calculations'!W7/1000000 -> 1.780105903 | X172: ='Water + wastewater calculations'!X7/1000000 -> 1.741243779 | Y172: ='Water + wastewater calculations'!Y7/1000000 -> 1.712385688 | Z172: ='Water + wastewater calculations'!Z7/1000000 -> 1.686328246 | AA172: ='Water + wastewater calculations'!AA7/1000000 -> 1.661353549 | AB172: ='Water + wastewater calculations'!AB7/1000000 -> 1.654439242 | AC172: ='Water + wastewater calculations'!AC7/1000000 -> 1.634397215 | AD172: ='Water + wastewater calculations'!AD7/1000000 -> 1.630432627 | AE172: ='Water + wastewater calculations'!AE7/1000000 -> 1.624739755 | AF172: ='Water + wastewater calculations'!AF7/1000000 -> 1.62559664 | AG172: ='Water + wastewater calculations'!AG7/1000000 -> 1.684515793 | AH172: ='Water + wastewater calculations'!AH7/1000000 -> 1.709063191 | AI172: ='Water + wastewater calculations'!AI7/1000000 -> 1.765001181 | AJ172: ='Water + wastewater calculations'!AJ7/1000000 -> 1.815832427 | AK172: ='Water + wastewater calculations'!AK7/1000000 -> 1.846368137 | AL172: ='Water + wastewater calculations'!AL7/1000000 -> 1.925917073 | AM172: ='Water + wastewater calculations'!AM7/1000000 -> 1.907751394 | AN172: ='Water + wastewater calculations'!AN7/1000000 -> 1.908773483 | AO172: ='Water + wastewater calculations'!AO7/1000000 -> 1.910475683 | AP172: ='Water + wastewater calculations'!AP7/1000000 -> 1.9124427
B173: Horn River
B174: Fresh water used | C174: ='Water + wastewater calculations'!C104/1000000 -> 1.88602388 | D174: ='Water + wastewater calculations'!D104/1000000 -> 2.074034895 | E174: ='Water + wastewater calculations'!E104/1000000 -> 2.808030169 | F174: ='Water + wastewater calculations'!F104/1000000 -> 3.325078923 | G174: ='Water + wastewater calculations'!G104/1000000 -> 3.488802737 | H174: ='Water + wastewater calculations'!H104/1000000 -> 2.227245811 | I174: ='Water + wastewater calculations'!I104/1000000 -> 2.340987545 | J174: ='Water + wastewater calculations'!J104/1000000 -> 2.303626793 | K174: ='Water + wastewater calculations'!K104/1000000 -> 2.263901988 | L174: ='Water + wastewater calculations'!L104/1000000 -> 2.233614282 | M174: ='Water + wastewater calculations'!M104/1000000 -> 2.834084503 | N174: ='Water + wastewater calculations'!N104/1000000 -> 3.146628045 | O174: ='Water + wastewater calculations'!O104/1000000 -> 3.415816356 | P174: ='Water + wastewater calculations'!P104/1000000 -> 3.670539131 | Q174: ='Water + wastewater calculations'!Q104/1000000 -> 3.915329283 | R174: ='Water + wastewater calculations'!R104/1000000 -> 4.166083493 | S174: ='Water + wastewater calculations'!S104/1000000 -> 4.414369048 | T174: ='Water + wastewater calculations'!T104/1000000 -> 4.651365959 | U174: ='Water + wastewater calculations'!U104/1000000 -> 4.899181037 | V174: ='Water + wastewater calculations'!V104/1000000 -> 5.139018654 | W174: ='Water + wastewater calculations'!W104/1000000 -> 4.735396466 | X174: ='Water + wastewater calculations'!X104/1000000 -> 4.597975187 | Y174: ='Water + wastewater calculations'!Y104/1000000 -> 4.534754107 | Z174: ='Water + wastewater calculations'!Z104/1000000 -> 4.489099546 | AA174: ='Water + wastewater calculations'!AA104/1000000 -> 4.456740628 | AB174: ='Water + wastewater calculations'!AB104/1000000 -> 4.431756176 | AC174: ='Water + wastewater calculations'!AC104/1000000 -> 4.421880788 | AD174: ='Water + wastewater calculations'!AD104/1000000 -> 4.423412864 | AE174: ='Water + wastewater calculations'!AE104/1000000 -> 4.42450085 | AF174: ='Water + wastewater calculations'!AF104/1000000 -> 4.429661828 | AG174: ='Water + wastewater calculations'!AG104/1000000 -> 4.439106685 | AH174: ='Water + wastewater calculations'!AH104/1000000 -> 4.448444224 | AI174: ='Water + wastewater calculations'!AI104/1000000 -> 4.454912229 | AJ174: ='Water + wastewater calculations'!AJ104/1000000 -> 4.46058258 | AK174: ='Water + wastewater calculations'!AK104/1000000 -> 4.46665322 | AL174: ='Water + wastewater calculations'!AL104/1000000 -> 4.473354898 | AM174: ='Water + wastewater calculations'!AM104/1000000 -> 4.467146242 | AN174: ='Water + wastewater calculations'!AN104/1000000 -> 4.465480387 | AO174: ='Water + wastewater calculations'!AO104/1000000 -> 4.464216164 | AP174: ='Water + wastewater calculations'!AP104/1000000 -> 4.463175716
B175: Total water used | C175: ='Water + wastewater calculations'!C8/1000000 -> 1.88602388 | D175: ='Water + wastewater calculations'!D8/1000000 -> 2.074034895 | E175: ='Water + wastewater calculations'!E8/1000000 -> 2.808030169 | F175: ='Water + wastewater calculations'!F8/1000000 -> 3.325078923 | G175: ='Water + wastewater calculations'!G8/1000000 -> 3.488802737 | H175: ='Water + wastewater calculations'!H8/1000000 -> 2.227245811 | I175: ='Water + wastewater calculations'!I8/1000000 -> 2.340987545 | J175: ='Water + wastewater calculations'!J8/1000000 -> 2.303626793 | K175: ='Water + wastewater calculations'!K8/1000000 -> 2.263901988 | L175: ='Water + wastewater calculations'!L8/1000000 -> 2.233614282 | M175: ='Water + wastewater calculations'!M8/1000000 -> 2.834084503 | N175: ='Water + wastewater calculations'!N8/1000000 -> 3.146628045 | O175: ='Water + wastewater calculations'!O8/1000000 -> 3.415816356 | P175: ='Water + wastewater calculations'!P8/1000000 -> 3.670539131 | Q175: ='Water + wastewater calculations'!Q8/1000000 -> 3.915329283 | R175: ='Water + wastewater calculations'!R8/1000000 -> 4.166083493 | S175: ='Water + wastewater calculations'!S8/1000000 -> 4.414369048 | T175: ='Water + wastewater calculations'!T8/1000000 -> 4.651365959 | U175: ='Water + wastewater calculations'!U8/1000000 -> 4.899181037 | V175: ='Water + wastewater calculations'!V8/1000000 -> 5.139018654 | W175: ='Water + wastewater calculations'!W8/1000000 -> 4.735396466 | X175: ='Water + wastewater calculations'!X8/1000000 -> 4.597975187 | Y175: ='Water + wastewater calculations'!Y8/1000000 -> 4.534754107 | Z175: ='Water + wastewater calculations'!Z8/1000000 -> 4.489099546 | AA175: ='Water + wastewater calculations'!AA8/1000000 -> 4.456740628 | AB175: ='Water + wastewater calculations'!AB8/1000000 -> 4.431756176 | AC175: ='Water + wastewater calculations'!AC8/1000000 -> 4.421880788 | AD175: ='Water + wastewater calculations'!AD8/1000000 -> 4.423412864 | AE175: ='Water + wastewater calculations'!AE8/1000000 -> 4.42450085 | AF175: ='Water + wastewater calculations'!AF8/1000000 -> 4.429661828 | AG175: ='Water + wastewater calculations'!AG8/1000000 -> 4.439106685 | AH175: ='Water + wastewater calculations'!AH8/1000000 -> 4.448444224 | AI175: ='Water + wastewater calculations'!AI8/1000000 -> 4.454912229 | AJ175: ='Water + wastewater calculations'!AJ8/1000000 -> 4.46058258 | AK175: ='Water + wastewater calculations'!AK8/1000000 -> 4.46665322 | AL175: ='Water + wastewater calculations'!AL8/1000000 -> 4.473354898 | AM175: ='Water + wastewater calculations'!AM8/1000000 -> 4.467146242 | AN175: ='Water + wastewater calculations'!AN8/1000000 -> 4.465480387 | AO175: ='Water + wastewater calculations'!AO8/1000000 -> 4.464216164 | AP175: ='Water + wastewater calculations'!AP8/1000000 -> 4.463175716
B176: Cordova
B177: Fresh water used | C177: ='Water + wastewater calculations'!C105/1000000 -> 0 | D177: ='Water + wastewater calculations'!D105/1000000 -> 0 | E177: ='Water + wastewater calculations'!E105/1000000 -> 0 | F177: ='Water + wastewater calculations'!F105/1000000 -> 0 | G177: ='Water + wastewater calculations'!G105/1000000 -> 0 | H177: ='Water + wastewater calculations'!H105/1000000 -> 0 | I177: ='Water + wastewater calculations'!I105/1000000 -> 0 | J177: ='Water + wastewater calculations'!J105/1000000 -> 0 | K177: ='Water + wastewater calculations'!K105/1000000 -> 0 | L177: ='Water + wastewater calculations'!L105/1000000 -> 0 | M177: ='Water + wastewater calculations'!M105/1000000 -> 0 | N177: ='Water + wastewater calculations'!N105/1000000 -> 0 | O177: ='Water + wastewater calculations'!O105/1000000 -> 0 | P177: ='Water + wastewater calculations'!P105/1000000 -> 0 | Q177: ='Water + wastewater calculations'!Q105/1000000 -> 0 | R177: ='Water + wastewater calculations'!R105/1000000 -> 0 | S177: ='Water + wastewater calculations'!S105/1000000 -> 0 | T177: ='Water + wastewater calculations'!T105/1000000 -> 0 | U177: ='Water + wastewater calculations'!U105/1000000 -> 0 | V177: ='Water + wastewater calculations'!V105/1000000 -> 0 | W177: ='Water + wastewater calculations'!W105/1000000 -> 0 | X177: ='Water + wastewater calculations'!X105/1000000 -> 0 | Y177: ='Water + wastewater calculations'!Y105/1000000 -> 0 | Z177: ='Water + wastewater calculations'!Z105/1000000 -> 0 | AA177: ='Water + wastewater calculations'!AA105/1000000 -> 0 | AB177: ='Water + wastewater calculations'!AB105/1000000 -> 0 | AC177: ='Water + wastewater calculations'!AC105/1000000 -> 0 | AD177: ='Water + wastewater calculations'!AD105/1000000 -> 0 | AE177: ='Water + wastewater calculations'!AE105/1000000 -> 0 | AF177: ='Water + wastewater calculations'!AF105/1000000 -> 0 | AG177: ='Water + wastewater calculations'!AG105/1000000 -> 0 | AH177: ='Water + wastewater calculations'!AH105/1000000 -> 0 | AI177: ='Water + wastewater calculations'!AI105/1000000 -> 0 | AJ177: ='Water + wastewater calculations'!AJ105/1000000 -> 0 | AK177: ='Water + wastewater calculations'!AK105/1000000 -> 0 | AL177: ='Water + wastewater calculations'!AL105/1000000 -> 0 | AM177: ='Water + wastewater calculations'!AM105/1000000 -> 0 | AN177: ='Water + wastewater calculations'!AN105/1000000 -> 0 | AO177: ='Water + wastewater calculations'!AO105/1000000 -> 0 | AP177: ='Water + wastewater calculations'!AP105/1000000 -> 0
B178: Total water used | C178: ='Water + wastewater calculations'!C9/1000000 -> 0 | D178: ='Water + wastewater calculations'!D9/1000000 -> 0 | E178: ='Water + wastewater calculations'!E9/1000000 -> 0 | F178: ='Water + wastewater calculations'!F9/1000000 -> 0 | G178: ='Water + wastewater calculations'!G9/1000000 -> 0 | H178: ='Water + wastewater calculations'!H9/1000000 -> 0 | I178: ='Water + wastewater calculations'!I9/1000000 -> 0 | J178: ='Water + wastewater calculations'!J9/1000000 -> 0 | K178: ='Water + wastewater calculations'!K9/1000000 -> 0 | L178: ='Water + wastewater calculations'!L9/1000000 -> 0 | M178: ='Water + wastewater calculations'!M9/1000000 -> 0 | N178: ='Water + wastewater calculations'!N9/1000000 -> 0 | O178: ='Water + wastewater calculations'!O9/1000000 -> 0 | P178: ='Water + wastewater calculations'!P9/1000000 -> 0 | Q178: ='Water + wastewater calculations'!Q9/1000000 -> 0 | R178: ='Water + wastewater calculations'!R9/1000000 -> 0 | S178: ='Water + wastewater calculations'!S9/1000000 -> 0 | T178: ='Water + wastewater calculations'!T9/1000000 -> 0 | U178: ='Water + wastewater calculations'!U9/1000000 -> 0 | V178: ='Water + wastewater calculations'!V9/1000000 -> 0 | W178: ='Water + wastewater calculations'!W9/1000000 -> 0 | X178: ='Water + wastewater calculations'!X9/1000000 -> 0 | Y178: ='Water + wastewater calculations'!Y9/1000000 -> 0 | Z178: ='Water + wastewater calculations'!Z9/1000000 -> 0 | AA178: ='Water + wastewater calculations'!AA9/1000000 -> 0 | AB178: ='Water + wastewater calculations'!AB9/1000000 -> 0 | AC178: ='Water + wastewater calculations'!AC9/1000000 -> 0 | AD178: ='Water + wastewater calculations'!AD9/1000000 -> 0 | AE178: ='Water + wastewater calculations'!AE9/1000000 -> 0 | AF178: ='Water + wastewater calculations'!AF9/1000000 -> 0 | AG178: ='Water + wastewater calculations'!AG9/1000000 -> 0 | AH178: ='Water + wastewater calculations'!AH9/1000000 -> 0 | AI178: ='Water + wastewater calculations'!AI9/1000000 -> 0 | AJ178: ='Water + wastewater calculations'!AJ9/1000000 -> 0 | AK178: ='Water + wastewater calculations'!AK9/1000000 -> 0 | AL178: ='Water + wastewater calculations'!AL9/1000000 -> 0 | AM178: ='Water + wastewater calculations'!AM9/1000000 -> 0 | AN178: ='Water + wastewater calculations'!AN9/1000000 -> 0 | AO178: ='Water + wastewater calculations'!AO9/1000000 -> 0 | AP178: ='Water + wastewater calculations'!AP9/1000000 -> 0
B179: Liard
B180: Fresh water used | C180: ='Water + wastewater calculations'!C106/1000000 -> 0 | D180: ='Water + wastewater calculations'!D106/1000000 -> 0 | E180: ='Water + wastewater calculations'!E106/1000000 -> 0 | F180: ='Water + wastewater calculations'!F106/1000000 -> 0 | G180: ='Water + wastewater calculations'!G106/1000000 -> 0 | H180: ='Water + wastewater calculations'!H106/1000000 -> 0 | I180: ='Water + wastewater calculations'!I106/1000000 -> 0 | J180: ='Water + wastewater calculations'!J106/1000000 -> 0 | K180: ='Water + wastewater calculations'!K106/1000000 -> 0 | L180: ='Water + wastewater calculations'!L106/1000000 -> 0 | M180: ='Water + wastewater calculations'!M106/1000000 -> 0 | N180: ='Water + wastewater calculations'!N106/1000000 -> 0 | O180: ='Water + wastewater calculations'!O106/1000000 -> 0 | P180: ='Water + wastewater calculations'!P106/1000000 -> 0 | Q180: ='Water + wastewater calculations'!Q106/1000000 -> 0 | R180: ='Water + wastewater calculations'!R106/1000000 -> 0 | S180: ='Water + wastewater calculations'!S106/1000000 -> 0 | T180: ='Water + wastewater calculations'!T106/1000000 -> 0 | U180: ='Water + wastewater calculations'!U106/1000000 -> 0 | V180: ='Water + wastewater calculations'!V106/1000000 -> 0 | W180: ='Water + wastewater calculations'!W106/1000000 -> 0 | X180: ='Water + wastewater calculations'!X106/1000000 -> 0 | Y180: ='Water + wastewater calculations'!Y106/1000000 -> 0 | Z180: ='Water + wastewater calculations'!Z106/1000000 -> 0 | AA180: ='Water + wastewater calculations'!AA106/1000000 -> 0 | AB180: ='Water + wastewater calculations'!AB106/1000000 -> 0 | AC180: ='Water + wastewater calculations'!AC106/1000000 -> 0 | AD180: ='Water + wastewater calculations'!AD106/1000000 -> 0 | AE180: ='Water + wastewater calculations'!AE106/1000000 -> 0 | AF180: ='Water + wastewater calculations'!AF106/1000000 -> 0 | AG180: ='Water + wastewater calculations'!AG106/1000000 -> 0 | AH180: ='Water + wastewater calculations'!AH106/1000000 -> 0 | AI180: ='Water + wastewater calculations'!AI106/1000000 -> 0 | AJ180: ='Water + wastewater calculations'!AJ106/1000000 -> 0 | AK180: ='Water + wastewater calculations'!AK106/1000000 -> 0 | AL180: ='Water + wastewater calculations'!AL106/1000000 -> 0 | AM180: ='Water + wastewater calculations'!AM106/1000000 -> 0 | AN180: ='Water + wastewater calculations'!AN106/1000000 -> 0 | AO180: ='Water + wastewater calculations'!AO106/1000000 -> 0 | AP180: ='Water + wastewater calculations'!AP106/1000000 -> 0
B181: Total water used | C181: ='Water + wastewater calculations'!C10/1000000 -> 0 | D181: ='Water + wastewater calculations'!D10/1000000 -> 0 | E181: ='Water + wastewater calculations'!E10/1000000 -> 0 | F181: ='Water + wastewater calculations'!F10/1000000 -> 0 | G181: ='Water + wastewater calculations'!G10/1000000 -> 0 | H181: ='Water + wastewater calculations'!H10/1000000 -> 0 | I181: ='Water + wastewater calculations'!I10/1000000 -> 0 | J181: ='Water + wastewater calculations'!J10/1000000 -> 0 | K181: ='Water + wastewater calculations'!K10/1000000 -> 0 | L181: ='Water + wastewater calculations'!L10/1000000 -> 0 | M181: ='Water + wastewater calculations'!M10/1000000 -> 0 | N181: ='Water + wastewater calculations'!N10/1000000 -> 0 | O181: ='Water + wastewater calculations'!O10/1000000 -> 0 | P181: ='Water + wastewater calculations'!P10/1000000 -> 0 | Q181: ='Water + wastewater calculations'!Q10/1000000 -> 0 | R181: ='Water + wastewater calculations'!R10/1000000 -> 0 | S181: ='Water + wastewater calculations'!S10/1000000 -> 0 | T181: ='Water + wastewater calculations'!T10/1000000 -> 0 | U181: ='Water + wastewater calculations'!U10/1000000 -> 0 | V181: ='Water + wastewater calculations'!V10/1000000 -> 0 | W181: ='Water + wastewater calculations'!W10/1000000 -> 0 | X181: ='Water + wastewater calculations'!X10/1000000 -> 0 | Y181: ='Water + wastewater calculations'!Y10/1000000 -> 0 | Z181: ='Water + wastewater calculations'!Z10/1000000 -> 0 | AA181: ='Water + wastewater calculations'!AA10/1000000 -> 0 | AB181: ='Water + wastewater calculations'!AB10/1000000 -> 0 | AC181: ='Water + wastewater calculations'!AC10/1000000 -> 0 | AD181: ='Water + wastewater calculations'!AD10/1000000 -> 0 | AE181: ='Water + wastewater calculations'!AE10/1000000 -> 0 | AF181: ='Water + wastewater calculations'!AF10/1000000 -> 0 | AG181: ='Water + wastewater calculations'!AG10/1000000 -> 0 | AH181: ='Water + wastewater calculations'!AH10/1000000 -> 0 | AI181: ='Water + wastewater calculations'!AI10/1000000 -> 0 | AJ181: ='Water + wastewater calculations'!AJ10/1000000 -> 0 | AK181: ='Water + wastewater calculations'!AK10/1000000 -> 0 | AL181: ='Water + wastewater calculations'!AL10/1000000 -> 0 | AM181: ='Water + wastewater calculations'!AM10/1000000 -> 0 | AN181: ='Water + wastewater calculations'!AN10/1000000 -> 0 | AO181: ='Water + wastewater calculations'!AO10/1000000 -> 0 | AP181: ='Water + wastewater calculations'!AP10/1000000 -> 0
B205: Wastewater (million m3/year)
B206: Year | C206: 2011 | D206: 2012 | E206: 2013 | F206: 2014 | G206: 2015 | H206: 2016 | I206: 2017 | J206: 2018 | K206: 2019 | L206: 2020 | M206: 2021 | N206: 2022 | O206: 2023 | P206: 2024 | Q206: 2025 | R206: 2026 | S206: 2027 | T206: 2028 | U206: 2029 | V206: 2030 | W206: 2031 | X206: 2032 | Y206: 2033 | Z206: 2034 | AA206: 2035 | AB206: 2036 | AC206: 2037 | AD206: 2038 | AE206: 2039 | AF206: 2040 | AG206: 2041 | AH206: 2042 | AI206: 2043 | AJ206: 2044 | AK206: 2045 | AL206: 2046 | AM206: 2047 | AN206: 2048 | AO206: 2049 | AP206: 2050
B207: Wastewater
B208: Total wastewater produced | C208: ='Water + wastewater calculations'!C121/1000000 -> 1.400734882 | D208: ='Water + wastewater calculations'!D121/1000000 -> 1.443542218 | E208: ='Water + wastewater calculations'!E121/1000000 -> 1.964693873 | F208: ='Water + wastewater calculations'!F121/1000000 -> 2.274776939 | G208: ='Water + wastewater calculations'!G121/1000000 -> 2.303394668 | H208: ='Water + wastewater calculations'!H121/1000000 -> 2.297420842 | I208: ='Water + wastewater calculations'!I121/1000000 -> 1.918071649 | J208: ='Water + wastewater calculations'!J121/1000000 -> 1.831444632 | K208: ='Water + wastewater calculations'!K121/1000000 -> 1.77432967 | L208: ='Water + wastewater calculations'!L121/1000000 -> 1.736164661 | M208: ='Water + wastewater calculations'!M121/1000000 -> 1.884299496 | N208: ='Water + wastewater calculations'!N121/1000000 -> 1.961214745 | O208: ='Water + wastewater calculations'!O121/1000000 -> 2.029402668 | P208: ='Water + wastewater calculations'!P121/1000000 -> 2.09536921 | Q208: ='Water + wastewater calculations'!Q121/1000000 -> 2.160751606 | R208: ='Water + wastewater calculations'!R121/1000000 -> 2.167445559 | S208: ='Water + wastewater calculations'!S121/1000000 -> 2.209797536 | T208: ='Water + wastewater calculations'!T121/1000000 -> 2.253190251 | U208: ='Water + wastewater calculations'!U121/1000000 -> 2.307801089 | V208: ='Water + wastewater calculations'!V121/1000000 -> 2.368070046 | W208: ='Water + wastewater calculations'!W121/1000000 -> 2.235350046 | X208: ='Water + wastewater calculations'!X121/1000000 -> 2.175658552 | Y208: ='Water + wastewater calculations'!Y121/1000000 -> 2.144763811 | Z208: ='Water + wastewater calculations'!Z121/1000000 -> 2.119981584 | AA208: ='Water + wastewater calculations'!AA121/1000000 -> 2.100232302 | AB208: ='Water + wastewater calculations'!AB121/1000000 -> 2.091370841 | AC208: ='Water + wastewater calculations'!AC121/1000000 -> 2.077922826 | AD208: ='Water + wastewater calculations'!AD121/1000000 -> 2.076863418 | AE208: ='Water + wastewater calculations'!AE121/1000000 -> 2.074069319 | AF208: ='Water + wastewater calculations'!AF121/1000000 -> 2.074547374 | AG208: ='Water + wastewater calculations'!AG121/1000000 -> 2.10238127 | AH208: ='Water + wastewater calculations'!AH121/1000000 -> 2.116613272 | AI208: ='Water + wastewater calculations'!AI121/1000000 -> 2.143825755 | AJ208: ='Water + wastewater calculations'!AJ121/1000000 -> 2.168471413 | AK208: ='Water + wastewater calculations'!AK121/1000000 -> 2.18411581 | AL208: ='Water + wastewater calculations'!AL121/1000000 -> 2.221705803 | AM208: ='Water + wastewater calculations'!AM121/1000000 -> 2.211463331 | AN208: ='Water + wastewater calculations'!AN121/1000000 -> 2.211248142 | AO208: ='Water + wastewater calculations'!AO121/1000000 -> 2.211421558 | AP208: ='Water + wastewater calculations'!AP121/1000000 -> 2.211737307
B209: Wastewater treated | C209: ='Water + wastewater calculations'!C131/1000000 -> 0 | D209: ='Water + wastewater calculations'!D131/1000000 -> 0 | E209: ='Water + wastewater calculations'!E131/1000000 -> 0 | F209: ='Water + wastewater calculations'!F131/1000000 -> 0 | G209: ='Water + wastewater calculations'!G131/1000000 -> 0 | H209: ='Water + wastewater calculations'!H131/1000000 -> 0 | I209: ='Water + wastewater calculations'!I131/1000000 -> 0 | J209: ='Water + wastewater calculations'!J131/1000000 -> 0 | K209: ='Water + wastewater calculations'!K131/1000000 -> 0 | L209: ='Water + wastewater calculations'!L131/1000000 -> 0 | M209: ='Water + wastewater calculations'!M131/1000000 -> 0 | N209: ='Water + wastewater calculations'!N131/1000000 -> 0 | O209: ='Water + wastewater calculations'!O131/1000000 -> 0 | P209: ='Water + wastewater calculations'!P131/1000000 -> 0 | Q209: ='Water + wastewater calculations'!Q131/1000000 -> 0 | R209: ='Water + wastewater calculations'!R131/1000000 -> 0 | S209: ='Water + wastewater calculations'!S131/1000000 -> 0 | T209: ='Water + wastewater calculations'!T131/1000000 -> 0 | U209: ='Water + wastewater calculations'!U131/1000000 -> 0 | V209: ='Water + wastewater calculations'!V131/1000000 -> 0 | W209: ='Water + wastewater calculations'!W131/1000000 -> 0 | X209: ='Water + wastewater calculations'!X131/1000000 -> 0 | Y209: ='Water + wastewater calculations'!Y131/1000000 -> 0 | Z209: ='Water + wastewater calculations'!Z131/1000000 -> 0 | AA209: ='Water + wastewater calculations'!AA131/1000000 -> 0 | AB209: ='Water + wastewater calculations'!AB131/1000000 -> 0 | AC209: ='Water + wastewater calculations'!AC131/1000000 -> 0 | AD209: ='Water + wastewater calculations'!AD131/1000000 -> 0 | AE209: ='Water + wastewater calculations'!AE131/1000000 -> 0 | AF209: ='Water + wastewater calculations'!AF131/1000000 -> 0 | AG209: ='Water + wastewater calculations'!AG131/1000000 -> 0 | AH209: ='Water + wastewater calculations'!AH131/1000000 -> 0 | AI209: ='Water + wastewater calculations'!AI131/1000000 -> 0 | AJ209: ='Water + wastewater calculations'!AJ131/1000000 -> 0 | AK209: ='Water + wastewater calculations'!AK131/1000000 -> 0 | AL209: ='Water + wastewater calculations'!AL131/1000000 -> 0 | AM209: ='Water + wastewater calculations'!AM131/1000000 -> 0 | AN209: ='Water + wastewater calculations'!AN131/1000000 -> 0 | AO209: ='Water + wastewater calculations'!AO131/1000000 -> 0 | AP209: ='Water + wastewater calculations'!AP131/1000000 -> 0
B210: Wastewater to be disposed | C210: ='Water + wastewater calculations'!C140/1000000 -> 1.400734882 | D210: ='Water + wastewater calculations'!D140/1000000 -> 1.443542218 | E210: ='Water + wastewater calculations'!E140/1000000 -> 1.964693873 | F210: ='Water + wastewater calculations'!F140/1000000 -> 2.274776939 | G210: ='Water + wastewater calculations'!G140/1000000 -> 2.303394668 | H210: ='Water + wastewater calculations'!H140/1000000 -> 2.297420842 | I210: ='Water + wastewater calculations'!I140/1000000 -> 1.918071649 | J210: ='Water + wastewater calculations'!J140/1000000 -> 1.831444632 | K210: ='Water + wastewater calculations'!K140/1000000 -> 1.77432967 | L210: ='Water + wastewater calculations'!L140/1000000 -> 1.736164661 | M210: ='Water + wastewater calculations'!M140/1000000 -> 1.884299496 | N210: ='Water + wastewater calculations'!N140/1000000 -> 1.961214745 | O210: ='Water + wastewater calculations'!O140/1000000 -> 2.029402668 | P210: ='Water + wastewater calculations'!P140/1000000 -> 2.09536921 | Q210: ='Water + wastewater calculations'!Q140/1000000 -> 2.160751606 | R210: ='Water + wastewater calculations'!R140/1000000 -> 2.167445559 | S210: ='Water + wastewater calculations'!S140/1000000 -> 2.209797536 | T210: ='Water + wastewater calculations'!T140/1000000 -> 2.253190251 | U210: ='Water + wastewater calculations'!U140/1000000 -> 2.307801089 | V210: ='Water + wastewater calculations'!V140/1000000 -> 2.368070046 | W210: ='Water + wastewater calculations'!W140/1000000 -> 2.235350046 | X210: ='Water + wastewater calculations'!X140/1000000 -> 2.175658552 | Y210: ='Water + wastewater calculations'!Y140/1000000 -> 2.144763811 | Z210: ='Water + wastewater calculations'!Z140/1000000 -> 2.119981584 | AA210: ='Water + wastewater calculations'!AA140/1000000 -> 2.100232302 | AB210: ='Water + wastewater calculations'!AB140/1000000 -> 2.091370841 | AC210: ='Water + wastewater calculations'!AC140/1000000 -> 2.077922826 | AD210: ='Water + wastewater calculations'!AD140/1000000 -> 2.076863418 | AE210: ='Water + wastewater calculations'!AE140/1000000 -> 2.074069319 | AF210: ='Water + wastewater calculations'!AF140/1000000 -> 2.074547374 | AG210: ='Water + wastewater calculations'!AG140/1000000 -> 2.10238127 | AH210: ='Water + wastewater calculations'!AH140/1000000 -> 2.116613272 | AI210: ='Water + wastewater calculations'!AI140/1000000 -> 2.143825755 | AJ210: ='Water + wastewater calculations'!AJ140/1000000 -> 2.168471413 | AK210: ='Water + wastewater calculations'!AK140/1000000 -> 2.18411581 | AL210: ='Water + wastewater calculations'!AL140/1000000 -> 2.221705803 | AM210: ='Water + wastewater calculations'!AM140/1000000 -> 2.211463331 | AN210: ='Water + wastewater calculations'!AN140/1000000 -> 2.211248142 | AO210: ='Water + wastewater calculations'!AO140/1000000 -> 2.211421558 | AP210: ='Water + wastewater calculations'!AP140/1000000 -> 2.211737307
B212: Wastewater by Basin
B213: Conventional
B214: Total wastewater produced | C214: ='Water + wastewater calculations'!C115/1000000 -> 0.06775953166 | D214: ='Water + wastewater calculations'!D115/1000000 -> 0.02699141301 | E214: ='Water + wastewater calculations'!E115/1000000 -> 0.03361117692 | F214: ='Water + wastewater calculations'!F115/1000000 -> 0.0221042336 | G214: ='Water + wastewater calculations'!G115/1000000 -> 0.0005938112533 | H214: ='Water + wastewater calculations'!H115/1000000 -> 0 | I214: ='Water + wastewater calculations'!I115/1000000 -> 0.005536653644 | J214: ='Water + wastewater calculations'!J115/1000000 -> 0.009700627584 | K214: ='Water + wastewater calculations'!K115/1000000 -> 0.01194128168 | L214: ='Water + wastewater calculations'!L115/1000000 -> 0.01366967505 | M214: ='Water + wastewater calculations'!M115/1000000 -> 0.009983329447 | N214: ='Water + wastewater calculations'!N115/1000000 -> 0.008366505872 | O214: ='Water + wastewater calculations'!O115/1000000 -> 0.007346246789 | P214: ='Water + wastewater calculations'!P115/1000000 -> 0.005851520351 | Q214: ='Water + wastewater calculations'!Q115/1000000 -> 0.003979170767 | R214: ='Water + wastewater calculations'!R115/1000000 -> 0.008295416944 | S214: ='Water + wastewater calculations'!S115/1000000 -> 0.009531789839 | T214: ='Water + wastewater calculations'!T115/1000000 -> 0.008325384088 | U214: ='Water + wastewater calculations'!U115/1000000 -> 0.009069231883 | V214: ='Water + wastewater calculations'!V115/1000000 -> 0.008936062654 | W214: ='Water + wastewater calculations'!W115/1000000 -> 0.01368344995 | X214: ='Water + wastewater calculations'!X115/1000000 -> 0.01270629541 | Y214: ='Water + wastewater calculations'!Y115/1000000 -> 0.01376401918 | Z214: ='Water + wastewater calculations'!Z115/1000000 -> 0.0144040093 | AA214: ='Water + wastewater calculations'!AA115/1000000 -> 0.01560101619 | AB214: ='Water + wastewater calculations'!AB115/1000000 -> 0.01734632967 | AC214: ='Water + wastewater calculations'!AC115/1000000 -> 0.01587984319 | AD214: ='Water + wastewater calculations'!AD115/1000000 -> 0.01614487652 | AE214: ='Water + wastewater calculations'!AE115/1000000 -> 0.01558617431 | AF214: ='Water + wastewater calculations'!AF115/1000000 -> 0.01413033806 | AG214: ='Water + wastewater calculations'!AG115/1000000 -> 0.01261715778 | AH214: ='Water + wastewater calculations'!AH115/1000000 -> 0.01300156934 | AI214: ='Water + wastewater calculations'!AI115/1000000 -> 0.01310155487 | AJ214: ='Water + wastewater calculations'!AJ115/1000000 -> 0.01317204696 | AK214: ='Water + wastewater calculations'!AK115/1000000 -> 0.01325418239 | AL214: ='Water + wastewater calculations'!AL115/1000000 -> 0.01303665025 | AM214: ='Water + wastewater calculations'!AM115/1000000 -> 0.01283133058 | AN214: ='Water + wastewater calculations'!AN115/1000000 -> 0.01265595898 | AO214: ='Water + wastewater calculations'!AO115/1000000 -> 0.01244265122 | AP214: ='Water + wastewater calculations'!AP115/1000000 -> 0.01218537699
B215: Wastewater treated | C215: ='Water + wastewater calculations'!C125/1000000 -> 0 | D215: ='Water + wastewater calculations'!D125/1000000 -> 0 | E215: ='Water + wastewater calculations'!E125/1000000 -> 0 | F215: ='Water + wastewater calculations'!F125/1000000 -> 0 | G215: ='Water + wastewater calculations'!G125/1000000 -> 0 | H215: ='Water + wastewater calculations'!H125/1000000 -> 0 | I215: ='Water + wastewater calculations'!I125/1000000 -> 0 | J215: ='Water + wastewater calculations'!J125/1000000 -> 0 | K215: ='Water + wastewater calculations'!K125/1000000 -> 0 | L215: ='Water + wastewater calculations'!L125/1000000 -> 0 | M215: ='Water + wastewater calculations'!M125/1000000 -> 0 | N215: ='Water + wastewater calculations'!N125/1000000 -> 0 | O215: ='Water + wastewater calculations'!O125/1000000 -> 0 | P215: ='Water + wastewater calculations'!P125/1000000 -> 0 | Q215: ='Water + wastewater calculations'!Q125/1000000 -> 0 | R215: ='Water + wastewater calculations'!R125/1000000 -> 0 | S215: ='Water + wastewater calculations'!S125/1000000 -> 0 | T215: ='Water + wastewater calculations'!T125/1000000 -> 0 | U215: ='Water + wastewater calculations'!U125/1000000 -> 0 | V215: ='Water + wastewater calculations'!V125/1000000 -> 0 | W215: ='Water + wastewater calculations'!W125/1000000 -> 0 | X215: ='Water + wastewater calculations'!X125/1000000 -> 0 | Y215: ='Water + wastewater calculations'!Y125/1000000 -> 0 | Z215: ='Water + wastewater calculations'!Z125/1000000 -> 0 | AA215: ='Water + wastewater calculations'!AA125/1000000 -> 0 | AB215: ='Water + wastewater calculations'!AB125/1000000 -> 0 | AC215: ='Water + wastewater calculations'!AC125/1000000 -> 0 | AD215: ='Water + wastewater calculations'!AD125/1000000 -> 0 | AE215: ='Water + wastewater calculations'!AE125/1000000 -> 0 | AF215: ='Water + wastewater calculations'!AF125/1000000 -> 0 | AG215: ='Water + wastewater calculations'!AG125/1000000 -> 0 | AH215: ='Water + wastewater calculations'!AH125/1000000 -> 0 | AI215: ='Water + wastewater calculations'!AI125/1000000 -> 0 | AJ215: ='Water + wastewater calculations'!AJ125/1000000 -> 0 | AK215: ='Water + wastewater calculations'!AK125/1000000 -> 0 | AL215: ='Water + wastewater calculations'!AL125/1000000 -> 0 | AM215: ='Water + wastewater calculations'!AM125/1000000 -> 0 | AN215: ='Water + wastewater calculations'!AN125/1000000 -> 0 | AO215: ='Water + wastewater calculations'!AO125/1000000 -> 0 | AP215: ='Water + wastewater calculations'!AP125/1000000 -> 0
B216: Wastewater to be disposed | C216: ='Water + wastewater calculations'!C134/1000000 -> 0.06775953166 | D216: ='Water + wastewater calculations'!D134/1000000 -> 0.02699141301 | E216: ='Water + wastewater calculations'!E134/1000000 -> 0.03361117692 | F216: ='Water + wastewater calculations'!F134/1000000 -> 0.0221042336 | G216: ='Water + wastewater calculations'!G134/1000000 -> 0.0005938112533 | H216: ='Water + wastewater calculations'!H134/1000000 -> 0 | I216: ='Water + wastewater calculations'!I134/1000000 -> 0.005536653644 | J216: ='Water + wastewater calculations'!J134/1000000 -> 0.009700627584 | K216: ='Water + wastewater calculations'!K134/1000000 -> 0.01194128168 | L216: ='Water + wastewater calculations'!L134/1000000 -> 0.01366967505 | M216: ='Water + wastewater calculations'!M134/1000000 -> 0.009983329447 | N216: ='Water + wastewater calculations'!N134/1000000 -> 0.008366505872 | O216: ='Water + wastewater calculations'!O134/1000000 -> 0.007346246789 | P216: ='Water + wastewater calculations'!P134/1000000 -> 0.005851520351 | Q216: ='Water + wastewater calculations'!Q134/1000000 -> 0.003979170767 | R216: ='Water + wastewater calculations'!R134/1000000 -> 0.008295416944 | S216: ='Water + wastewater calculations'!S134/1000000 -> 0.009531789839 | T216: ='Water + wastewater calculations'!T134/1000000 -> 0.008325384088 | U216: ='Water + wastewater calculations'!U134/1000000 -> 0.009069231883 | V216: ='Water + wastewater calculations'!V134/1000000 -> 0.008936062654 | W216: ='Water + wastewater calculations'!W134/1000000 -> 0.01368344995 | X216: ='Water + wastewater calculations'!X134/1000000 -> 0.01270629541 | Y216: ='Water + wastewater calculations'!Y134/1000000 -> 0.01376401918 | Z216: ='Water + wastewater calculations'!Z134/1000000 -> 0.0144040093 | AA216: ='Water + wastewater calculations'!AA134/1000000 -> 0.01560101619 | AB216: ='Water + wastewater calculations'!AB134/1000000 -> 0.01734632967 | AC216: ='Water + wastewater calculations'!AC134/1000000 -> 0.01587984319 | AD216: ='Water + wastewater calculations'!AD134/1000000 -> 0.01614487652 | AE216: ='Water + wastewater calculations'!AE134/1000000 -> 0.01558617431 | AF216: ='Water + wastewater calculations'!AF134/1000000 -> 0.01413033806 | AG216: ='Water + wastewater calculations'!AG134/1000000 -> 0.01261715778 | AH216: ='Water + wastewater calculations'!AH134/1000000 -> 0.01300156934 | AI216: ='Water + wastewater calculations'!AI134/1000000 -> 0.01310155487 | AJ216: ='Water + wastewater calculations'!AJ134/1000000 -> 0.01317204696 | AK216: ='Water + wastewater calculations'!AK134/1000000 -> 0.01325418239 | AL216: ='Water + wastewater calculations'!AL134/1000000 -> 0.01303665025 | AM216: ='Water + wastewater calculations'!AM134/1000000 -> 0.01283133058 | AN216: ='Water + wastewater calculations'!AN134/1000000 -> 0.01265595898 | AO216: ='Water + wastewater calculations'!AO134/1000000 -> 0.01244265122 | AP216: ='Water + wastewater calculations'!AP134/1000000 -> 0.01218537699
B217: Montney
B218: Total wastewater produced | C218: ='Water + wastewater calculations'!C116/1000000 -> 0.7671681863 | D218: ='Water + wastewater calculations'!D116/1000000 -> 0.7943403367 | E218: ='Water + wastewater calculations'!E116/1000000 -> 1.088673645 | F218: ='Water + wastewater calculations'!F116/1000000 -> 1.255149028 | G218: ='Water + wastewater calculations'!G116/1000000 -> 1.256160035 | H218: ='Water + wastewater calculations'!H116/1000000 -> 1.629247099 | I218: ='Water + wastewater calculations'!I116/1000000 -> 1.210238732 | J218: ='Water + wastewater calculations'!J116/1000000 -> 1.130655967 | K218: ='Water + wastewater calculations'!K116/1000000 -> 1.083217792 | L218: ='Water + wastewater calculations'!L116/1000000 -> 1.052410701 | M218: ='Water + wastewater calculations'!M116/1000000 -> 1.024090816 | N218: ='Water + wastewater calculations'!N116/1000000 -> 1.008859825 | O218: ='Water + wastewater calculations'!O116/1000000 -> 0.9973115144 | P218: ='Water + wastewater calculations'!P116/1000000 -> 0.9883559508 | Q218: ='Water + wastewater calculations'!Q116/1000000 -> 0.9821736504 | R218: ='Water + wastewater calculations'!R116/1000000 -> 0.9093250944 | S218: ='Water + wastewater calculations'!S116/1000000 -> 0.8759550316 | T218: ='Water + wastewater calculations'!T116/1000000 -> 0.8494550792 | U218: ='Water + wastewater calculations'!U116/1000000 -> 0.8289775465 | V218: ='Water + wastewater calculations'!V116/1000000 -> 0.8174283871 | W218: ='Water + wastewater calculations'!W116/1000000 -> 0.8010476566 | X218: ='Water + wastewater calculations'!X116/1000000 -> 0.7835597005 | Y218: ='Water + wastewater calculations'!Y116/1000000 -> 0.7705735595 | Z218: ='Water + wastewater calculations'!Z116/1000000 -> 0.7588477105 | AA218: ='Water + wastewater calculations'!AA116/1000000 -> 0.7476090971 | AB218: ='Water + wastewater calculations'!AB116/1000000 -> 0.7444976589 | AC218: ='Water + wastewater calculations'!AC116/1000000 -> 0.7354787469 | AD218: ='Water + wastewater calculations'!AD116/1000000 -> 0.7336946821 | AE218: ='Water + wastewater calculations'!AE116/1000000 -> 0.7311328899 | AF218: ='Water + wastewater calculations'!AF116/1000000 -> 0.7315184878 | AG218: ='Water + wastewater calculations'!AG116/1000000 -> 0.7580321068 | AH218: ='Water + wastewater calculations'!AH116/1000000 -> 0.7690784359 | AI218: ='Water + wastewater calculations'!AI116/1000000 -> 0.7942505316 | AJ218: ='Water + wastewater calculations'!AJ116/1000000 -> 0.8171245923 | AK218: ='Water + wastewater calculations'!AK116/1000000 -> 0.8308656619 | AL218: ='Water + wastewater calculations'!AL116/1000000 -> 0.866662683 | AM218: ='Water + wastewater calculations'!AM116/1000000 -> 0.8584881274 | AN218: ='Water + wastewater calculations'!AN116/1000000 -> 0.8589480671 | AO218: ='Water + wastewater calculations'!AO116/1000000 -> 0.8597140576 | AP218: ='Water + wastewater calculations'!AP116/1000000 -> 0.8605992151
B219: Wastewater treated | C219: ='Water + wastewater calculations'!C126/1000000 -> 0 | D219: ='Water + wastewater calculations'!D126/1000000 -> 0 | E219: ='Water + wastewater calculations'!E126/1000000 -> 0 | F219: ='Water + wastewater calculations'!F126/1000000 -> 0 | G219: ='Water + wastewater calculations'!G126/1000000 -> 0 | H219: ='Water + wastewater calculations'!H126/1000000 -> 0 | I219: ='Water + wastewater calculations'!I126/1000000 -> 0 | J219: ='Water + wastewater calculations'!J126/1000000 -> 0 | K219: ='Water + wastewater calculations'!K126/1000000 -> 0 | L219: ='Water + wastewater calculations'!L126/1000000 -> 0 | M219: ='Water + wastewater calculations'!M126/1000000 -> 0 | N219: ='Water + wastewater calculations'!N126/1000000 -> 0 | O219: ='Water + wastewater calculations'!O126/1000000 -> 0 | P219: ='Water + wastewater calculations'!P126/1000000 -> 0 | Q219: ='Water + wastewater calculations'!Q126/1000000 -> 0 | R219: ='Water + wastewater calculations'!R126/1000000 -> 0 | S219: ='Water + wastewater calculations'!S126/1000000 -> 0 | T219: ='Water + wastewater calculations'!T126/1000000 -> 0 | U219: ='Water + wastewater calculations'!U126/1000000 -> 0 | V219: ='Water + wastewater calculations'!V126/1000000 -> 0 | W219: ='Water + wastewater calculations'!W126/1000000 -> 0 | X219: ='Water + wastewater calculations'!X126/1000000 -> 0 | Y219: ='Water + wastewater calculations'!Y126/1000000 -> 0 | Z219: ='Water + wastewater calculations'!Z126/1000000 -> 0 | AA219: ='Water + wastewater calculations'!AA126/1000000 -> 0 | AB219: ='Water + wastewater calculations'!AB126/1000000 -> 0 | AC219: ='Water + wastewater calculations'!AC126/1000000 -> 0 | AD219: ='Water + wastewater calculations'!AD126/1000000 -> 0 | AE219: ='Water + wastewater calculations'!AE126/1000000 -> 0 | AF219: ='Water + wastewater calculations'!AF126/1000000 -> 0 | AG219: ='Water + wastewater calculations'!AG126/1000000 -> 0 | AH219: ='Water + wastewater calculations'!AH126/1000000 -> 0 | AI219: ='Water + wastewater calculations'!AI126/1000000 -> 0 | AJ219: ='Water + wastewater calculations'!AJ126/1000000 -> 0 | AK219: ='Water + wastewater calculations'!AK126/1000000 -> 0 | AL219: ='Water + wastewater calculations'!AL126/1000000 -> 0 | AM219: ='Water + wastewater calculations'!AM126/1000000 -> 0 | AN219: ='Water + wastewater calculations'!AN126/1000000 -> 0 | AO219: ='Water + wastewater calculations'!AO126/1000000 -> 0 | AP219: ='Water + wastewater calculations'!AP126/1000000 -> 0
B220: Wastewater to be disposed | C220: ='Water + wastewater calculations'!C135/1000000 -> 0.7671681863 | D220: ='Water + wastewater calculations'!D135/1000000 -> 0.7943403367 | E220: ='Water + wastewater calculations'!E135/1000000 -> 1.088673645 | F220: ='Water + wastewater calculations'!F135/1000000 -> 1.255149028 | G220: ='Water + wastewater calculations'!G135/1000000 -> 1.256160035 | H220: ='Water + wastewater calculations'!H135/1000000 -> 1.629247099 | I220: ='Water + wastewater calculations'!I135/1000000 -> 1.210238732 | J220: ='Water + wastewater calculations'!J135/1000000 -> 1.130655967 | K220: ='Water + wastewater calculations'!K135/1000000 -> 1.083217792 | L220: ='Water + wastewater calculations'!L135/1000000 -> 1.052410701 | M220: ='Water + wastewater calculations'!M135/1000000 -> 1.024090816 | N220: ='Water + wastewater calculations'!N135/1000000 -> 1.008859825 | O220: ='Water + wastewater calculations'!O135/1000000 -> 0.9973115144 | P220: ='Water + wastewater calculations'!P135/1000000 -> 0.9883559508 | Q220: ='Water + wastewater calculations'!Q135/1000000 -> 0.9821736504 | R220: ='Water + wastewater calculations'!R135/1000000 -> 0.9093250944 | S220: ='Water + wastewater calculations'!S135/1000000 -> 0.8759550316 | T220: ='Water + wastewater calculations'!T135/1000000 -> 0.8494550792 | U220: ='Water + wastewater calculations'!U135/1000000 -> 0.8289775465 | V220: ='Water + wastewater calculations'!V135/1000000 -> 0.8174283871 | W220: ='Water + wastewater calculations'!W135/1000000 -> 0.8010476566 | X220: ='Water + wastewater calculations'!X135/1000000 -> 0.7835597005 | Y220: ='Water + wastewater calculations'!Y135/1000000 -> 0.7705735595 | Z220: ='Water + wastewater calculations'!Z135/1000000 -> 0.7588477105 | AA220: ='Water + wastewater calculations'!AA135/1000000 -> 0.7476090971 | AB220: ='Water + wastewater calculations'!AB135/1000000 -> 0.7444976589 | AC220: ='Water + wastewater calculations'!AC135/1000000 -> 0.7354787469 | AD220: ='Water + wastewater calculations'!AD135/1000000 -> 0.7336946821 | AE220: ='Water + wastewater calculations'!AE135/1000000 -> 0.7311328899 | AF220: ='Water + wastewater calculations'!AF135/1000000 -> 0.7315184878 | AG220: ='Water + wastewater calculations'!AG135/1000000 -> 0.7580321068 | AH220: ='Water + wastewater calculations'!AH135/1000000 -> 0.7690784359 | AI220: ='Water + wastewater calculations'!AI135/1000000 -> 0.7942505316 | AJ220: ='Water + wastewater calculations'!AJ135/1000000 -> 0.8171245923 | AK220: ='Water + wastewater calculations'!AK135/1000000 -> 0.8308656619 | AL220: ='Water + wastewater calculations'!AL135/1000000 -> 0.866662683 | AM220: ='Water + wastewater calculations'!AM135/1000000 -> 0.8584881274 | AN220: ='Water + wastewater calculations'!AN135/1000000 -> 0.8589480671 | AO220: ='Water + wastewater calculations'!AO135/1000000 -> 0.8597140576 | AP220: ='Water + wastewater calculations'!AP135/1000000 -> 0.8605992151
B221: Horn River
B222: Total wastewater produced | C222: ='Water + wastewater calculations'!C117/1000000 -> 0.5658071639 | D222: ='Water + wastewater calculations'!D117/1000000 -> 0.6222104684 | E222: ='Water + wastewater calculations'!E117/1000000 -> 0.8424090506 | F222: ='Water + wastewater calculations'!F117/1000000 -> 0.997523677 | G222: ='Water + wastewater calculations'!G117/1000000 -> 1.046640821 | H222: ='Water + wastewater calculations'!H117/1000000 -> 0.6681737434 | I222: ='Water + wastewater calculations'!I117/1000000 -> 0.7022962635 | J222: ='Water + wastewater calculations'!J117/1000000 -> 0.691088038 | K222: ='Water + wastewater calculations'!K117/1000000 -> 0.6791705965 | L222: ='Water + wastewater calculations'!L117/1000000 -> 0.6700842847 | M222: ='Water + wastewater calculations'!M117/1000000 -> 0.8502253509 | N222: ='Water + wastewater calculations'!N117/1000000 -> 0.9439884134 | O222: ='Water + wastewater calculations'!O117/1000000 -> 1.024744907 | P222: ='Water + wastewater calculations'!P117/1000000 -> 1.101161739 | Q222: ='Water + wastewater calculations'!Q117/1000000 -> 1.174598785 | R222: ='Water + wastewater calculations'!R117/1000000 -> 1.249825048 | S222: ='Water + wastewater calculations'!S117/1000000 -> 1.324310714 | T222: ='Water + wastewater calculations'!T117/1000000 -> 1.395409788 | U222: ='Water + wastewater calculations'!U117/1000000 -> 1.469754311 | V222: ='Water + wastewater calculations'!V117/1000000 -> 1.541705596 | W222: ='Water + wastewater calculations'!W117/1000000 -> 1.42061894 | X222: ='Water + wastewater calculations'!X117/1000000 -> 1.379392556 | Y222: ='Water + wastewater calculations'!Y117/1000000 -> 1.360426232 | Z222: ='Water + wastewater calculations'!Z117/1000000 -> 1.346729864 | AA222: ='Water + wastewater calculations'!AA117/1000000 -> 1.337022188 | AB222: ='Water + wastewater calculations'!AB117/1000000 -> 1.329526853 | AC222: ='Water + wastewater calculations'!AC117/1000000 -> 1.326564236 | AD222: ='Water + wastewater calculations'!AD117/1000000 -> 1.327023859 | AE222: ='Water + wastewater calculations'!AE117/1000000 -> 1.327350255 | AF222: ='Water + wastewater calculations'!AF117/1000000 -> 1.328898548 | AG222: ='Water + wastewater calculations'!AG117/1000000 -> 1.331732006 | AH222: ='Water + wastewater calculations'!AH117/1000000 -> 1.334533267 | AI222: ='Water + wastewater calculations'!AI117/1000000 -> 1.336473669 | AJ222: ='Water + wastewater calculations'!AJ117/1000000 -> 1.338174774 | AK222: ='Water + wastewater calculations'!AK117/1000000 -> 1.339995966 | AL222: ='Water + wastewater calculations'!AL117/1000000 -> 1.342006469 | AM222: ='Water + wastewater calculations'!AM117/1000000 -> 1.340143873 | AN222: ='Water + wastewater calculations'!AN117/1000000 -> 1.339644116 | AO222: ='Water + wastewater calculations'!AO117/1000000 -> 1.339264849 | AP222: ='Water + wastewater calculations'!AP117/1000000 -> 1.338952715
B223: Wastewater treated | C223: ='Water + wastewater calculations'!C127/1000000 -> 0 | D223: ='Water + wastewater calculations'!D127/1000000 -> 0 | E223: ='Water + wastewater calculations'!E127/1000000 -> 0 | F223: ='Water + wastewater calculations'!F127/1000000 -> 0 | G223: ='Water + wastewater calculations'!G127/1000000 -> 0 | H223: ='Water + wastewater calculations'!H127/1000000 -> 0 | I223: ='Water + wastewater calculations'!I127/1000000 -> 0 | J223: ='Water + wastewater calculations'!J127/1000000 -> 0 | K223: ='Water + wastewater calculations'!K127/1000000 -> 0 | L223: ='Water + wastewater calculations'!L127/1000000 -> 0 | M223: ='Water + wastewater calculations'!M127/1000000 -> 0 | N223: ='Water + wastewater calculations'!N127/1000000 -> 0 | O223: ='Water + wastewater calculations'!O127/1000000 -> 0 | P223: ='Water + wastewater calculations'!P127/1000000 -> 0 | Q223: ='Water + wastewater calculations'!Q127/1000000 -> 0 | R223: ='Water + wastewater calculations'!R127/1000000 -> 0 | S223: ='Water + wastewater calculations'!S127/1000000 -> 0 | T223: ='Water + wastewater calculations'!T127/1000000 -> 0 | U223: ='Water + wastewater calculations'!U127/1000000 -> 0 | V223: ='Water + wastewater calculations'!V127/1000000 -> 0 | W223: ='Water + wastewater calculations'!W127/1000000 -> 0 | X223: ='Water + wastewater calculations'!X127/1000000 -> 0 | Y223: ='Water + wastewater calculations'!Y127/1000000 -> 0 | Z223: ='Water + wastewater calculations'!Z127/1000000 -> 0 | AA223: ='Water + wastewater calculations'!AA127/1000000 -> 0 | AB223: ='Water + wastewater calculations'!AB127/1000000 -> 0 | AC223: ='Water + wastewater calculations'!AC127/1000000 -> 0 | AD223: ='Water + wastewater calculations'!AD127/1000000 -> 0 | AE223: ='Water + wastewater calculations'!AE127/1000000 -> 0 | AF223: ='Water + wastewater calculations'!AF127/1000000 -> 0 | AG223: ='Water + wastewater calculations'!AG127/1000000 -> 0 | AH223: ='Water + wastewater calculations'!AH127/1000000 -> 0 | AI223: ='Water + wastewater calculations'!AI127/1000000 -> 0 | AJ223: ='Water + wastewater calculations'!AJ127/1000000 -> 0 | AK223: ='Water + wastewater calculations'!AK127/1000000 -> 0 | AL223: ='Water + wastewater calculations'!AL127/1000000 -> 0 | AM223: ='Water + wastewater calculations'!AM127/1000000 -> 0 | AN223: ='Water + wastewater calculations'!AN127/1000000 -> 0 | AO223: ='Water + wastewater calculations'!AO127/1000000 -> 0 | AP223: ='Water + wastewater calculations'!AP127/1000000 -> 0
B224: Wastewater to be disposed | C224: ='Water + wastewater calculations'!C136/1000000 -> 0.5658071639 | D224: ='Water + wastewater calculations'!D136/1000000 -> 0.6222104684 | E224: ='Water + wastewater calculations'!E136/1000000 -> 0.8424090506 | F224: ='Water + wastewater calculations'!F136/1000000 -> 0.997523677 | G224: ='Water + wastewater calculations'!G136/1000000 -> 1.046640821 | H224: ='Water + wastewater calculations'!H136/1000000 -> 0.6681737434 | I224: ='Water + wastewater calculations'!I136/1000000 -> 0.7022962635 | J224: ='Water + wastewater calculations'!J136/1000000 -> 0.691088038 | K224: ='Water + wastewater calculations'!K136/1000000 -> 0.6791705965 | L224: ='Water + wastewater calculations'!L136/1000000 -> 0.6700842847 | M224: ='Water + wastewater calculations'!M136/1000000 -> 0.8502253509 | N224: ='Water + wastewater calculations'!N136/1000000 -> 0.9439884134 | O224: ='Water + wastewater calculations'!O136/1000000 -> 1.024744907 | P224: ='Water + wastewater calculations'!P136/1000000 -> 1.101161739 | Q224: ='Water + wastewater calculations'!Q136/1000000 -> 1.174598785 | R224: ='Water + wastewater calculations'!R136/1000000 -> 1.249825048 | S224: ='Water + wastewater calculations'!S136/1000000 -> 1.324310714 | T224: ='Water + wastewater calculations'!T136/1000000 -> 1.395409788 | U224: ='Water + wastewater calculations'!U136/1000000 -> 1.469754311 | V224: ='Water + wastewater calculations'!V136/1000000 -> 1.541705596 | W224: ='Water + wastewater calculations'!W136/1000000 -> 1.42061894 | X224: ='Water + wastewater calculations'!X136/1000000 -> 1.379392556 | Y224: ='Water + wastewater calculations'!Y136/1000000 -> 1.360426232 | Z224: ='Water + wastewater calculations'!Z136/1000000 -> 1.346729864 | AA224: ='Water + wastewater calculations'!AA136/1000000 -> 1.337022188 | AB224: ='Water + wastewater calculations'!AB136/1000000 -> 1.329526853 | AC224: ='Water + wastewater calculations'!AC136/1000000 -> 1.326564236 | AD224: ='Water + wastewater calculations'!AD136/1000000 -> 1.327023859 | AE224: ='Water + wastewater calculations'!AE136/1000000 -> 1.327350255 | AF224: ='Water + wastewater calculations'!AF136/1000000 -> 1.328898548 | AG224: ='Water + wastewater calculations'!AG136/1000000 -> 1.331732006 | AH224: ='Water + wastewater calculations'!AH136/1000000 -> 1.334533267 | AI224: ='Water + wastewater calculations'!AI136/1000000 -> 1.336473669 | AJ224: ='Water + wastewater calculations'!AJ136/1000000 -> 1.338174774 | AK224: ='Water + wastewater calculations'!AK136/1000000 -> 1.339995966 | AL224: ='Water + wastewater calculations'!AL136/1000000 -> 1.342006469 | AM224: ='Water + wastewater calculations'!AM136/1000000 -> 1.340143873 | AN224: ='Water + wastewater calculations'!AN136/1000000 -> 1.339644116 | AO224: ='Water + wastewater calculations'!AO136/1000000 -> 1.339264849 | AP224: ='Water + wastewater calculations'!AP136/1000000 -> 1.338952715
B225: Cordova
B226: Total wastewater produced | C226: ='Water + wastewater calculations'!C118/1000000 -> 0 | D226: ='Water + wastewater calculations'!D118/1000000 -> 0 | E226: ='Water + wastewater calculations'!E118/1000000 -> 0 | F226: ='Water + wastewater calculations'!F118/1000000 -> 0 | G226: ='Water + wastewater calculations'!G118/1000000 -> 0 | H226: ='Water + wastewater calculations'!H118/1000000 -> 0 | I226: ='Water + wastewater calculations'!I118/1000000 -> 0 | J226: ='Water + wastewater calculations'!J118/1000000 -> 0 | K226: ='Water + wastewater calculations'!K118/1000000 -> 0 | L226: ='Water + wastewater calculations'!L118/1000000 -> 0 | M226: ='Water + wastewater calculations'!M118/1000000 -> 0 | N226: ='Water + wastewater calculations'!N118/1000000 -> 0 | O226: ='Water + wastewater calculations'!O118/1000000 -> 0 | P226: ='Water + wastewater calculations'!P118/1000000 -> 0 | Q226: ='Water + wastewater calculations'!Q118/1000000 -> 0 | R226: ='Water + wastewater calculations'!R118/1000000 -> 0 | S226: ='Water + wastewater calculations'!S118/1000000 -> 0 | T226: ='Water + wastewater calculations'!T118/1000000 -> 0 | U226: ='Water + wastewater calculations'!U118/1000000 -> 0 | V226: ='Water + wastewater calculations'!V118/1000000 -> 0 | W226: ='Water + wastewater calculations'!W118/1000000 -> 0 | X226: ='Water + wastewater calculations'!X118/1000000 -> 0 | Y226: ='Water + wastewater calculations'!Y118/1000000 -> 0 | Z226: ='Water + wastewater calculations'!Z118/1000000 -> 0 | AA226: ='Water + wastewater calculations'!AA118/1000000 -> 0 | AB226: ='Water + wastewater calculations'!AB118/1000000 -> 0 | AC226: ='Water + wastewater calculations'!AC118/1000000 -> 0 | AD226: ='Water + wastewater calculations'!AD118/1000000 -> 0 | AE226: ='Water + wastewater calculations'!AE118/1000000 -> 0 | AF226: ='Water + wastewater calculations'!AF118/1000000 -> 0 | AG226: ='Water + wastewater calculations'!AG118/1000000 -> 0 | AH226: ='Water + wastewater calculations'!AH118/1000000 -> 0 | AI226: ='Water + wastewater calculations'!AI118/1000000 -> 0 | AJ226: ='Water + wastewater calculations'!AJ118/1000000 -> 0 | AK226: ='Water + wastewater calculations'!AK118/1000000 -> 0 | AL226: ='Water + wastewater calculations'!AL118/1000000 -> 0 | AM226: ='Water + wastewater calculations'!AM118/1000000 -> 0 | AN226: ='Water + wastewater calculations'!AN118/1000000 -> 0 | AO226: ='Water + wastewater calculations'!AO118/1000000 -> 0 | AP226: ='Water + wastewater calculations'!AP118/1000000 -> 0
